Body Name,Body,Service Label,Service Code,CIPFA Detailed Expenditure Type,CIPFA Detailed Expenditure Code,Date,Transaction Number,Net Amount,Supplier Name,,,,,,,,,,#REF!
Nottinghamshire County Council,1111/1001,Surplus or Deficit from Trading Undertak,TRADING,Premises Related,BJA,07/01/2015,10-10001,713.2,Biffa Waste Services Ltd,,,,,,,,,,
Nottinghamshire County Council,1111/1001,Surplus or Deficit from Trading Undertak,TRADING,Premises Related,BJA,30/01/2015,10-10001,570.56,Biffa Waste Services Ltd,,,,,,,,,,
Nottinghamshire County Council,1111/1001,Surplus or Deficit from Trading Undertak,TRADING,Premises Related,BJA,30/01/2015,10-10001,570.56,Biffa Waste Services Ltd,,,,,,,,,,
Nottinghamshire County Council,1111/1001,Surplus or Deficit from Trading Undertak,TRADING,Supplies & Services,DDA,13/01/2015,10-10001,1107.9,Hamelin Paperbrands Ltd,,,,,,,,,,
Nottinghamshire County Council,1111/1001,Surplus or Deficit from Trading Undertak,TRADING,Supplies & Services,DDA,27/01/2015,10-10001,1776.82,Hamelin Paperbrands Ltd,,,,,,,,,,
Nottinghamshire County Council,1111/1001,Surplus or Deficit from Trading Undertak,TRADING,Supplies & Services,DDA,27/01/2015,10-10001,1289.92,Hamelin Paperbrands Ltd,,,,,,,,,,
Nottinghamshire County Council,1111/1001,Surplus or Deficit from Trading Undertak,TRADING,Supplies & Services,DDA,28/01/2015,10-10001,740.92,Hamelin Paperbrands Ltd,,,,,,,,,,
Nottinghamshire County Council,1111/1001,Surplus or Deficit from Trading Undertak,TRADING,Supplies & Services,DDA,06/01/2015,10-10001,520,Henkel Loctite Adhesives Ltd,,,,,,,,,,
Nottinghamshire County Council,1111/1001,Surplus or Deficit from Trading Undertak,TRADING,Supplies & Services,DDA,19/01/2015,10-10001,536,Henkel Loctite Adhesives Ltd,,,,,,,,,,
Nottinghamshire County Council,1111/1001,Surplus or Deficit from Trading Undertak,TRADING,Supplies & Services,DDA,19/01/2015,10-10001,4271.84,Henkel Loctite Adhesives Ltd,,,,,,,,,,
Nottinghamshire County Council,1111/1001,Surplus or Deficit from Trading Undertak,TRADING,Supplies & Services,DAA,28/01/2015,10-10001,528,Fingersafe Gb Ltd,,,,,,,,,,
Nottinghamshire County Council,1111/1001,Surplus or Deficit from Trading Undertak,TRADING,Supplies & Services,DAA,06/01/2015,10-10001,984.5,Reliance Medical Ltd,,,,,,,,,,
Nottinghamshire County Council,1111/1001,Surplus or Deficit from Trading Undertak,TRADING,Supplies & Services,DFA,07/01/2015,10-10001,1616,Exant (Uk) Ltd,,,,,,,,,,
Nottinghamshire County Council,1111/1001,Surplus or Deficit from Trading Undertak,TRADING,Supplies & Services,DFA,23/01/2015,10-10001,581,Exant (Uk) Ltd,,,,,,,,,,
Nottinghamshire County Council,1111/1001,Surplus or Deficit from Trading Undertak,TRADING,Supplies & Services,DAA,28/01/2015,10-10001,657.95,Stuff-Uk-Net,,,,,,,,,,
Nottinghamshire County Council,1111/1001,Surplus or Deficit from Trading Undertak,TRADING,Supplies & Services,DAA,06/01/2015,10-10001,508.4,Esselte Uk,,,,,,,,,,
Nottinghamshire County Council,1111/1001,Surplus or Deficit from Trading Undertak,TRADING,Supplies & Services,DAA,28/01/2015,10-10001,506.35,Flip File Ltd,,,,,,,,,,
Nottinghamshire County Council,1111/1001,Surplus or Deficit from Trading Undertak,TRADING,Supplies & Services,DAA,28/01/2015,10-10001,852.85,Vivid Laminating Technologies Ltd,,,,,,,,,,
Nottinghamshire County Council,1111/1001,Surplus or Deficit from Trading Undertak,TRADING,Supplies & Services,DAA,08/01/2015,10-10001,1320,Premier Paper Group Ltd,,,,,,,,,,
Nottinghamshire County Council,1111/1001,Surplus or Deficit from Trading Undertak,TRADING,Supplies & Services,DAA,12/01/2015,10-10001,617.6,Heritage Envelopes Ltd,,,,,,,,,,
Nottinghamshire County Council,1111/1001,Surplus or Deficit from Trading Undertak,TRADING,Supplies & Services,DAA,28/01/2015,10-10001,577.2,Heritage Envelopes Ltd,,,,,,,,,,
Nottinghamshire County Council,1111/1001,Surplus or Deficit from Trading Undertak,TRADING,Supplies & Services,DAA,08/01/2015,10-10001,514.4,Antalis Key Accounts,,,,,,,,,,
Nottinghamshire County Council,1111/1001,Surplus or Deficit from Trading Undertak,TRADING,Supplies & Services,DAA,08/01/2015,10-10001,16016,Antalis Key Accounts,,,,,,,,,,
Nottinghamshire County Council,1111/1001,Surplus or Deficit from Trading Undertak,TRADING,Supplies & Services,DAA,12/01/2015,10-10001,1042.13,Xma Ltd,,,,,,,,,,
Nottinghamshire County Council,1111/1001,Surplus or Deficit from Trading Undertak,TRADING,Premises Related,BAA,08/01/2015,10-10001,554.4,Avery Uk,,,,,,,,,,
Nottinghamshire County Council,1111/1001,Surplus or Deficit from Trading Undertak,TRADING,Premises Related,BAA,12/01/2015,10-10001,514.85,Avery Uk,,,,,,,,,,
Nottinghamshire County Council,1111/1001,Surplus or Deficit from Trading Undertak,TRADING,Premises Related,BAA,27/01/2015,10-10001,507,Avery Uk,,,,,,,,,,
Nottinghamshire County Council,1111/1001,Surplus or Deficit from Trading Undertak,TRADING,Premises Related,BAA,27/01/2015,10-10001,627.65,Avery Uk,,,,,,,,,,
Nottinghamshire County Council,1111/1001,Surplus or Deficit from Trading Undertak,TRADING,Premises Related,BJA,08/01/2015,10-10001,554.5,Freudenberg Household Products Lp,,,,,,,,,,
Nottinghamshire County Council,1111/1001,Surplus or Deficit from Trading Undertak,TRADING,Premises Related,BJA,12/01/2015,10-10001,1268.2,Freudenberg Household Products Lp,,,,,,,,,,
Nottinghamshire County Council,1111/1001,Surplus or Deficit from Trading Undertak,TRADING,Premises Related,BJA,08/01/2015,10-10001,807.3,Polystar Plastics Ltd,,,,,,,,,,
Nottinghamshire County Council,1111/1001,Surplus or Deficit from Trading Undertak,TRADING,Premises Related,BJA,12/01/2015,10-10001,2475.72,Polystar Plastics Ltd,,,,,,,,,,
Nottinghamshire County Council,1111/1001,Surplus or Deficit from Trading Undertak,TRADING,Premises Related,BJA,13/01/2015,10-10001,1606.08,Polystar Plastics Ltd,,,,,,,,,,
Nottinghamshire County Council,1111/1001,Surplus or Deficit from Trading Undertak,TRADING,Premises Related,BJA,22/01/2015,10-10001,1667.44,Kimberley Clark European Services Ltd,,,,,,,,,,
Nottinghamshire County Council,1111/1001,Surplus or Deficit from Trading Undertak,TRADING,Premises Related,BJA,28/01/2015,10-10001,2174.02,Kimberley Clark European Services Ltd,,,,,,,,,,
Nottinghamshire County Council,1111/1001,Surplus or Deficit from Trading Undertak,TRADING,Premises Related,BJA,27/01/2015,10-10001,503.12,Cromwell Polythene Ltd,,,,,,,,,,
Nottinghamshire County Council,1111/1001,Surplus or Deficit from Trading Undertak,TRADING,Premises Related,BJA,28/01/2015,10-10001,571.58,Johnson Diversey,,,,,,,,,,
Nottinghamshire County Council,1111/1001,Surplus or Deficit from Trading Undertak,TRADING,Premises Related,BJA,13/01/2015,10-10001,843.05,Premiere Products,,,,,,,,,,
Nottinghamshire County Council,1111/1001,Surplus or Deficit from Trading Undertak,TRADING,Premises Related,BJA,19/01/2015,10-10001,1717.68,Premiere Products,,,,,,,,,,
Nottinghamshire County Council,1111/1001,Surplus or Deficit from Trading Undertak,TRADING,Premises Related,BJA,19/01/2015,10-10001,4500.52,Premiere Products,,,,,,,,,,
Nottinghamshire County Council,1111/1001,Surplus or Deficit from Trading Undertak,TRADING,Premises Related,BJA,30/01/2015,10-10001,3656.28,Premiere Products,,,,,,,,,,
Nottinghamshire County Council,1111/1001,Surplus or Deficit from Trading Undertak,TRADING,Premises Related,BJA,30/01/2015,10-10001,2353.21,Premiere Products,,,,,,,,,,
Nottinghamshire County Council,1111/1001,Surplus or Deficit from Trading Undertak,TRADING,Premises Related,BJA,13/01/2015,10-10001,1397.75,Candor Services,,,,,,,,,,
Nottinghamshire County Council,1111/1001,Surplus or Deficit from Trading Undertak,TRADING,Supplies & Services,DAA,13/01/2015,10-10001,556.72,Coptrin Limited,,,,,,,,,,
Nottinghamshire County Council,1111/1001,Surplus or Deficit from Trading Undertak,TRADING,Supplies & Services,DAA,13/01/2015,10-10001,687.85,Coptrin Limited,,,,,,,,,,
Nottinghamshire County Council,1111/1001,Surplus or Deficit from Trading Undertak,TRADING,Supplies & Services,DAA,06/01/2015,10-10001,848.54,W V Howe (Hardware) Ltd,,,,,,,,,,
Nottinghamshire County Council,1111/1001,Surplus or Deficit from Trading Undertak,TRADING,Supplies & Services,DAA,27/01/2015,10-10001,904.6,W V Howe (Hardware) Ltd,,,,,,,,,,
Nottinghamshire County Council,1111/1001,Surplus or Deficit from Trading Undertak,TRADING,Supplies & Services,DAA,30/01/2015,10-10001,691.8,Catering Supplies (Wakefield) Ltd,,,,,,,,,,
Nottinghamshire County Council,1111/1001,Surplus or Deficit from Trading Undertak,TRADING,Supplies & Services,DAA,08/01/2015,10-10001,6541.79,Sca Hygiene,,,,,,,,,,
Nottinghamshire County Council,1111/1001,Surplus or Deficit from Trading Undertak,TRADING,Supplies & Services,DAA,08/01/2015,10-10001,848.68,Dualit Ltd,,,,,,,,,,
Nottinghamshire County Council,1111/1001,Surplus or Deficit from Trading Undertak,TRADING,Supplies & Services,DCA,08/01/2015,10-10001,1162.04,Shermond,,,,,,,,,,
Nottinghamshire County Council,1111/1001,Surplus or Deficit from Trading Undertak,TRADING,Supplies & Services,DCA,22/01/2015,10-10001,2501.23,Shermond,,,,,,,,,,
Nottinghamshire County Council,1111/1001,Surplus or Deficit from Trading Undertak,TRADING,Supplies & Services,DKA,06/01/2015,10-10001,689.94,Bunzl Cleaning & Hygiene Supplies,,,,,,,,,,
Nottinghamshire County Council,1111/1001,Surplus or Deficit from Trading Undertak,TRADING,Supplies & Services,DKA,06/01/2015,10-10001,756.02,Bunzl Cleaning & Hygiene Supplies,,,,,,,,,,
Nottinghamshire County Council,1111/1001,Surplus or Deficit from Trading Undertak,TRADING,Supplies & Services,DKA,06/01/2015,10-10001,1262.24,Bunzl Cleaning & Hygiene Supplies,,,,,,,,,,
Nottinghamshire County Council,1111/1001,Surplus or Deficit from Trading Undertak,TRADING,Supplies & Services,DKA,15/01/2015,10-10001,531.5,Bunzl Cleaning & Hygiene Supplies,,,,,,,,,,
Nottinghamshire County Council,1111/1001,Surplus or Deficit from Trading Undertak,TRADING,Supplies & Services,DKA,15/01/2015,10-10001,531.5,Bunzl Cleaning & Hygiene Supplies,,,,,,,,,,
Nottinghamshire County Council,1111/1001,Surplus or Deficit from Trading Undertak,TRADING,Supplies & Services,DKA,22/01/2015,10-10001,2310.48,Bunzl Cleaning & Hygiene Supplies,,,,,,,,,,
Nottinghamshire County Council,1111/1001,Surplus or Deficit from Trading Undertak,TRADING,Supplies & Services,DAA,08/01/2015,10-10001,8029.9,R Scott & Sons Ltd,,,,,,,,,,
Nottinghamshire County Council,1111/1001,Surplus or Deficit from Trading Undertak,TRADING,Supplies & Services,DAA,22/01/2015,10-10001,1208.65,R Scott & Sons Ltd,,,,,,,,,,
Nottinghamshire County Council,1111/1001,Surplus or Deficit from Trading Undertak,TRADING,Supplies & Services,DAA,12/01/2015,10-10001,1835,Office Innovations,,,,,,,,,,
Nottinghamshire County Council,1111/1001,Surplus or Deficit from Trading Undertak,TRADING,Supplies & Services,DAA,12/01/2015,10-10001,649.95,Office Innovations,,,,,,,,,,
Nottinghamshire County Council,1111/1001,Surplus or Deficit from Trading Undertak,TRADING,Supplies & Services,DAA,19/01/2015,10-10001,683,Office Innovations,,,,,,,,,,
Nottinghamshire County Council,1111/1001,Surplus or Deficit from Trading Undertak,TRADING,Supplies & Services,DAA,19/01/2015,10-10001,683,Office Innovations,,,,,,,,,,
Nottinghamshire County Council,1111/1001,Surplus or Deficit from Trading Undertak,TRADING,Supplies & Services,DAA,30/01/2015,10-10001,804.96,Office Innovations,,,,,,,,,,
Nottinghamshire County Council,1111/1001,Surplus or Deficit from Trading Undertak,TRADING,Supplies & Services,DAA,30/01/2015,10-10001,1361.22,Office Innovations,,,,,,,,,,
Nottinghamshire County Council,1111/1001,Surplus or Deficit from Trading Undertak,TRADING,Supplies & Services,DAA,30/01/2015,10-10001,1652.7,Helmsman,,,,,,,,,,
Nottinghamshire County Council,1111/1001,Surplus or Deficit from Trading Undertak,TRADING,Supplies & Services,DAA,27/01/2015,10-10001,803.4,Advanced Moulds Ltd,,,,,,,,,,
Nottinghamshire County Council,1111/1001,Surplus or Deficit from Trading Undertak,TRADING,Supplies & Services,DAA,08/01/2015,10-10001,742.93,Addis Housewares Ltd,,,,,,,,,,
Nottinghamshire County Council,1111/1001,Surplus or Deficit from Trading Undertak,TRADING,Supplies & Services,DAA,30/01/2015,10-10001,573.48,Combined Office Interiors Ltd,,,,,,,,,,
Nottinghamshire County Council,1111/1001,Surplus or Deficit from Trading Undertak,TRADING,Supplies & Services,DAA,30/01/2015,10-10001,1712.64,Combined Office Interiors Ltd,,,,,,,,,,
Nottinghamshire County Council,1111/1001,Surplus or Deficit from Trading Undertak,TRADING,Supplies & Services,DAA,06/01/2015,10-10001,1147.56,Certwood Ltd,,,,,,,,,,
Nottinghamshire County Council,1111/1001,Surplus or Deficit from Trading Undertak,TRADING,Supplies & Services,DAA,22/01/2015,10-10001,506.14,Denis Rawlins Ltd,,,,,,,,,,
Nottinghamshire County Council,1111/1001,Surplus or Deficit from Trading Undertak,TRADING,Supplies & Services,DAA,22/01/2015,10-10001,873.5,Gopak Ltd,,,,,,,,,,
Nottinghamshire County Council,1111/1001,Surplus or Deficit from Trading Undertak,TRADING,Supplies & Services,DAA,27/01/2015,10-10001,710.6,Lockhart Catering Equipment Ltd,,,,,,,,,,
Nottinghamshire County Council,1111/1001,Surplus or Deficit from Trading Undertak,TRADING,Supplies & Services,DAA,12/01/2015,10-10001,726.3,Posturite Uk Ltd,,,,,,,,,,
Nottinghamshire County Council,1111/1001,Surplus or Deficit from Trading Undertak,TRADING,Supplies & Services,DAA,30/01/2015,10-10001,945.92,Anchor Fast Products Ltd,,,,,,,,,,
Nottinghamshire County Council,1111/1001,Surplus or Deficit from Trading Undertak,TRADING,Supplies & Services,DAA,12/01/2015,10-10001,2281.62,Kent County Supplies,,,,,,,,,,
Nottinghamshire County Council,1111/1001,Surplus or Deficit from Trading Undertak,TRADING,Supplies & Services,DAA,12/01/2015,10-10001,618.5,Kent County Supplies,,,,,,,,,,
Nottinghamshire County Council,1111/1001,Surplus or Deficit from Trading Undertak,TRADING,Supplies & Services,DAA,22/01/2015,10-10001,570.91,Kent County Supplies,,,,,,,,,,
Nottinghamshire County Council,1111/1001,Surplus or Deficit from Trading Undertak,TRADING,Supplies & Services,DAA,30/01/2015,10-10001,1038.5,Kent County Supplies,,,,,,,,,,
Nottinghamshire County Council,1111/1001,Surplus or Deficit from Trading Undertak,TRADING,Supplies & Services,DAA,08/01/2015,10-10001,860.24,Grosvenor House Papers Ltd,,,,,,,,,,
Nottinghamshire County Council,1111/1001,Surplus or Deficit from Trading Undertak,TRADING,Supplies & Services,DAA,27/01/2015,10-10001,904,Grosvenor House Papers Ltd,,,,,,,,,,
Nottinghamshire County Council,1111/1001,Surplus or Deficit from Trading Undertak,TRADING,Supplies & Services,DAA,08/01/2015,10-10001,724.2,Newell Rubbermaid,,,,,,,,,,
Nottinghamshire County Council,1111/1001,Surplus or Deficit from Trading Undertak,TRADING,Supplies & Services,DAA,27/01/2015,10-10001,2228.8,Newell Rubbermaid,,,,,,,,,,
Nottinghamshire County Council,1111/1001,Surplus or Deficit from Trading Undertak,TRADING,Supplies & Services,DAA,08/01/2015,10-10001,837.18,Scolaquip Ltd,,,,,,,,,,
Nottinghamshire County Council,1111/1001,Surplus or Deficit from Trading Undertak,TRADING,Supplies & Services,DAA,06/01/2015,10-10001,3633.8,Staedtler (Uk) Ltd,,,,,,,,,,
Nottinghamshire County Council,1111/1001,Surplus or Deficit from Trading Undertak,TRADING,Supplies & Services,DAA,28/01/2015,10-10001,1150.46,Staedtler (Uk) Ltd,,,,,,,,,,
Nottinghamshire County Council,1111/1001,Surplus or Deficit from Trading Undertak,TRADING,Supplies & Services,DAA,13/01/2015,10-10001,1063.96,Bic U.K. Ltd,,,,,,,,,,
Nottinghamshire County Council,1111/1001,Surplus or Deficit from Trading Undertak,TRADING,Supplies & Services,DAA,06/01/2015,10-10001,599.04,Edding Uk Ltd,,,,,,,,,,
Nottinghamshire County Council,1111/1001,Surplus or Deficit from Trading Undertak,TRADING,Supplies & Services,DAA,27/01/2015,10-10001,559.35,Edding Uk Ltd,,,,,,,,,,
Nottinghamshire County Council,1111/1001,Surplus or Deficit from Trading Undertak,TRADING,Supplies & Services,DAA,06/01/2015,10-10001,908.7,Rapesco Office Products Plc,,,,,,,,,,
Nottinghamshire County Council,1111/1001,Surplus or Deficit from Trading Undertak,TRADING,Supplies & Services,DAA,06/01/2015,10-10001,519.1,Allen Glenold Ltd,,,,,,,,,,
Nottinghamshire County Council,1111/1001,Surplus or Deficit from Trading Undertak,TRADING,Supplies & Services,DAA,28/01/2015,10-10001,801.54,Allen Glenold Ltd,,,,,,,,,,
Nottinghamshire County Council,1111/1001,Surplus or Deficit from Trading Undertak,TRADING,Supplies & Services,DAA,15/01/2015,10-10001,746.81,Slater Harrison & Co Ltd,,,,,,,,,,
Nottinghamshire County Council,1111/1001,Surplus or Deficit from Trading Undertak,TRADING,Supplies & Services,DAA,27/01/2015,10-10001,949.6,Slater Harrison & Co Ltd,,,,,,,,,,
Nottinghamshire County Council,1111/1001,Surplus or Deficit from Trading Undertak,TRADING,Supplies & Services,DAA,12/01/2015,10-10001,710.86,Creativity International Ltd,,,,,,,,,,
Nottinghamshire County Council,1111/1001,Surplus or Deficit from Trading Undertak,TRADING,Supplies & Services,DAA,28/01/2015,10-10001,582.72,Creativity International Ltd,,,,,,,,,,
Nottinghamshire County Council,1111/1001,Surplus or Deficit from Trading Undertak,TRADING,Supplies & Services,DAA,28/01/2015,10-10001,1236.48,Valentine Clays,,,,,,,,,,
Nottinghamshire County Council,1111/1001,Surplus or Deficit from Trading Undertak,TRADING,Supplies & Services,DAA,28/01/2015,10-10001,505.96,Bright Ideas Marketing Ltd,,,,,,,,,,
Nottinghamshire County Council,1111/1001,Surplus or Deficit from Trading Undertak,TRADING,Supplies & Services,DAA,08/01/2015,10-10001,2543.34,Eastpoint,,,,,,,,,,
Nottinghamshire County Council,1111/1001,Surplus or Deficit from Trading Undertak,TRADING,Supplies & Services,DAA,15/01/2015,10-10001,915.27,Eastpoint,,,,,,,,,,
Nottinghamshire County Council,1111/1001,Surplus or Deficit from Trading Undertak,TRADING,Supplies & Services,DAA,22/01/2015,10-10001,623.88,Kit For Kids Ltd,,,,,,,,,,
Nottinghamshire County Council,1111/1001,Surplus or Deficit from Trading Undertak,TRADING,Supplies & Services,DAA,22/01/2015,10-10001,514,Monarch Acoustics Ltd,,,,,,,,,,
Nottinghamshire County Council,1111/1001,Surplus or Deficit from Trading Undertak,TRADING,Supplies & Services,DAA,27/01/2015,10-10001,725,Spaceright Europe Ltd,,,,,,,,,,
Nottinghamshire County Council,1111/1001,Surplus or Deficit from Trading Undertak,TRADING,Supplies & Services,DAA,28/01/2015,10-10001,1390,Spaceright Europe Ltd,,,,,,,,,,
Nottinghamshire County Council,1111/1001,Surplus or Deficit from Trading Undertak,TRADING,Supplies & Services,DAA,22/01/2015,10-10001,1076.4,William Sinclair Horticulture Ltd,,,,,,,,,,
Nottinghamshire County Council,1111/1001,Surplus or Deficit from Trading Undertak,TRADING,Supplies & Services,DAA,15/01/2015,10-10001,811.72,Brian Clegg (Educational Products) Ltd,,,,,,,,,,
Nottinghamshire County Council,1111/1001,Surplus or Deficit from Trading Undertak,TRADING,Supplies & Services,DAA,27/01/2015,10-10001,553.1,Commotion Technology Supplies,,,,,,,,,,
Nottinghamshire County Council,1111/1001,Surplus or Deficit from Trading Undertak,TRADING,Supplies & Services,DAA,22/01/2015,10-10001,859.42,Profile Education Ltd,,,,,,,,,,
Nottinghamshire County Council,1111/1001,Surplus or Deficit from Trading Undertak,TRADING,Supplies & Services,DAA,06/01/2015,10-10001,573.19,Monarch Computer Furniture,,,,,,,,,,
Nottinghamshire County Council,1111/1001,Surplus or Deficit from Trading Undertak,TRADING,Supplies & Services,DAA,13/01/2015,10-10001,809.32,Monarch Computer Furniture,,,,,,,,,,
Nottinghamshire County Council,1111/1001,Surplus or Deficit from Trading Undertak,TRADING,Employee Related,AAA,23/01/2015,10-10001,516.55,A&T Active Recruitment,,,,,,,,,,
Nottinghamshire County Council,1111/1001,Children and Young People,CYP,Premises Related,BDA,06/01/2015,10-10002,5747.54,Making It! Enterprises Ltd,,,,,,,,,,
Nottinghamshire County Council,1111/1001,Children and Young People,CYP,Premises Related,BDA,06/01/2015,10-10003,750,Thoresby Estate,,,,,,,,,,
Nottinghamshire County Council,1111/1001,Children and Young People,CYP,Premises Related,BDA,06/01/2015,10-10004,1099.99,Nottingham City Council,,,,,,,,,,
Nottinghamshire County Council,1111/1001,Children and Young People,CYP,Premises Related,BDA,06/01/2015,10-10009,589,High Peak Borough Council,,,,,,,,,,
Nottinghamshire County Council,1111/1001,Children and Young People,CYP,Premises Related,BDA,06/01/2015,10-10010,4674.76,Making It! Enterprises Ltd,,,,,,,,,,
Nottinghamshire County Council,1111/1001,Children and Young People,CYP,Premises Related,BDA,06/01/2015,10-10011,518,Derbyshire Dales District Council,,,,,,,,,,
Nottinghamshire County Council,1111/1001,Children and Young People,CYP,Premises Related,BDA,06/01/2015,10-10012,585,[Redacted],,,,,,,,,,
Nottinghamshire County Council,1111/1001,Children and Young People,CYP,Premises Related,BDA,06/01/2015,10-10013,1857.42,University Of Leeds,,,,,,,,,,
Nottinghamshire County Council,1111/1001,Children and Young People,CYP,Premises Related,BDA,06/01/2015,10-10015,606.67,J Sedoo t/a Sedoo Investments,,,,,,,,,,
Nottinghamshire County Council,1111/1001,Children and Young People,CYP,Premises Related,BDA,06/01/2015,10-10016,606.67,J Sedoo t/a Sedoo Investments,,,,,,,,,,
Nottinghamshire County Council,1111/1001,Children and Young People,CYP,Premises Related,BDA,06/01/2015,10-10017,606.67,J Sedoo t/a Sedoo Investments,,,,,,,,,,
Nottinghamshire County Council,1111/1001,Children and Young People,CYP,Premises Related,BDA,13/01/2015,10-10018,900,Frank Innes Estate Agents,,,,,,,,,,
Nottinghamshire County Council,1111/1001,Children and Young People,CYP,Premises Related,BDA,21/01/2015,10-10019,3596.95,Making It! Enterprises Ltd,,,,,,,,,,
Nottinghamshire County Council,1111/1001,Children and Young People,CYP,Premises Related,BDA,21/01/2015,10-10020,2882.37,Making It! Enterprises Ltd,,,,,,,,,,
Nottinghamshire County Council,1111/1001,Children and Young People,CYP,Premises Related,BDA,29/01/2015,10-15877,558.8,The Book Art Project,,,,,,,,,,
Nottinghamshire County Council,1111/1001,Children and Young People,CYP,Premises Related,BFA,02/01/2015,10-10071,525.95,Colonel Frank Seely School,,,,,,,,,,
Nottinghamshire County Council,1111/1001,Children and Young People,CYP,Premises Related,BFA,05/01/2015,10-10052,814.4,Severn Trent Water Ltd-Miscellaneou,,,,,,,,,,
Nottinghamshire County Council,1111/1001,Children and Young People,CYP,Premises Related,BFA,19/01/2015,10-11376,735.71,Severn Trent Water Ltd,,,,,,,,,,
Nottinghamshire County Council,1111/1001,Children and Young People,CYP,Transport Related,CCA,02/01/2015,10-10080,3700,Kettlewell Retford Ltd,,,,,,,,,,
Nottinghamshire County Council,1111/1001,Children and Young People,CYP,Transport Related,CCA,06/01/2015,10-10137,2150.25,Taxicover Uk Ltd,,,,,,,,,,
Nottinghamshire County Council,1111/1001,Children and Young People,CYP,Transport Related,CCA,06/01/2015,10-10138,2669.52,Taxicover Uk Ltd,,,,,,,,,,
Nottinghamshire County Council,1111/1001,Children and Young People,CYP,Transport Related,CCA,06/01/2015,10-10139,2065.98,Taxicover Uk Ltd,,,,,,,,,,
Nottinghamshire County Council,1111/1001,Children and Young People,CYP,Transport Related,CCA,06/01/2015,10-10140,2484.72,Taxicover Uk Ltd,,,,,,,,,,
Nottinghamshire County Council,1111/1001,Children and Young People,CYP,Transport Related,CCA,06/01/2015,10-10141,2497.95,Taxicover Uk Ltd,,,,,,,,,,
Nottinghamshire County Council,1111/1001,Children and Young People,CYP,Transport Related,CCA,06/01/2015,10-10142,2304.75,Taxicover Uk Ltd,,,,,,,,,,
Nottinghamshire County Council,1111/1001,Children and Young People,CYP,Transport Related,CCA,06/01/2015,10-10143,2435.25,Taxicover Uk Ltd,,,,,,,,,,
Nottinghamshire County Council,1111/1001,Children and Young People,CYP,Transport Related,CCA,06/01/2015,10-10144,2364.9,Taxicover Uk Ltd,,,,,,,,,,
Nottinghamshire County Council,1111/1001,Children and Young People,CYP,Transport Related,CCA,06/01/2015,10-10145,2132.55,Taxicover Uk Ltd,,,,,,,,,,
Nottinghamshire County Council,1111/1001,Children and Young People,CYP,Transport Related,CCA,06/01/2015,10-10146,2142,Taxicover Uk Ltd,,,,,,,,,,
Nottinghamshire County Council,1111/1001,Children and Young People,CYP,Transport Related,CCA,06/01/2015,10-10147,2379.75,Taxicover Uk Ltd,,,,,,,,,,
Nottinghamshire County Council,1111/1001,Children and Young People,CYP,Transport Related,CCA,06/01/2015,10-10148,2191.2,Taxicover Uk Ltd,,,,,,,,,,
Nottinghamshire County Council,1111/1001,Children and Young People,CYP,Transport Related,CCA,06/01/2015,10-10149,2249.25,Taxicover Uk Ltd,,,,,,,,,,
Nottinghamshire County Council,1111/1001,Children and Young People,CYP,Transport Related,CCA,06/01/2015,10-10150,918,Southside Cars,,,,,,,,,,
Nottinghamshire County Council,1111/1001,Children and Young People,CYP,Transport Related,CCA,06/01/2015,10-10151,1053.64,Southside Cars,,,,,,,,,,
Nottinghamshire County Council,1111/1001,Children and Young People,CYP,Transport Related,CCA,06/01/2015,10-10152,835.39,Southside Cars,,,,,,,,,,
Nottinghamshire County Council,1111/1001,Children and Young People,CYP,Transport Related,CCA,06/01/2015,10-10153,1438.5,Southside Cars,,,,,,,,,,
Nottinghamshire County Council,1111/1001,Children and Young People,CYP,Transport Related,CCA,06/01/2015,10-10154,1400.7,Southside Cars,,,,,,,,,,
Nottinghamshire County Council,1111/1001,Children and Young People,CYP,Transport Related,CCA,06/01/2015,10-10155,750,Southside Cars,,,,,,,,,,
Nottinghamshire County Council,1111/1001,Children and Young People,CYP,Transport Related,CCA,06/01/2015,10-10156,861.3,Southside Cars,,,,,,,,,,
Nottinghamshire County Council,1111/1001,Children and Young People,CYP,Transport Related,CCA,06/01/2015,10-10157,1524.4,Southside Cars,,,,,,,,,,
Nottinghamshire County Council,1111/1001,Children and Young People,CYP,Transport Related,CCA,06/01/2015,10-10158,1660.5,Southside Cars,,,,,,,,,,
Nottinghamshire County Council,1111/1001,Children and Young People,CYP,Transport Related,CCA,06/01/2015,10-10159,728.1,Southside Cars,,,,,,,,,,
Nottinghamshire County Council,1111/1001,Children and Young People,CYP,Transport Related,CCA,06/01/2015,10-10161,720,Alpha Cars,,,,,,,,,,
Nottinghamshire County Council,1111/1001,Children and Young People,CYP,Transport Related,CCA,06/01/2015,10-10163,1597.8,Arrow Specialised Transport Ltd,,,,,,,,,,
Nottinghamshire County Council,1111/1001,Children and Young People,CYP,Transport Related,CCA,06/01/2015,10-10164,1480.5,Arrow Specialised Transport Ltd,,,,,,,,,,
Nottinghamshire County Council,1111/1001,Children and Young People,CYP,Transport Related,CCA,06/01/2015,10-10165,1915.95,Arrow Specialised Transport Ltd,,,,,,,,,,
Nottinghamshire County Council,1111/1001,Children and Young People,CYP,Transport Related,CCA,06/01/2015,10-10166,2175,Arrow Specialised Transport Ltd,,,,,,,,,,
Nottinghamshire County Council,1111/1001,Children and Young People,CYP,Transport Related,CCA,06/01/2015,10-10167,1534.5,Arrow Specialised Transport Ltd,,,,,,,,,,
Nottinghamshire County Council,1111/1001,Children and Young People,CYP,Transport Related,CCA,06/01/2015,10-10168,1740,Arrow Specialised Transport Ltd,,,,,,,,,,
Nottinghamshire County Council,1111/1001,Children and Young People,CYP,Transport Related,CCA,06/01/2015,10-10169,1269.75,Arrow Specialised Transport Ltd,,,,,,,,,,
Nottinghamshire County Council,1111/1001,Children and Young People,CYP,Transport Related,CCA,06/01/2015,10-10170,1570.95,Arrow Specialised Transport Ltd,,,,,,,,,,
Nottinghamshire County Council,1111/1001,Children and Young People,CYP,Transport Related,CCA,06/01/2015,10-10171,1881.18,Arrow Specialised Transport Ltd,,,,,,,,,,
Nottinghamshire County Council,1111/1001,Children and Young People,CYP,Transport Related,CCA,06/01/2015,10-10172,1866.6,Arrow Specialised Transport Ltd,,,,,,,,,,
Nottinghamshire County Council,1111/1001,Children and Young People,CYP,Transport Related,CCA,06/01/2015,10-10173,2002,Arrow Specialised Transport Ltd,,,,,,,,,,
Nottinghamshire County Council,1111/1001,Children and Young People,CYP,Transport Related,CCA,06/01/2015,10-10174,2309.02,Arrow Specialised Transport Ltd,,,,,,,,,,
Nottinghamshire County Council,1111/1001,Children and Young People,CYP,Transport Related,CCA,06/01/2015,10-10175,1768,Arrow Specialised Transport Ltd,,,,,,,,,,
Nottinghamshire County Council,1111/1001,Children and Young People,CYP,Transport Related,CCA,06/01/2015,10-10176,752.55,Arrow Specialised Transport Ltd,,,,,,,,,,
Nottinghamshire County Council,1111/1001,Children and Young People,CYP,Transport Related,CCA,06/01/2015,10-10177,2089.5,Arrow Specialised Transport Ltd,,,,,,,,,,
Nottinghamshire County Council,1111/1001,Children and Young People,CYP,Transport Related,CCA,06/01/2015,10-10178,2391.15,Arrow Specialised Transport Ltd,,,,,,,,,,
Nottinghamshire County Council,1111/1001,Children and Young People,CYP,Transport Related,CCA,06/01/2015,10-10179,1005.6,Arrow Specialised Transport Ltd,,,,,,,,,,
Nottinghamshire County Council,1111/1001,Children and Young People,CYP,Transport Related,CCA,06/01/2015,10-10180,1442.4,Arrow Specialised Transport Ltd,,,,,,,,,,
Nottinghamshire County Council,1111/1001,Children and Young People,CYP,Transport Related,CCA,06/01/2015,10-10181,1735.5,Arrow Specialised Transport Ltd,,,,,,,,,,
Nottinghamshire County Council,1111/1001,Children and Young People,CYP,Transport Related,CCA,06/01/2015,10-10182,1431,Arrow Specialised Transport Ltd,,,,,,,,,,
Nottinghamshire County Council,1111/1001,Children and Young People,CYP,Transport Related,CCA,06/01/2015,10-10183,1606.5,Arrow Specialised Transport Ltd,,,,,,,,,,
Nottinghamshire County Council,1111/1001,Children and Young People,CYP,Transport Related,CCA,06/01/2015,10-10184,1537.65,Arrow Specialised Transport Ltd,,,,,,,,,,
Nottinghamshire County Council,1111/1001,Children and Young People,CYP,Transport Related,CCA,06/01/2015,10-10185,1642.65,Arrow Specialised Transport Ltd,,,,,,,,,,
Nottinghamshire County Council,1111/1001,Children and Young People,CYP,Transport Related,CCA,06/01/2015,10-10186,1773.3,Arrow Specialised Transport Ltd,,,,,,,,,,
Nottinghamshire County Council,1111/1001,Children and Young People,CYP,Transport Related,CCA,06/01/2015,10-10187,1703.55,Arrow Specialised Transport Ltd,,,,,,,,,,
Nottinghamshire County Council,1111/1001,Children and Young People,CYP,Transport Related,CCA,06/01/2015,10-10188,1326.92,Arrow Specialised Transport Ltd,,,,,,,,,,
Nottinghamshire County Council,1111/1001,Children and Young People,CYP,Transport Related,CCA,06/01/2015,10-10189,1339.35,Arrow Specialised Transport Ltd,,,,,,,,,,
Nottinghamshire County Council,1111/1001,Children and Young People,CYP,Transport Related,CCA,06/01/2015,10-10190,1484.1,Arrow Specialised Transport Ltd,,,,,,,,,,
Nottinghamshire County Council,1111/1001,Children and Young People,CYP,Transport Related,CCA,06/01/2015,10-10191,1736.7,Arrow Specialised Transport Ltd,,,,,,,,,,
Nottinghamshire County Council,1111/1001,Children and Young People,CYP,Transport Related,CCA,06/01/2015,10-10192,1497.3,Arrow Specialised Transport Ltd,,,,,,,,,,
Nottinghamshire County Council,1111/1001,Children and Young People,CYP,Transport Related,CCA,06/01/2015,10-10193,810,Arrow Specialised Transport Ltd,,,,,,,,,,
Nottinghamshire County Council,1111/1001,Children and Young People,CYP,Transport Related,CCA,06/01/2015,10-10195,1247.68,Arrow Specialised Transport Ltd,,,,,,,,,,
Nottinghamshire County Council,1111/1001,Children and Young People,CYP,Transport Related,CCA,06/01/2015,10-10196,899.25,Arrow Specialised Transport Ltd,,,,,,,,,,
Nottinghamshire County Council,1111/1001,Children and Young People,CYP,Transport Related,CCA,06/01/2015,10-10198,1116,Arrow Specialised Transport Ltd,,,,,,,,,,
Nottinghamshire County Council,1111/1001,Children and Young People,CYP,Transport Related,CCA,06/01/2015,10-10199,8670,Arrow Specialised Transport Ltd,,,,,,,,,,
Nottinghamshire County Council,1111/1001,Children and Young People,CYP,Transport Related,CCA,06/01/2015,10-10200,2086.2,Arrow Specialised Transport Ltd,,,,,,,,,,
Nottinghamshire County Council,1111/1001,Children and Young People,CYP,Transport Related,CCA,06/01/2015,10-10201,1204.19,Arrow Specialised Transport Ltd,,,,,,,,,,
Nottinghamshire County Council,1111/1001,Children and Young People,CYP,Transport Related,CCA,06/01/2015,10-10203,848.24,Arrow Specialised Transport Ltd,,,,,,,,,,
Nottinghamshire County Council,1111/1001,Children and Young People,CYP,Transport Related,CCA,06/01/2015,10-10205,1080,Arrow Specialised Transport Ltd,,,,,,,,,,
Nottinghamshire County Council,1111/1001,Children and Young People,CYP,Transport Related,CCA,06/01/2015,10-10207,1112.55,Arrow Specialised Transport Ltd,,,,,,,,,,
Nottinghamshire County Council,1111/1001,Children and Young People,CYP,Transport Related,CCA,06/01/2015,10-10208,909.3,Arrow Specialised Transport Ltd,,,,,,,,,,
Nottinghamshire County Council,1111/1001,Children and Young People,CYP,Transport Related,CCA,06/01/2015,10-10209,1375.35,Arrow Specialised Transport Ltd,,,,,,,,,,
Nottinghamshire County Council,1111/1001,Children and Young People,CYP,Transport Related,CCA,06/01/2015,10-10210,2085,Arrow Specialised Transport Ltd,,,,,,,,,,
Nottinghamshire County Council,1111/1001,Children and Young People,CYP,Transport Related,CCA,06/01/2015,10-10211,1669.36,Arrow Specialised Transport Ltd,,,,,,,,,,
Nottinghamshire County Council,1111/1001,Children and Young People,CYP,Transport Related,CCA,06/01/2015,10-10212,2272.35,Arrow Specialised Transport Ltd,,,,,,,,,,
Nottinghamshire County Council,1111/1001,Children and Young People,CYP,Transport Related,CCA,06/01/2015,10-10213,522.83,Arrow Specialised Transport Ltd,,,,,,,,,,
Nottinghamshire County Council,1111/1001,Children and Young People,CYP,Transport Related,CCA,06/01/2015,10-10215,1225.98,Arrow Specialised Transport Ltd,,,,,,,,,,
Nottinghamshire County Council,1111/1001,Children and Young People,CYP,Transport Related,CCA,06/01/2015,10-10216,1096.2,Arrow Specialised Transport Ltd,,,,,,,,,,
Nottinghamshire County Council,1111/1001,Children and Young People,CYP,Transport Related,CCA,06/01/2015,10-10217,1168.3,Arrow Specialised Transport Ltd,,,,,,,,,,
Nottinghamshire County Council,1111/1001,Children and Young People,CYP,Transport Related,CCA,06/01/2015,10-10218,1364.86,Arrow Specialised Transport Ltd,,,,,,,,,,
Nottinghamshire County Council,1111/1001,Children and Young People,CYP,Transport Related,CCA,06/01/2015,10-10219,991.13,Arrow Specialised Transport Ltd,,,,,,,,,,
Nottinghamshire County Council,1111/1001,Children and Young People,CYP,Transport Related,CCA,06/01/2015,10-10221,1023.82,Arrow Specialised Transport Ltd,,,,,,,,,,
Nottinghamshire County Council,1111/1001,Children and Young People,CYP,Transport Related,CCA,06/01/2015,10-10222,1875,Arrow Specialised Transport Ltd,,,,,,,,,,
Nottinghamshire County Council,1111/1001,Children and Young People,CYP,Transport Related,CCA,06/01/2015,10-10223,1335,Arrow Specialised Transport Ltd,,,,,,,,,,
Nottinghamshire County Council,1111/1001,Children and Young People,CYP,Transport Related,CCA,06/01/2015,10-10224,1554,Arrow Specialised Transport Ltd,,,,,,,,,,
Nottinghamshire County Council,1111/1001,Children and Young People,CYP,Transport Related,CCA,06/01/2015,10-10225,1372,Arrow Specialised Transport Ltd,,,,,,,,,,
Nottinghamshire County Council,1111/1001,Children and Young People,CYP,Transport Related,CCA,06/01/2015,10-10226,512,Arrow Specialised Transport Ltd,,,,,,,,,,
Nottinghamshire County Council,1111/1001,Children and Young People,CYP,Transport Related,CCA,06/01/2015,10-10227,1453.5,Arrow Specialised Transport Ltd,,,,,,,,,,
Nottinghamshire County Council,1111/1001,Children and Young People,CYP,Transport Related,CCA,06/01/2015,10-10228,1574.55,Arrow Specialised Transport Ltd,,,,,,,,,,
Nottinghamshire County Council,1111/1001,Children and Young People,CYP,Transport Related,CCA,06/01/2015,10-10229,1668.9,Arrow Specialised Transport Ltd,,,,,,,,,,
Nottinghamshire County Council,1111/1001,Children and Young People,CYP,Transport Related,CCA,06/01/2015,10-10230,1782.9,Arrow Specialised Transport Ltd,,,,,,,,,,
Nottinghamshire County Council,1111/1001,Children and Young People,CYP,Transport Related,CCA,06/01/2015,10-10231,1736.55,Arrow Specialised Transport Ltd,,,,,,,,,,
Nottinghamshire County Council,1111/1001,Children and Young People,CYP,Transport Related,CCA,06/01/2015,10-10232,1958.4,Arrow Specialised Transport Ltd,,,,,,,,,,
Nottinghamshire County Council,1111/1001,Children and Young People,CYP,Transport Related,CCA,06/01/2015,10-10233,2569.65,Arrow Specialised Transport Ltd,,,,,,,,,,
Nottinghamshire County Council,1111/1001,Children and Young People,CYP,Transport Related,CCA,06/01/2015,10-10242,3045,Bridges Transport Services,,,,,,,,,,
Nottinghamshire County Council,1111/1001,Children and Young People,CYP,Transport Related,CCA,06/01/2015,10-10256,1680,Tiger European Uk Ltd,,,,,,,,,,
Nottinghamshire County Council,1111/1001,Children and Young People,CYP,Transport Related,CCA,06/01/2015,10-10263,2324.85,L A Travel,,,,,,,,,,
Nottinghamshire County Council,1111/1001,Children and Young People,CYP,Transport Related,CCA,07/01/2015,10-10299,1740.98,All Wayz Travel,,,,,,,,,,
Nottinghamshire County Council,1111/1001,Children and Young People,CYP,Transport Related,CCA,07/01/2015,10-10303,1852.05,Martins Travel,,,,,,,,,,
Nottinghamshire County Council,1111/1001,Children and Young People,CYP,Transport Related,CCA,07/01/2015,10-10306,1287,Bridges Transport Services,,,,,,,,,,
Nottinghamshire County Council,1111/1001,Children and Young People,CYP,Transport Related,CCA,07/01/2015,10-10307,2274.86,Bridges Transport Services,,,,,,,,,,
Nottinghamshire County Council,1111/1001,Children and Young People,CYP,Transport Related,CCA,07/01/2015,10-10308,1920.52,Bridges Transport Services,,,,,,,,,,
Nottinghamshire County Council,1111/1001,Children and Young People,CYP,Transport Related,CCA,07/01/2015,10-10309,760.9,Bridges Transport Services,,,,,,,,,,
Nottinghamshire County Council,1111/1001,Children and Young People,CYP,Transport Related,CCA,07/01/2015,10-10310,1127.98,Bridges Transport Services,,,,,,,,,,
Nottinghamshire County Council,1111/1001,Children and Young People,CYP,Transport Related,CCA,07/01/2015,10-10311,1059.9,Bridges Transport Services,,,,,,,,,,
Nottinghamshire County Council,1111/1001,Children and Young People,CYP,Transport Related,CCA,07/01/2015,10-10312,1009.54,Bridges Transport Services,,,,,,,,,,
Nottinghamshire County Council,1111/1001,Children and Young People,CYP,Transport Related,CCA,07/01/2015,10-10313,1361.21,Bridges Transport Services,,,,,,,,,,
Nottinghamshire County Council,1111/1001,Children and Young People,CYP,Transport Related,CCA,07/01/2015,10-10315,2855.86,Bridges Transport Services,,,,,,,,,,
Nottinghamshire County Council,1111/1001,Children and Young People,CYP,Transport Related,CCA,07/01/2015,10-10316,1223.55,Bridges Transport Services,,,,,,,,,,
Nottinghamshire County Council,1111/1001,Children and Young People,CYP,Transport Related,CCA,07/01/2015,10-10317,671.25,Bridges Transport Services,,,,,,,,,,
Nottinghamshire County Council,1111/1001,Children and Young People,CYP,Transport Related,CCA,07/01/2015,10-10318,447.53,Bridges Transport Services,,,,,,,,,,
Nottinghamshire County Council,1111/1001,Children and Young People,CYP,Transport Related,CCA,07/01/2015,10-10320,2094.4,Bridges Transport Services,,,,,,,,,,
Nottinghamshire County Council,1111/1001,Children and Young People,CYP,Transport Related,CCA,07/01/2015,10-10321,1767.15,Bridges Transport Services,,,,,,,,,,
Nottinghamshire County Council,1111/1001,Children and Young People,CYP,Transport Related,CCA,07/01/2015,10-10322,2618,Bridges Transport Services,,,,,,,,,,
Nottinghamshire County Council,1111/1001,Children and Young People,CYP,Transport Related,CCA,07/01/2015,10-10323,1211.85,Bridges Transport Services,,,,,,,,,,
Nottinghamshire County Council,1111/1001,Children and Young People,CYP,Transport Related,CCA,07/01/2015,10-10324,761.15,Bridges Transport Services,,,,,,,,,,
Nottinghamshire County Council,1111/1001,Children and Young People,CYP,Transport Related,CCA,07/01/2015,10-10326,1354.8,Fozcabs Newark Taxis,,,,,,,,,,
Nottinghamshire County Council,1111/1001,Children and Young People,CYP,Transport Related,CCA,07/01/2015,10-10327,1314,Fozcabs Newark Taxis,,,,,,,,,,
Nottinghamshire County Council,1111/1001,Children and Young People,CYP,Transport Related,CCA,07/01/2015,10-10328,900,Fozcabs Newark Taxis,,,,,,,,,,
Nottinghamshire County Council,1111/1001,Children and Young People,CYP,Transport Related,CCA,07/01/2015,10-10329,1066.38,Fozcabs Newark Taxis,,,,,,,,,,
Nottinghamshire County Council,1111/1001,Children and Young People,CYP,Transport Related,CCA,07/01/2015,10-10330,1150.8,Fozcabs Newark Taxis,,,,,,,,,,
Nottinghamshire County Council,1111/1001,Children and Young People,CYP,Transport Related,CCA,07/01/2015,10-10331,639,Fozcabs Newark Taxis,,,,,,,,,,
Nottinghamshire County Council,1111/1001,Children and Young People,CYP,Transport Related,CCA,07/01/2015,10-10332,1680,Galaxy Cabs,,,,,,,,,,
Nottinghamshire County Council,1111/1001,Children and Young People,CYP,Transport Related,CCA,07/01/2015,10-10333,840,Galaxy Cabs,,,,,,,,,,
Nottinghamshire County Council,1111/1001,Children and Young People,CYP,Transport Related,CCA,07/01/2015,10-10335,1575,Horizon Travel,,,,,,,,,,
Nottinghamshire County Council,1111/1001,Children and Young People,CYP,Transport Related,CCA,07/01/2015,10-10336,1957.44,Horizon Travel,,,,,,,,,,
Nottinghamshire County Council,1111/1001,Children and Young People,CYP,Transport Related,CCA,07/01/2015,10-10337,2170.8,Midfield Travel,,,,,,,,,,
Nottinghamshire County Council,1111/1001,Children and Young People,CYP,Transport Related,CCA,07/01/2015,10-10338,1339.1,Sprays Transport Ltd,,,,,,,,,,
Nottinghamshire County Council,1111/1001,Children and Young People,CYP,Transport Related,CCA,07/01/2015,10-10339,1785,Sprays Transport Ltd,,,,,,,,,,
Nottinghamshire County Council,1111/1001,Children and Young People,CYP,Transport Related,CCA,07/01/2015,10-10340,1260,Sprays Transport Ltd,,,,,,,,,,
Nottinghamshire County Council,1111/1001,Children and Young People,CYP,Transport Related,CCA,07/01/2015,10-10341,1356.6,Sprays Transport Ltd,,,,,,,,,,
Nottinghamshire County Council,1111/1001,Children and Young People,CYP,Transport Related,CCA,07/01/2015,10-10342,1638,Sprays Transport Ltd,,,,,,,,,,
Nottinghamshire County Council,1111/1001,Children and Young People,CYP,Transport Related,CCA,07/01/2015,10-10343,1546.02,Sprays Transport Ltd,,,,,,,,,,
Nottinghamshire County Council,1111/1001,Children and Young People,CYP,Transport Related,CCA,07/01/2015,10-10344,1355.76,Sprays Transport Ltd,,,,,,,,,,
Nottinghamshire County Council,1111/1001,Children and Young People,CYP,Transport Related,CCA,07/01/2015,10-10345,2103.5,Sprays Transport Ltd,,,,,,,,,,
Nottinghamshire County Council,1111/1001,Children and Young People,CYP,Transport Related,CCA,07/01/2015,10-10346,1162.8,Sprays Transport Ltd,,,,,,,,,,
Nottinghamshire County Council,1111/1001,Children and Young People,CYP,Transport Related,CCA,07/01/2015,10-10347,1499.4,Sprays Transport Ltd,,,,,,,,,,
Nottinghamshire County Council,1111/1001,Children and Young People,CYP,Transport Related,CCA,07/01/2015,10-10349,1567.95,Sprays Transport Ltd,,,,,,,,,,
Nottinghamshire County Council,1111/1001,Children and Young People,CYP,Transport Related,CCA,07/01/2015,10-10352,1690.08,Sprays Transport Ltd,,,,,,,,,,
Nottinghamshire County Council,1111/1001,Children and Young People,CYP,Transport Related,CCA,07/01/2015,10-10356,2025,F & J Marriott T/A Unity Coaches,,,,,,,,,,
Nottinghamshire County Council,1111/1001,Children and Young People,CYP,Transport Related,CCA,07/01/2015,10-10357,2025,F & J Marriott T/A Unity Coaches,,,,,,,,,,
Nottinghamshire County Council,1111/1001,Children and Young People,CYP,Transport Related,CCA,07/01/2015,10-10358,2086.2,F & J Marriott T/A Unity Coaches,,,,,,,,,,
Nottinghamshire County Council,1111/1001,Children and Young People,CYP,Transport Related,CCA,07/01/2015,10-10360,2380,Vallances Coaches,,,,,,,,,,
Nottinghamshire County Council,1111/1001,Children and Young People,CYP,Transport Related,CCA,07/01/2015,10-10362,1438.92,Vallances Coaches,,,,,,,,,,
Nottinghamshire County Council,1111/1001,Children and Young People,CYP,Transport Related,CCA,07/01/2015,10-10363,2039.55,Vallances Coaches,,,,,,,,,,
Nottinghamshire County Council,1111/1001,Children and Young People,CYP,Transport Related,CCA,07/01/2015,10-10366,2270.25,Goldstar Travel Nottm Ltd,,,,,,,,,,
Nottinghamshire County Council,1111/1001,Children and Young People,CYP,Transport Related,CCA,07/01/2015,10-10367,1713.6,Goldstar Travel Nottm Ltd,,,,,,,,,,
Nottinghamshire County Council,1111/1001,Children and Young People,CYP,Transport Related,CCA,07/01/2015,10-10368,1009.54,Goldstar Travel Nottm Ltd,,,,,,,,,,
Nottinghamshire County Council,1111/1001,Children and Young People,CYP,Transport Related,CCA,07/01/2015,10-10369,2316.15,K & S Coaches,,,,,,,,,,
Nottinghamshire County Council,1111/1001,Children and Young People,CYP,Transport Related,CCA,07/01/2015,10-10390,1776.97,Travel Wright Ltd,,,,,,,,,,
Nottinghamshire County Council,1111/1001,Children and Young People,CYP,Transport Related,CCA,07/01/2015,10-10407,1590,Freeway Coaches Ltd,,,,,,,,,,
Nottinghamshire County Council,1111/1001,Children and Young People,CYP,Transport Related,CCA,07/01/2015,10-10410,902.4,C W Moxon Ltd,,,,,,,,,,
Nottinghamshire County Council,1111/1001,Children and Young People,CYP,Transport Related,CCA,07/01/2015,10-10416,789.36,Rio Cabs,,,,,,,,,,
Nottinghamshire County Council,1111/1001,Children and Young People,CYP,Transport Related,CCA,07/01/2015,10-10418,504,Town Cars (UK) Ltd,,,,,,,,,,
Nottinghamshire County Council,1111/1001,Children and Young People,CYP,Transport Related,CCA,07/01/2015,10-10420,1112.55,Town Cars (UK) Ltd,,,,,,,,,,
Nottinghamshire County Council,1111/1001,Children and Young People,CYP,Transport Related,CCA,07/01/2015,10-10421,1098,Town Cars (UK) Ltd,,,,,,,,,,
Nottinghamshire County Council,1111/1001,Children and Young People,CYP,Transport Related,CCA,07/01/2015,10-10422,607.5,Town Cars (UK) Ltd,,,,,,,,,,
Nottinghamshire County Council,1111/1001,Children and Young People,CYP,Transport Related,CCA,07/01/2015,10-10424,630,Town Cars (UK) Ltd,,,,,,,,,,
Nottinghamshire County Council,1111/1001,Children and Young People,CYP,Transport Related,CCA,07/01/2015,10-10429,628.2,Diamond Cars,,,,,,,,,,
Nottinghamshire County Council,1111/1001,Children and Young People,CYP,Transport Related,CCA,15/01/2015,10-10847,1213.8,Central Cars Nottm Ltd,,,,,,,,,,
Nottinghamshire County Council,1111/1001,Children and Young People,CYP,Transport Related,CCA,15/01/2015,10-10848,1127.1,Central Cars Nottm Ltd,,,,,,,,,,
Nottinghamshire County Council,1111/1001,Children and Young People,CYP,Transport Related,CCA,15/01/2015,10-10849,1500,Central Cars Nottm Ltd,,,,,,,,,,
Nottinghamshire County Council,1111/1001,Children and Young People,CYP,Transport Related,CCA,15/01/2015,10-10850,1326,Central Cars Nottm Ltd,,,,,,,,,,
Nottinghamshire County Council,1111/1001,Children and Young People,CYP,Transport Related,CCA,15/01/2015,10-10851,1170,Central Cars Nottm Ltd,,,,,,,,,,
Nottinghamshire County Council,1111/1001,Children and Young People,CYP,Transport Related,CCA,15/01/2015,10-10852,1634.1,Central Cars Nottm Ltd,,,,,,,,,,
Nottinghamshire County Council,1111/1001,Children and Young People,CYP,Transport Related,CCA,15/01/2015,10-10853,1575.14,Central Cars Nottm Ltd,,,,,,,,,,
Nottinghamshire County Council,1111/1001,Children and Young People,CYP,Transport Related,CCA,15/01/2015,10-10857,1875,Johnson Bros Tours Ltd,,,,,,,,,,
Nottinghamshire County Council,1111/1001,Children and Young People,CYP,Transport Related,CCA,15/01/2015,10-10862,2211.35,Marriotts Travel,,,,,,,,,,
Nottinghamshire County Council,1111/1001,Children and Young People,CYP,Transport Related,CCA,15/01/2015,10-10863,2912,Marriotts Travel,,,,,,,,,,
Nottinghamshire County Council,1111/1001,Children and Young People,CYP,Transport Related,CCA,15/01/2015,10-10864,1703.26,Martins Travel,,,,,,,,,,
Nottinghamshire County Council,1111/1001,Children and Young People,CYP,Transport Related,CCA,15/01/2015,10-10867,2450,Redfern Travel,,,,,,,,,,
Nottinghamshire County Council,1111/1001,Children and Young People,CYP,Transport Related,CCA,15/01/2015,10-10868,1040,Redfern Travel,,,,,,,,,,
Nottinghamshire County Council,1111/1001,Children and Young People,CYP,Transport Related,CCA,15/01/2015,10-10869,1978.34,CBC Taxis Ltd,,,,,,,,,,
Nottinghamshire County Council,1111/1001,Children and Young People,CYP,Transport Related,CCA,15/01/2015,10-10870,1048.8,CBC Taxis Ltd,,,,,,,,,,
Nottinghamshire County Council,1111/1001,Children and Young People,CYP,Transport Related,CCA,15/01/2015,10-10875,595.68,CBC Taxis Ltd,,,,,,,,,,
Nottinghamshire County Council,1111/1001,Children and Young People,CYP,Transport Related,CCA,15/01/2015,10-10879,1254.4,Arrow Specialised Transport Ltd,,,,,,,,,,
Nottinghamshire County Council,1111/1001,Children and Young People,CYP,Transport Related,CCA,15/01/2015,10-10880,1744.95,Arrow Specialised Transport Ltd,,,,,,,,,,
Nottinghamshire County Council,1111/1001,Children and Young People,CYP,Transport Related,CCA,15/01/2015,10-10881,1630.98,Arrow Specialised Transport Ltd,,,,,,,,,,
Nottinghamshire County Council,1111/1001,Children and Young People,CYP,Transport Related,CCA,15/01/2015,10-10882,738.32,Arrow Specialised Transport Ltd,,,,,,,,,,
Nottinghamshire County Council,1111/1001,Children and Young People,CYP,Transport Related,CCA,15/01/2015,10-10883,1766.38,Arrow Specialised Transport Ltd,,,,,,,,,,
Nottinghamshire County Council,1111/1001,Children and Young People,CYP,Transport Related,CCA,15/01/2015,10-10884,1282.09,Arrow Specialised Transport Ltd,,,,,,,,,,
Nottinghamshire County Council,1111/1001,Children and Young People,CYP,Transport Related,CCA,15/01/2015,10-10886,1759.5,Arrow Specialised Transport Ltd,,,,,,,,,,
Nottinghamshire County Council,1111/1001,Children and Young People,CYP,Transport Related,CCA,15/01/2015,10-10887,2072,Arrow Specialised Transport Ltd,,,,,,,,,,
Nottinghamshire County Council,1111/1001,Children and Young People,CYP,Transport Related,CCA,15/01/2015,10-10888,7019.7,Bridges Transport Services,,,,,,,,,,
Nottinghamshire County Council,1111/1001,Children and Young People,CYP,Transport Related,CCA,15/01/2015,10-10889,3590,Butler Brothers Ltd,,,,,,,,,,
Nottinghamshire County Council,1111/1001,Children and Young People,CYP,Transport Related,CCA,15/01/2015,10-10890,2513,Butler Brothers Ltd,,,,,,,,,,
Nottinghamshire County Council,1111/1001,Children and Young People,CYP,Transport Related,CCA,15/01/2015,10-10891,364.06,Fozcabs Newark Taxis,,,,,,,,,,
Nottinghamshire County Council,1111/1001,Children and Young People,CYP,Transport Related,CCA,15/01/2015,10-10894,960,Fozcabs Newark Taxis,,,,,,,,,,
Nottinghamshire County Council,1111/1001,Children and Young People,CYP,Transport Related,CCA,15/01/2015,10-10895,1481.7,Headland Taxi Services,,,,,,,,,,
Nottinghamshire County Council,1111/1001,Children and Young People,CYP,Transport Related,CCA,15/01/2015,10-10896,1081.1,Headland Taxi Services,,,,,,,,,,
Nottinghamshire County Council,1111/1001,Children and Young People,CYP,Transport Related,CCA,15/01/2015,10-10897,1300.95,Ja Travel Ltd,,,,,,,,,,
Nottinghamshire County Council,1111/1001,Children and Young People,CYP,Transport Related,CCA,15/01/2015,10-10898,2437.35,Ja Travel Ltd,,,,,,,,,,
Nottinghamshire County Council,1111/1001,Children and Young People,CYP,Transport Related,CCA,15/01/2015,10-10899,1834.35,Ja Travel Ltd,,,,,,,,,,
Nottinghamshire County Council,1111/1001,Children and Young People,CYP,Transport Related,CCA,15/01/2015,10-10903,952,Oasis Taxis Mansfield Ltd,,,,,,,,,,
Nottinghamshire County Council,1111/1001,Children and Young People,CYP,Transport Related,CCA,15/01/2015,10-10904,1020,Oasis Taxis Mansfield Ltd,,,,,,,,,,
Nottinghamshire County Council,1111/1001,Children and Young People,CYP,Transport Related,CCA,15/01/2015,10-10905,1672.19,Oasis Taxis Mansfield Ltd,,,,,,,,,,
Nottinghamshire County Council,1111/1001,Children and Young People,CYP,Transport Related,CCA,15/01/2015,10-10906,2135,Oasis Taxis Mansfield Ltd,,,,,,,,,,
Nottinghamshire County Council,1111/1001,Children and Young People,CYP,Transport Related,CCA,15/01/2015,10-10907,2080.8,Oasis Taxis Mansfield Ltd,,,,,,,,,,
Nottinghamshire County Council,1111/1001,Children and Young People,CYP,Transport Related,CCA,15/01/2015,10-10908,1380,Sprays Transport Ltd,,,,,,,,,,
Nottinghamshire County Council,1111/1001,Children and Young People,CYP,Transport Related,CCA,15/01/2015,10-10909,1960,Sprays Transport Ltd,,,,,,,,,,
Nottinghamshire County Council,1111/1001,Children and Young People,CYP,Transport Related,CCA,15/01/2015,10-10910,510,Sprays Transport Ltd,,,,,,,,,,
Nottinghamshire County Council,1111/1001,Children and Young People,CYP,Transport Related,CCA,15/01/2015,10-10911,1267.2,Sprays Transport Ltd,,,,,,,,,,
Nottinghamshire County Council,1111/1001,Children and Young People,CYP,Transport Related,CCA,15/01/2015,10-10912,1250.4,Sprays Transport Ltd,,,,,,,,,,
Nottinghamshire County Council,1111/1001,Children and Young People,CYP,Transport Related,CCA,15/01/2015,10-10913,1298.08,Sprays Transport Ltd,,,,,,,,,,
Nottinghamshire County Council,1111/1001,Children and Young People,CYP,Transport Related,CCA,15/01/2015,10-10914,1197.68,Sprays Transport Ltd,,,,,,,,,,
Nottinghamshire County Council,1111/1001,Children and Young People,CYP,Transport Related,CCA,15/01/2015,10-10916,1376.1,Sprays Transport Ltd,,,,,,,,,,
Nottinghamshire County Council,1111/1001,Children and Young People,CYP,Transport Related,CCA,15/01/2015,10-10917,1298.1,Sprays Transport Ltd,,,,,,,,,,
Nottinghamshire County Council,1111/1001,Children and Young People,CYP,Transport Related,CCA,15/01/2015,10-10918,1425,Sprays Transport Ltd,,,,,,,,,,
Nottinghamshire County Council,1111/1001,Children and Young People,CYP,Transport Related,CCA,15/01/2015,10-10919,1359.9,Sprays Transport Ltd,,,,,,,,,,
Nottinghamshire County Council,1111/1001,Children and Young People,CYP,Transport Related,CCA,15/01/2015,10-10920,1452.6,Sprays Transport Ltd,,,,,,,,,,
Nottinghamshire County Council,1111/1001,Children and Young People,CYP,Transport Related,CCA,15/01/2015,10-10921,1225.98,Sprays Transport Ltd,,,,,,,,,,
Nottinghamshire County Council,1111/1001,Children and Young People,CYP,Transport Related,CCA,15/01/2015,10-10922,1313.76,Sprays Transport Ltd,,,,,,,,,,
Nottinghamshire County Council,1111/1001,Children and Young People,CYP,Transport Related,CCA,15/01/2015,10-10923,1581.9,Sprays Transport Ltd,,,,,,,,,,
Nottinghamshire County Council,1111/1001,Children and Young People,CYP,Transport Related,CCA,15/01/2015,10-10928,3433.14,BN Gibson Ltd,,,,,,,,,,
Nottinghamshire County Council,1111/1001,Children and Young People,CYP,Transport Related,CCA,15/01/2015,10-10929,2641.01,BN Gibson Ltd,,,,,,,,,,
Nottinghamshire County Council,1111/1001,Children and Young People,CYP,Transport Related,CCA,15/01/2015,10-10931,3670,BN Gibson Ltd,,,,,,,,,,
Nottinghamshire County Council,1111/1001,Children and Young People,CYP,Transport Related,CCA,15/01/2015,10-10932,2751.96,BN Gibson Ltd,,,,,,,,,,
Nottinghamshire County Council,1111/1001,Children and Young People,CYP,Transport Related,CCA,15/01/2015,10-10933,3722.2,BN Gibson Ltd,,,,,,,,,,
Nottinghamshire County Council,1111/1001,Children and Young People,CYP,Transport Related,CCA,15/01/2015,10-10934,3419.4,BN Gibson Ltd,,,,,,,,,,
Nottinghamshire County Council,1111/1001,Children and Young People,CYP,Transport Related,CCA,15/01/2015,10-10936,3337.6,BN Gibson Ltd,,,,,,,,,,
Nottinghamshire County Council,1111/1001,Children and Young People,CYP,Transport Related,CCA,15/01/2015,10-10937,4262.2,BN Gibson Ltd,,,,,,,,,,
Nottinghamshire County Council,1111/1001,Children and Young People,CYP,Transport Related,CCA,15/01/2015,10-10938,4587,BN Gibson Ltd,,,,,,,,,,
Nottinghamshire County Council,1111/1001,Children and Young People,CYP,Transport Related,CCA,15/01/2015,10-10939,3768.6,BN Gibson Ltd,,,,,,,,,,
Nottinghamshire County Council,1111/1001,Children and Young People,CYP,Transport Related,CCA,15/01/2015,10-10940,3617.6,BN Gibson Ltd,,,,,,,,,,
Nottinghamshire County Council,1111/1001,Children and Young People,CYP,Transport Related,CCA,15/01/2015,10-10941,3890.25,BN Gibson Ltd,,,,,,,,,,
Nottinghamshire County Council,1111/1001,Children and Young People,CYP,Transport Related,CCA,15/01/2015,10-10942,2950.89,BN Gibson Ltd,,,,,,,,,,
Nottinghamshire County Council,1111/1001,Children and Young People,CYP,Transport Related,CCA,15/01/2015,10-10943,2329.21,BN Gibson Ltd,,,,,,,,,,
Nottinghamshire County Council,1111/1001,Children and Young People,CYP,Transport Related,CCA,15/01/2015,10-10945,3537.8,BN Gibson Ltd,,,,,,,,,,
Nottinghamshire County Council,1111/1001,Children and Young People,CYP,Transport Related,CCA,15/01/2015,10-10946,3131.2,BN Gibson Ltd,,,,,,,,,,
Nottinghamshire County Council,1111/1001,Children and Young People,CYP,Transport Related,CCA,15/01/2015,10-10950,1755.01,BN Gibson Ltd,,,,,,,,,,
Nottinghamshire County Council,1111/1001,Children and Young People,CYP,Transport Related,CCA,15/01/2015,10-10954,580,D G Private Hire Ltd,,,,,,,,,,
Nottinghamshire County Council,1111/1001,Children and Young People,CYP,Transport Related,CCA,15/01/2015,10-10955,900,D G Private Hire Ltd,,,,,,,,,,
Nottinghamshire County Council,1111/1001,Children and Young People,CYP,Transport Related,CCA,15/01/2015,10-10966,1882.5,Abacus Cars,,,,,,,,,,
Nottinghamshire County Council,1111/1001,Children and Young People,CYP,Transport Related,CCA,15/01/2015,10-10968,1590,Abacus Cars,,,,,,,,,,
Nottinghamshire County Council,1111/1001,Children and Young People,CYP,Transport Related,CCA,15/01/2015,10-10970,2677.5,Abacus Cars,,,,,,,,,,
Nottinghamshire County Council,1111/1001,Children and Young People,CYP,Transport Related,CCA,15/01/2015,10-10971,1224,Abacus Cars,,,,,,,,,,
Nottinghamshire County Council,1111/1001,Children and Young People,CYP,Transport Related,CCA,15/01/2015,10-10972,1200,Abacus Cars,,,,,,,,,,
Nottinghamshire County Council,1111/1001,Children and Young People,CYP,Transport Related,CCA,15/01/2015,10-10974,979.2,Abacus Cars,,,,,,,,,,
Nottinghamshire County Council,1111/1001,Children and Young People,CYP,Transport Related,CCA,15/01/2015,10-10977,1200,AOT Coaches,,,,,,,,,,
Nottinghamshire County Council,1111/1001,Children and Young People,CYP,Transport Related,CCA,15/01/2015,10-10978,720,AOT Coaches,,,,,,,,,,
Nottinghamshire County Council,1111/1001,Children and Young People,CYP,Transport Related,CCA,15/01/2015,10-10990,660,Jb Tours Watnall Ltd,,,,,,,,,,
Nottinghamshire County Council,1111/1001,Children and Young People,CYP,Transport Related,CCA,15/01/2015,10-10991,780,Jb Tours Watnall Ltd,,,,,,,,,,
Nottinghamshire County Council,1111/1001,Children and Young People,CYP,Transport Related,CCA,15/01/2015,10-10999,2175.03,Marshalls Of Sutton On Trent Ltd,,,,,,,,,,
Nottinghamshire County Council,1111/1001,Children and Young People,CYP,Transport Related,CCA,15/01/2015,10-11007,1149.12,Nunns Cars,,,,,,,,,,
Nottinghamshire County Council,1111/1001,Children and Young People,CYP,Transport Related,CCA,15/01/2015,10-11008,1155,Silverdale Tours Nottm Ltd,,,,,,,,,,
Nottinghamshire County Council,1111/1001,Children and Young People,CYP,Transport Related,CCA,15/01/2015,10-11009,1755,Silverdale Tours Nottm Ltd,,,,,,,,,,
Nottinghamshire County Council,1111/1001,Children and Young People,CYP,Transport Related,CCA,15/01/2015,10-11022,324.52,P & P Taxis,,,,,,,,,,
Nottinghamshire County Council,1111/1001,Children and Young People,CYP,Transport Related,CCA,15/01/2015,10-11024,2448,P & P Taxis,,,,,,,,,,
Nottinghamshire County Council,1111/1001,Children and Young People,CYP,Transport Related,CCA,15/01/2015,10-11025,948.6,P & P Taxis,,,,,,,,,,
Nottinghamshire County Council,1111/1001,Children and Young People,CYP,Transport Related,CCA,16/01/2015,10-10532,1388.25,Phoenix Academy Trust,,,,,,,,,,
Nottinghamshire County Council,1111/1001,Children and Young People,CYP,Transport Related,CCA,16/01/2015,10-11054,1260,Sharpes Of Nottingham,,,,,,,,,,
Nottinghamshire County Council,1111/1001,Children and Young People,CYP,Transport Related,CCA,16/01/2015,10-11055,630,Sharpes Of Nottingham,,,,,,,,,,
Nottinghamshire County Council,1111/1001,Children and Young People,CYP,Transport Related,CCA,16/01/2015,10-11056,825,Sharpes Of Nottingham,,,,,,,,,,
Nottinghamshire County Council,1111/1001,Children and Young People,CYP,Transport Related,CCA,16/01/2015,10-11063,7150,Sharpes Of Nottingham,,,,,,,,,,
Nottinghamshire County Council,1111/1001,Children and Young People,CYP,Transport Related,CCA,16/01/2015,10-11065,1033.48,Southside Cars,,,,,,,,,,
Nottinghamshire County Council,1111/1001,Children and Young People,CYP,Transport Related,CCA,16/01/2015,10-11067,909,Cabline Uk Ltd,,,,,,,,,,
Nottinghamshire County Council,1111/1001,Children and Young People,CYP,Transport Related,CCA,16/01/2015,10-11068,707,Cabline Uk Ltd,,,,,,,,,,
Nottinghamshire County Council,1111/1001,Children and Young People,CYP,Transport Related,CCA,16/01/2015,10-11072,1600.35,Central Cars Nottm Ltd,,,,,,,,,,
Nottinghamshire County Council,1111/1001,Children and Young People,CYP,Transport Related,CCA,16/01/2015,10-11073,1080,Central Cars Nottm Ltd,,,,,,,,,,
Nottinghamshire County Council,1111/1001,Children and Young People,CYP,Transport Related,CCA,16/01/2015,10-11074,1473.6,Johnson Bros Tours Ltd,,,,,,,,,,
Nottinghamshire County Council,1111/1001,Children and Young People,CYP,Transport Related,CCA,16/01/2015,10-11096,1851.3,D G Private Hire Ltd,,,,,,,,,,
Nottinghamshire County Council,1111/1001,Children and Young People,CYP,Transport Related,CCA,16/01/2015,10-11097,2682,D G Private Hire Ltd,,,,,,,,,,
Nottinghamshire County Council,1111/1001,Children and Young People,CYP,Transport Related,CCA,16/01/2015,10-11098,1113.75,D G Private Hire Ltd,,,,,,,,,,
Nottinghamshire County Council,1111/1001,Children and Young People,CYP,Transport Related,CCA,16/01/2015,10-11099,911.25,D G Private Hire Ltd,,,,,,,,,,
Nottinghamshire County Council,1111/1001,Children and Young People,CYP,Transport Related,CCA,16/01/2015,10-11100,1200,D G Private Hire Ltd,,,,,,,,,,
Nottinghamshire County Council,1111/1001,Children and Young People,CYP,Transport Related,CCA,16/01/2015,10-11101,918,D G Private Hire Ltd,,,,,,,,,,
Nottinghamshire County Council,1111/1001,Children and Young People,CYP,Transport Related,CCA,16/01/2015,10-11102,1653.9,Erewash Community Transport,,,,,,,,,,
Nottinghamshire County Council,1111/1001,Children and Young People,CYP,Transport Related,CCA,16/01/2015,10-11103,2501.4,Erewash Community Transport,,,,,,,,,,
Nottinghamshire County Council,1111/1001,Children and Young People,CYP,Transport Related,CCA,16/01/2015,10-11104,683.25,Erewash Community Transport,,,,,,,,,,
Nottinghamshire County Council,1111/1001,Children and Young People,CYP,Transport Related,CCA,16/01/2015,10-11106,1500.9,Erewash Community Transport,,,,,,,,,,
Nottinghamshire County Council,1111/1001,Children and Young People,CYP,Transport Related,CCA,16/01/2015,10-11107,1741.2,Erewash Community Transport,,,,,,,,,,
Nottinghamshire County Council,1111/1001,Children and Young People,CYP,Transport Related,CCA,16/01/2015,10-11108,600,Galaxy Cabs,,,,,,,,,,
Nottinghamshire County Council,1111/1001,Children and Young People,CYP,Transport Related,CCA,16/01/2015,10-11112,639,Ng11 Cars,,,,,,,,,,
Nottinghamshire County Council,1111/1001,Children and Young People,CYP,Transport Related,CCA,16/01/2015,10-11113,630,Ng11 Cars,,,,,,,,,,
Nottinghamshire County Council,1111/1001,Children and Young People,CYP,Transport Related,CCA,16/01/2015,10-11114,1210,Ng11 Cars,,,,,,,,,,
Nottinghamshire County Council,1111/1001,Children and Young People,CYP,Transport Related,CCA,16/01/2015,10-11116,1820,Shelleys Taxis Ltd,,,,,,,,,,
Nottinghamshire County Council,1111/1001,Children and Young People,CYP,Transport Related,CCA,16/01/2015,10-11117,825,Shelleys Taxis Ltd,,,,,,,,,,
Nottinghamshire County Council,1111/1001,Children and Young People,CYP,Transport Related,CCA,16/01/2015,10-11118,1050,Shelleys Taxis Ltd,,,,,,,,,,
Nottinghamshire County Council,1111/1001,Children and Young People,CYP,Transport Related,CCA,16/01/2015,10-11119,900,Shelleys Taxis Ltd,,,,,,,,,,
Nottinghamshire County Council,1111/1001,Children and Young People,CYP,Transport Related,CCA,16/01/2015,10-11121,804,Shelleys Taxis Ltd,,,,,,,,,,
Nottinghamshire County Council,1111/1001,Children and Young People,CYP,Transport Related,CCA,16/01/2015,10-11122,900,Shelleys Taxis Ltd,,,,,,,,,,
Nottinghamshire County Council,1111/1001,Children and Young People,CYP,Transport Related,CCA,16/01/2015,10-11124,921.6,Shelleys Taxis Ltd,,,,,,,,,,
Nottinghamshire County Council,1111/1001,Children and Young People,CYP,Transport Related,CCA,16/01/2015,10-11125,612,Shelleys Taxis Ltd,,,,,,,,,,
Nottinghamshire County Council,1111/1001,Children and Young People,CYP,Transport Related,CCA,16/01/2015,10-11126,1080,Shelleys Taxis Ltd,,,,,,,,,,
Nottinghamshire County Council,1111/1001,Children and Young People,CYP,Transport Related,CCA,16/01/2015,10-11127,1695,Sprays Transport Ltd,,,,,,,,,,
Nottinghamshire County Council,1111/1001,Children and Young People,CYP,Transport Related,CCA,16/01/2015,10-11128,1595.1,Sprays Transport Ltd,,,,,,,,,,
Nottinghamshire County Council,1111/1001,Children and Young People,CYP,Transport Related,CCA,16/01/2015,10-11131,2338.14,BN Gibson Ltd,,,,,,,,,,
Nottinghamshire County Council,1111/1001,Children and Young People,CYP,Transport Related,CCA,16/01/2015,10-11132,2241.67,BN Gibson Ltd,,,,,,,,,,
Nottinghamshire County Council,1111/1001,Children and Young People,CYP,Transport Related,CCA,16/01/2015,10-11133,854.6,123 Taxis,,,,,,,,,,
Nottinghamshire County Council,1111/1001,Children and Young People,CYP,Transport Related,CCA,16/01/2015,10-11134,1698,123 Taxis,,,,,,,,,,
Nottinghamshire County Council,1111/1001,Children and Young People,CYP,Transport Related,CCA,16/01/2015,10-11136,600,D G Private Hire Ltd,,,,,,,,,,
Nottinghamshire County Council,1111/1001,Children and Young People,CYP,Transport Related,CCA,16/01/2015,10-11142,1275,D G Private Hire Ltd,,,,,,,,,,
Nottinghamshire County Council,1111/1001,Children and Young People,CYP,Transport Related,CCA,16/01/2015,10-11143,1392.3,D G Private Hire Ltd,,,,,,,,,,
Nottinghamshire County Council,1111/1001,Children and Young People,CYP,Transport Related,CCA,16/01/2015,10-11144,897,D G Private Hire Ltd,,,,,,,,,,
Nottinghamshire County Council,1111/1001,Children and Young People,CYP,Transport Related,CCA,16/01/2015,10-11145,1125.6,D G Private Hire Ltd,,,,,,,,,,
Nottinghamshire County Council,1111/1001,Children and Young People,CYP,Transport Related,CCA,16/01/2015,10-11146,1213.8,D G Private Hire Ltd,,,,,,,,,,
Nottinghamshire County Council,1111/1001,Children and Young People,CYP,Transport Related,CCA,16/01/2015,10-11147,1400,D G Private Hire Ltd,,,,,,,,,,
Nottinghamshire County Council,1111/1001,Children and Young People,CYP,Transport Related,CCA,16/01/2015,10-11148,807.66,D G Private Hire Ltd,,,,,,,,,,
Nottinghamshire County Council,1111/1001,Children and Young People,CYP,Transport Related,CCA,16/01/2015,10-11150,600,D G Private Hire Ltd,,,,,,,,,,
Nottinghamshire County Council,1111/1001,Children and Young People,CYP,Transport Related,CCA,16/01/2015,10-11157,4994.4,Stagecoach Services Ltd,,,,,,,,,,
Nottinghamshire County Council,1111/1001,Children and Young People,CYP,Transport Related,CCA,16/01/2015,10-11204,1417.91,Rio Cabs,,,,,,,,,,
Nottinghamshire County Council,1111/1001,Children and Young People,CYP,Transport Related,CCA,16/01/2015,10-11205,1158.36,Rio Cabs,,,,,,,,,,
Nottinghamshire County Council,1111/1001,Children and Young People,CYP,Transport Related,CCA,16/01/2015,10-11211,1227.9,Ace Cars,,,,,,,,,,
Nottinghamshire County Council,1111/1001,Children and Young People,CYP,Transport Related,CCA,16/01/2015,10-11212,741.75,Ace Cars,,,,,,,,,,
Nottinghamshire County Council,1111/1001,Children and Young People,CYP,Transport Related,CCA,16/01/2015,10-11213,1251.75,Ace Cars,,,,,,,,,,
Nottinghamshire County Council,1111/1001,Children and Young People,CYP,Transport Related,CCA,20/01/2015,10-11542,600,SJW (Muskham) Ltd T/A Z Cars,,,,,,,,,,
Nottinghamshire County Council,1111/1001,Children and Young People,CYP,Transport Related,CCA,20/01/2015,10-11543,600,Fozcabs Newark Taxis,,,,,,,,,,
Nottinghamshire County Council,1111/1001,Children and Young People,CYP,Transport Related,CCA,20/01/2015,10-11544,487.5,Fozcabs Newark Taxis,,,,,,,,,,
Nottinghamshire County Council,1111/1001,Children and Young People,CYP,Transport Related,CCA,20/01/2015,10-11549,1411.66,Silverdale Tours Nottm Ltd,,,,,,,,,,
Nottinghamshire County Council,1111/1001,Children and Young People,CYP,Transport Related,CCA,20/01/2015,10-11550,2047.5,Silverdale Tours Nottm Ltd,,,,,,,,,,
Nottinghamshire County Council,1111/1001,Children and Young People,CYP,Transport Related,CCA,21/01/2015,10-11621,1417,6 Five 2s,,,,,,,,,,
Nottinghamshire County Council,1111/1001,Children and Young People,CYP,Transport Related,CCA,26/01/2015,10-11839,1192.5,Tiger European Uk Ltd,,,,,,,,,,
Nottinghamshire County Council,1111/1001,Children and Young People,CYP,Transport Related,CCA,27/01/2015,10-15635,1296,Central Cars Nottm Ltd,,,,,,,,,,
Nottinghamshire County Council,1111/1001,Children and Young People,CYP,Transport Related,CCA,27/01/2015,10-15637,1728,Central Cars Nottm Ltd,,,,,,,,,,
Nottinghamshire County Council,1111/1001,Children and Young People,CYP,Transport Related,CCA,27/01/2015,10-15639,1260,Central Cars Nottm Ltd,,,,,,,,,,
Nottinghamshire County Council,1111/1001,Children and Young People,CYP,Transport Related,CCA,27/01/2015,10-15640,1680,Central Cars Nottm Ltd,,,,,,,,,,
Nottinghamshire County Council,1111/1001,Children and Young People,CYP,Transport Related,CCA,27/01/2015,10-15641,600,Central Cars Nottm Ltd,,,,,,,,,,
Nottinghamshire County Council,1111/1001,Children and Young People,CYP,Transport Related,CCA,27/01/2015,10-15644,1200,D G Private Hire Ltd,,,,,,,,,,
Nottinghamshire County Council,1111/1001,Children and Young People,CYP,Transport Related,CCA,27/01/2015,10-15645,2472.14,D G Private Hire Ltd,,,,,,,,,,
Nottinghamshire County Council,1111/1001,Children and Young People,CYP,Transport Related,CCA,27/01/2015,10-15647,1575,Sprays Transport Ltd,,,,,,,,,,
Nottinghamshire County Council,1111/1001,Children and Young People,CYP,Transport Related,CCA,27/01/2015,10-15648,2860.95,BN Gibson Ltd,,,,,,,,,,
Nottinghamshire County Council,1111/1001,Children and Young People,CYP,Transport Related,CCA,27/01/2015,10-15649,2200.84,BN Gibson Ltd,,,,,,,,,,
Nottinghamshire County Council,1111/1001,Children and Young People,CYP,Transport Related,CCA,27/01/2015,10-15651,2961.6,BN Gibson Ltd,,,,,,,,,,
Nottinghamshire County Council,1111/1001,Children and Young People,CYP,Transport Related,CCA,27/01/2015,10-15652,2791.65,BN Gibson Ltd,,,,,,,,,,
Nottinghamshire County Council,1111/1001,Children and Young People,CYP,Transport Related,CCA,27/01/2015,10-15653,2564.55,BN Gibson Ltd,,,,,,,,,,
Nottinghamshire County Council,1111/1001,Children and Young People,CYP,Transport Related,CCA,27/01/2015,10-15655,2503.2,BN Gibson Ltd,,,,,,,,,,
Nottinghamshire County Council,1111/1001,Children and Young People,CYP,Transport Related,CCA,27/01/2015,10-15656,3196.65,BN Gibson Ltd,,,,,,,,,,
Nottinghamshire County Council,1111/1001,Children and Young People,CYP,Transport Related,CCA,27/01/2015,10-15657,3440.25,BN Gibson Ltd,,,,,,,,,,
Nottinghamshire County Council,1111/1001,Children and Young People,CYP,Transport Related,CCA,27/01/2015,10-15658,2887.2,BN Gibson Ltd,,,,,,,,,,
Nottinghamshire County Council,1111/1001,Children and Young People,CYP,Transport Related,CCA,27/01/2015,10-15659,2856,BN Gibson Ltd,,,,,,,,,,
Nottinghamshire County Council,1111/1001,Children and Young People,CYP,Transport Related,CCA,27/01/2015,10-15660,2329.65,BN Gibson Ltd,,,,,,,,,,
Nottinghamshire County Council,1111/1001,Children and Young People,CYP,Transport Related,CCA,27/01/2015,10-15661,1830,BN Gibson Ltd,,,,,,,,,,
Nottinghamshire County Council,1111/1001,Children and Young People,CYP,Transport Related,CCA,27/01/2015,10-15663,2653.35,BN Gibson Ltd,,,,,,,,,,
Nottinghamshire County Council,1111/1001,Children and Young People,CYP,Transport Related,CCA,27/01/2015,10-15664,2348.4,BN Gibson Ltd,,,,,,,,,,
Nottinghamshire County Council,1111/1001,Children and Young People,CYP,Transport Related,CCA,27/01/2015,10-15665,2093.4,BN Gibson Ltd,,,,,,,,,,
Nottinghamshire County Council,1111/1001,Children and Young People,CYP,Transport Related,CCA,27/01/2015,10-15669,1413.33,BN Gibson Ltd,,,,,,,,,,
Nottinghamshire County Council,1111/1001,Children and Young People,CYP,Transport Related,CCA,27/01/2015,10-15671,1081.65,Ace Cars,,,,,,,,,,
Nottinghamshire County Council,1111/1001,Children and Young People,CYP,Transport Related,CCA,27/01/2015,10-15672,628.2,Diamond Cars,,,,,,,,,,
Nottinghamshire County Council,1111/1001,Children and Young People,CYP,Transport Related,CCA,27/01/2015,10-15673,628.2,Diamond Cars,,,,,,,,,,
Nottinghamshire County Council,1111/1001,Children and Young People,CYP,Transport Related,CCA,27/01/2015,10-15674,575,Diamond Cars,,,,,,,,,,
Nottinghamshire County Council,1111/1001,Children and Young People,CYP,Transport Related,CCA,27/01/2015,10-15675,575,Diamond Cars,,,,,,,,,,
Nottinghamshire County Council,1111/1001,Children and Young People,CYP,Transport Related,CCA,27/01/2015,10-15676,1140,Eurocab 2000 Ltd,,,,,,,,,,
Nottinghamshire County Council,1111/1001,Children and Young People,CYP,Transport Related,CCA,27/01/2015,10-15677,2394,Eurocab 2000 Ltd,,,,,,,,,,
Nottinghamshire County Council,1111/1001,Children and Young People,CYP,Transport Related,CCA,27/01/2015,10-15678,2175,Eurocab 2000 Ltd,,,,,,,,,,
Nottinghamshire County Council,1111/1001,Children and Young People,CYP,Transport Related,CCA,27/01/2015,10-15679,1425,Eurocab 2000 Ltd,,,,,,,,,,
Nottinghamshire County Council,1111/1001,Children and Young People,CYP,Transport Related,CCA,30/01/2015,10-15810,2210.27,Arrow Specialised Transport Ltd,,,,,,,,,,
Nottinghamshire County Council,1111/1001,Children and Young People,CYP,Transport Related,CCA,30/01/2015,10-15811,1474.3,D G Private Hire Ltd,,,,,,,,,,
Nottinghamshire County Council,1111/1001,Children and Young People,CYP,Transport Related,CCA,30/01/2015,10-15812,2107.95,Sprays Transport Ltd,,,,,,,,,,
Nottinghamshire County Council,1111/1001,Children and Young People,CYP,Transport Related,CCA,30/01/2015,10-15813,1890,Sprays Transport Ltd,,,,,,,,,,
Nottinghamshire County Council,1111/1001,Children and Young People,CYP,Transport Related,CCA,30/01/2015,10-15814,2157.75,BN Gibson Ltd,,,,,,,,,,
Nottinghamshire County Council,1111/1001,Children and Young People,CYP,Transport Related,CCA,30/01/2015,10-15819,1863.9,BN Gibson Ltd,,,,,,,,,,
Nottinghamshire County Council,1111/1001,Children and Young People,CYP,Transport Related,CCA,30/01/2015,10-15820,2454.3,BN Gibson Ltd,,,,,,,,,,
Nottinghamshire County Council,1111/1001,Children and Young People,CYP,Transport Related,CDA,05/01/2015,10-10090,30000,C W Moxon Ltd,,,,,,,,,,
Nottinghamshire County Council,1111/1001,Children and Young People,CYP,Transport Related,CDA,05/01/2015,10-10091,15000,C W Moxon Ltd,,,,,,,,,,
Nottinghamshire County Council,1111/1001,Children and Young People,CYP,Transport Related,CDA,05/01/2015,10-10092,18000,Mass Special Engineering Ltd,,,,,,,,,,
Nottinghamshire County Council,1111/1001,Children and Young People,CYP,Transport Related,CDA,05/01/2015,10-10093,25000,Johnson Bros Tours Ltd,,,,,,,,,,
Nottinghamshire County Council,1111/1001,Children and Young People,CYP,Transport Related,CDA,06/01/2015,10-10206,1058.55,Arrow Specialised Transport Ltd,,,,,,,,,,
Nottinghamshire County Council,1111/1001,Children and Young People,CYP,Transport Related,CDA,06/01/2015,10-10213,522.83,Arrow Specialised Transport Ltd,,,,,,,,,,
Nottinghamshire County Council,1111/1001,Children and Young People,CYP,Transport Related,CDA,06/01/2015,10-10219,991.13,Arrow Specialised Transport Ltd,,,,,,,,,,
Nottinghamshire County Council,1111/1001,Children and Young People,CYP,Transport Related,CDA,06/01/2015,10-10246,1300,Nottingham Minibuses & Coaches,,,,,,,,,,
Nottinghamshire County Council,1111/1001,Children and Young People,CYP,Transport Related,CDA,06/01/2015,10-10247,1400,Nottingham Minibuses & Coaches,,,,,,,,,,
Nottinghamshire County Council,1111/1001,Children and Young People,CYP,Transport Related,CDA,06/01/2015,10-10249,1875,Nottingham Minibuses & Coaches,,,,,,,,,,
Nottinghamshire County Council,1111/1001,Children and Young People,CYP,Transport Related,CDA,06/01/2015,10-10250,1425,Nottingham Minibuses & Coaches,,,,,,,,,,
Nottinghamshire County Council,1111/1001,Children and Young People,CYP,Transport Related,CDA,06/01/2015,10-10251,1950,Nottingham Minibuses & Coaches,,,,,,,,,,
Nottinghamshire County Council,1111/1001,Children and Young People,CYP,Transport Related,CDA,06/01/2015,10-10252,2100,Nottingham Minibuses & Coaches,,,,,,,,,,
Nottinghamshire County Council,1111/1001,Children and Young People,CYP,Transport Related,CDA,06/01/2015,10-10254,2805,Nottingham Minibuses & Coaches,,,,,,,,,,
Nottinghamshire County Council,1111/1001,Children and Young People,CYP,Transport Related,CDA,06/01/2015,10-10255,5775,Nottingham Minibuses & Coaches,,,,,,,,,,
Nottinghamshire County Council,1111/1001,Children and Young People,CYP,Transport Related,CDA,07/01/2015,10-10313,151.24,Bridges Transport Services,,,,,,,,,,
Nottinghamshire County Council,1111/1001,Children and Young People,CYP,Transport Related,CDA,07/01/2015,10-10333,840,Galaxy Cabs,,,,,,,,,,
Nottinghamshire County Council,1111/1001,Children and Young People,CYP,Transport Related,CDA,15/01/2015,10-10877,1023,Ace Of Mansfield Ltd,,,,,,,,,,
Nottinghamshire County Council,1111/1001,Children and Young People,CYP,Transport Related,CDA,15/01/2015,10-10884,427.36,Arrow Specialised Transport Ltd,,,,,,,,,,
Nottinghamshire County Council,1111/1001,Children and Young People,CYP,Transport Related,CDA,15/01/2015,10-10891,182.02,Fozcabs Newark Taxis,,,,,,,,,,
Nottinghamshire County Council,1111/1001,Children and Young People,CYP,Transport Related,CDA,15/01/2015,10-10914,399.22,Sprays Transport Ltd,,,,,,,,,,
Nottinghamshire County Council,1111/1001,Children and Young People,CYP,Transport Related,CDA,15/01/2015,10-10929,880.33,BN Gibson Ltd,,,,,,,,,,
Nottinghamshire County Council,1111/1001,Children and Young People,CYP,Transport Related,CDA,15/01/2015,10-10951,530,D G Private Hire Ltd,,,,,,,,,,
Nottinghamshire County Council,1111/1001,Children and Young People,CYP,Transport Related,CDA,15/01/2015,10-10952,870,D G Private Hire Ltd,,,,,,,,,,
Nottinghamshire County Council,1111/1001,Children and Young People,CYP,Transport Related,CDA,15/01/2015,10-10963,2400,Abacus Cars,,,,,,,,,,
Nottinghamshire County Council,1111/1001,Children and Young People,CYP,Transport Related,CDA,15/01/2015,10-10965,525,Abacus Cars,,,,,,,,,,
Nottinghamshire County Council,1111/1001,Children and Young People,CYP,Transport Related,CDA,15/01/2015,10-10975,2706,AOT Coaches,,,,,,,,,,
Nottinghamshire County Council,1111/1001,Children and Young People,CYP,Transport Related,CDA,15/01/2015,10-10976,1485,AOT Coaches,,,,,,,,,,
Nottinghamshire County Council,1111/1001,Children and Young People,CYP,Transport Related,CDA,15/01/2015,10-11026,680.85,P & P Taxis,,,,,,,,,,
Nottinghamshire County Council,1111/1001,Children and Young People,CYP,Transport Related,CDA,16/01/2015,10-11135,1200,D G Private Hire Ltd,,,,,,,,,,
Nottinghamshire County Council,1111/1001,Children and Young People,CYP,Transport Related,CDA,16/01/2015,10-11141,625,D G Private Hire Ltd,,,,,,,,,,
Nottinghamshire County Council,1111/1001,Children and Young People,CYP,Transport Related,CDA,16/01/2015,10-11148,807.66,D G Private Hire Ltd,,,,,,,,,,
Nottinghamshire County Council,1111/1001,Children and Young People,CYP,Transport Related,CDA,16/01/2015,10-11150,600,D G Private Hire Ltd,,,,,,,,,,
Nottinghamshire County Council,1111/1001,Children and Young People,CYP,Transport Related,CDA,20/01/2015,10-11544,487.5,Fozcabs Newark Taxis,,,,,,,,,,
Nottinghamshire County Council,1111/1001,Children and Young People,CYP,Transport Related,CDA,20/01/2015,10-11546,1190.5,Fozcabs Newark Taxis,,,,,,,,,,
Nottinghamshire County Council,1111/1001,Children and Young People,CYP,Transport Related,CDA,26/01/2015,10-11838,4773.6,Paul S Winson Coaches,,,,,,,,,,
Nottinghamshire County Council,1111/1001,Children and Young People,CYP,Transport Related,CDA,27/01/2015,10-15635,144,Central Cars Nottm Ltd,,,,,,,,,,
Nottinghamshire County Council,1111/1001,Children and Young People,CYP,Transport Related,CDA,27/01/2015,10-15637,192,Central Cars Nottm Ltd,,,,,,,,,,
Nottinghamshire County Council,1111/1001,Children and Young People,CYP,Transport Related,CDA,27/01/2015,10-15649,733.61,BN Gibson Ltd,,,,,,,,,,
Nottinghamshire County Council,1111/1001,Children and Young People,CYP,Transport Related,CDA,30/01/2015,10-15814,719.25,BN Gibson Ltd,,,,,,,,,,
Nottinghamshire County Council,1111/1001,Children and Young People,CYP,Supplies & Services,DAA,15/01/2015,10-10818,10010.39,Lifesavers Direct,,,,,,,,,,
Nottinghamshire County Council,1111/1001,Children and Young People,CYP,Supplies & Services,DAA,21/01/2015,10-11620,515.97,George Spencer Academy,,,,,,,,,,
Nottinghamshire County Council,1111/1001,Children and Young People,CYP,Supplies & Services,DAA,30/01/2015,10-15781,113884.71,Holgate Primary & Nursery School,,,,,,,,,,
Nottinghamshire County Council,1111/1001,Children and Young People,CYP,Supplies & Services,DBA,06/01/2015,10-10272,246.45,Hallam Country Fresh Foods Ltd,,,,,,,,,,
Nottinghamshire County Council,1111/1001,Children and Young People,CYP,Supplies & Services,DBA,08/01/2015,10-10508,523.07,Brake Bros Ltd,,,,,,,,,,
Nottinghamshire County Council,1111/1001,Children and Young People,CYP,Supplies & Services,DBA,13/01/2015,10-10735,270.15,Hallam Country Fresh Foods Ltd,,,,,,,,,,
Nottinghamshire County Council,1111/1001,Children and Young People,CYP,Supplies & Services,DBA,16/01/2015,10-11238,101.43,M Maloney Country Butchers & B Ltd,,,,,,,,,,
Nottinghamshire County Council,1111/1001,Children and Young People,CYP,Supplies & Services,DBA,16/01/2015,10-11243,32.28,M Maloney Country Butchers & B Ltd,,,,,,,,,,
Nottinghamshire County Council,1111/1001,Children and Young People,CYP,Supplies & Services,DBA,16/01/2015,10-11247,104.26,M Maloney Country Butchers & B Ltd,,,,,,,,,,
Nottinghamshire County Council,1111/1001,Children and Young People,CYP,Supplies & Services,DBA,16/01/2015,10-11251,50.41,M Maloney Country Butchers & B Ltd,,,,,,,,,,
Nottinghamshire County Council,1111/1001,Children and Young People,CYP,Supplies & Services,DBA,20/01/2015,10-11555,265.75,Hallam Country Fresh Foods Ltd,,,,,,,,,,
Nottinghamshire County Council,1111/1001,Children and Young People,CYP,Supplies & Services,DBA,20/01/2015,10-11562,279.31,Brake Bros Ltd,,,,,,,,,,
Nottinghamshire County Council,1111/1001,Children and Young People,CYP,Supplies & Services,DBA,21/01/2015,10-11607,484.56,Brake Bros Ltd,,,,,,,,,,
Nottinghamshire County Council,1111/1001,Children and Young People,CYP,Supplies & Services,DBA,21/01/2015,10-11610,646.8,Brake Bros Ltd,,,,,,,,,,
Nottinghamshire County Council,1111/1001,Children and Young People,CYP,Supplies & Services,DBA,21/01/2015,10-11613,214.16,Brake Bros Ltd,,,,,,,,,,
Nottinghamshire County Council,1111/1001,Children and Young People,CYP,Supplies & Services,DBA,21/01/2015,10-11616,551.92,Brake Bros Ltd,,,,,,,,,,
Nottinghamshire County Council,1111/1001,Children and Young People,CYP,Supplies & Services,DBA,27/01/2015,10-15535,252.76,Hallam Country Fresh Foods Ltd,,,,,,,,,,
Nottinghamshire County Council,1111/1001,Children and Young People,CYP,Supplies & Services,DBA,27/01/2015,10-15541,136.08,Brake Bros Ltd,,,,,,,,,,
Nottinghamshire County Council,1111/1001,Children and Young People,CYP,Supplies & Services,DBA,27/01/2015,10-15546,660.86,Brake Bros Ltd,,,,,,,,,,
Nottinghamshire County Council,1111/1001,Children and Young People,CYP,Supplies & Services,DBA,27/01/2015,10-15550,175.01,Brake Bros Ltd,,,,,,,,,,
Nottinghamshire County Council,1111/1001,Children and Young People,CYP,Supplies & Services,DBA,28/01/2015,10-15693,697.05,Brake Bros Ltd,,,,,,,,,,
Nottinghamshire County Council,1111/1001,Children and Young People,CYP,Supplies & Services,DBA,28/01/2015,10-15697,114.65,Brake Bros Ltd,,,,,,,,,,
Nottinghamshire County Council,1111/1001,Children and Young People,CYP,Supplies & Services,DBA,29/01/2015,10-15734,100.39,M Maloney Country Butchers & B Ltd,,,,,,,,,,
Nottinghamshire County Council,1111/1001,Children and Young People,CYP,Supplies & Services,DBA,29/01/2015,10-15740,481.59,Brake Bros Ltd,,,,,,,,,,
Nottinghamshire County Council,1111/1001,Children and Young People,CYP,Supplies & Services,DBA,29/01/2015,10-15744,134.3,Brake Bros Ltd,,,,,,,,,,
Nottinghamshire County Council,1111/1001,Children and Young People,CYP,Supplies & Services,DBA,29/01/2015,10-15747,317.77,Brake Bros Ltd,,,,,,,,,,
Nottinghamshire County Council,1111/1001,Children and Young People,CYP,Supplies & Services,DBA,30/01/2015,10-15831,361.82,Brake Bros Ltd,,,,,,,,,,
Nottinghamshire County Council,1111/1001,Children and Young People,CYP,Supplies & Services,DBA,30/01/2015,10-15835,218.91,Brake Bros Ltd,,,,,,,,,,
Nottinghamshire County Council,1111/1001,Children and Young People,CYP,Supplies & Services,DBA,30/01/2015,10-15838,281.59,Brake Bros Ltd,,,,,,,,,,
Nottinghamshire County Council,1111/1001,Children and Young People,CYP,Supplies & Services,DBA,30/01/2015,10-15841,471.67,Brake Bros Ltd,,,,,,,,,,
Nottinghamshire County Council,1111/1001,Children and Young People,CYP,Supplies & Services,DEA,08/01/2015,10-10476,525,Radcliffe On Trent Day Nursery,,,,,,,,,,
Nottinghamshire County Council,1111/1001,Children and Young People,CYP,Supplies & Services,DEA,08/01/2015,10-10477,975,Radcliffe On Trent Day Nursery,,,,,,,,,,
Nottinghamshire County Council,1111/1001,Children and Young People,CYP,Supplies & Services,DEA,13/01/2015,10-10747,7058,Dukeries Academy,,,,,,,,,,
Nottinghamshire County Council,1111/1001,Children and Young People,CYP,Supplies & Services,DEA,19/01/2015,10-15860,1350,[Redacted],,,,,,,,,,
Nottinghamshire County Council,1111/1001,Children and Young People,CYP,Supplies & Services,DEA,28/01/2015,10-15867,1350,[Redacted],,,,,,,,,,
Nottinghamshire County Council,1111/1001,Children and Young People,CYP,Supplies & Services,DFA,09/01/2015,10-10521,551.94,Lantec Services Ltd,,,,,,,,,,
Nottinghamshire County Council,1111/1001,Children and Young People,CYP,Supplies & Services,DFA,16/01/2015,10-11217,522.65,Lantec Services Ltd,,,,,,,,,,
Nottinghamshire County Council,1111/1001,Children and Young People,CYP,Supplies & Services,DHA,16/01/2015,10-11285,3380,Zoes Childcare Ltd,,,,,,,,,,
Nottinghamshire County Council,1111/1001,Children and Young People,CYP,Supplies & Services,DKA,20/01/2015,10-11471,2000,[Redacted],,,,,,,,,,
Nottinghamshire County Council,1111/1001,Children and Young People,CYP,Supplies & Services,DKA,26/01/2015,10-11851,2937.94,College House Junior School,,,,,,,,,,
Nottinghamshire County Council,1111/1001,Children and Young People,CYP,Supplies & Services,DKA,26/01/2015,10-11855,4293,Priory Junior School,,,,,,,,,,
Nottinghamshire County Council,1111/1001,Children and Young People,CYP,Supplies & Services,DKA,27/01/2015,10-15680,28944.49,Priory Junior School,,,,,,,,,,
Nottinghamshire County Council,1111/1001,Children and Young People,CYP,Third Party Payments,EAA,19/01/2015,10-11376,275.82,Severn Trent Water Ltd,,,,,,,,,,
Nottinghamshire County Council,1111/1001,Children and Young People,CYP,Third Party Payments,EBA,28/01/2015,10-15510,1352,East Leake Schools Ltd,,,,,,,,,,
Nottinghamshire County Council,1111/1001,Children and Young People,CYP,Third Party Payments,EBA,28/01/2015,10-15511,17717.82,East Leake Schools Ltd,,,,,,,,,,
Nottinghamshire County Council,1111/1001,Children and Young People,CYP,Third Party Payments,EBA,28/01/2015,10-15512,1577.4,Transform Schools,,,,,,,,,,
Nottinghamshire County Council,1111/1001,Children and Young People,CYP,Third Party Payments,EBA,28/01/2015,10-15514,40375.7,Transform Schools,,,,,,,,,,
Nottinghamshire County Council,1111/1001,Children and Young People,CYP,Third Party Payments,EBA,28/01/2015,10-15515,19944.67,Transform Schools,,,,,,,,,,
Nottinghamshire County Council,1111/1001,Children and Young People,CYP,Third Party Payments,EBA,28/01/2015,10-15516,14257.45,Transform Schools,,,,,,,,,,
Nottinghamshire County Council,1111/1001,Children and Young People,CYP,Third Party Payments,EBA,28/01/2015,10-15517,32025,Transform Schools,,,,,,,,,,
Nottinghamshire County Council,1111/1001,Children and Young People,CYP,Third Party Payments,EBA,28/01/2015,10-15518,19338.95,Transform Schools,,,,,,,,,,
Nottinghamshire County Council,1111/1001,Children and Young People,CYP,Third Party Payments,EBA,28/01/2015,10-15613,234614.01,East Leake Schools Ltd,,,,,,,,,,
Nottinghamshire County Council,1111/1001,Children and Young People,CYP,Third Party Payments,EBA,28/01/2015,10-15614,1487917.77,Transform Schools,,,,,,,,,,
Nottinghamshire County Council,1111/1001,Children and Young People,CYP,Third Party Payments,EBA,30/01/2015,10-15786,23461.54,Home Group Limited,,,,,,,,,,
Nottinghamshire County Council,1111/1001,Children and Young People,CYP,Third Party Payments,EBA,30/01/2015,10-15790,1681.84,Metropolitan Housing Trust,,,,,,,,,,
Nottinghamshire County Council,1111/1001,Children and Young People,CYP,Third Party Payments,EBA,30/01/2015,10-15793,20912.09,Newark Emmaus Trust,,,,,,,,,,
Nottinghamshire County Council,1111/1001,Children and Young People,CYP,Third Party Payments,EBA,30/01/2015,10-15797,24162.47,Framework Housing Association,,,,,,,,,,
Nottinghamshire County Council,1111/1001,Children and Young People,CYP,Third Party Payments,EBA,30/01/2015,10-15799,22406.75,Nottingham Community Housing,,,,,,,,,,
Nottinghamshire County Council,1111/1001,Children and Young People,CYP,Third Party Payments,EDA,02/01/2015,10-10065,4291,Retford Oaks Academy,,,,,,,,,,
Nottinghamshire County Council,1111/1001,Children and Young People,CYP,Third Party Payments,EDA,07/01/2015,10-10444,81782,Foxwood Academy,,,,,,,,,,
Nottinghamshire County Council,1111/1001,Children and Young People,CYP,Third Party Payments,EDA,08/01/2015,10-10492,52412,Barnby Road Academy Prim & Nursery,,,,,,,,,,
Nottinghamshire County Council,1111/1001,Children and Young People,CYP,Third Party Payments,EDA,16/01/2015,10-11273,1765,The Bramcote School,,,,,,,,,,
Nottinghamshire County Council,1111/1001,Children and Young People,CYP,Third Party Payments,EDA,16/01/2015,10-11274,7932,Alderman White School,,,,,,,,,,
Nottinghamshire County Council,1111/1001,Children and Young People,CYP,Third Party Payments,EDA,20/01/2015,10-11569,13995,The Carlton Academy,,,,,,,,,,
Nottinghamshire County Council,1111/1001,Children and Young People,CYP,Third Party Payments,EDA,20/01/2015,10-11570,1846,Holy Cross Catholic Voluntary Acade,,,,,,,,,,
Nottinghamshire County Council,1111/1001,Children and Young People,CYP,Third Party Payments,EDA,20/01/2015,10-11571,7748,The Becket Catholic Voluntary Acade,,,,,,,,,,
Nottinghamshire County Council,1111/1001,Children and Young People,CYP,Third Party Payments,EDA,20/01/2015,10-11572,3879,St Edmund Campion Voluntary Academy,,,,,,,,,,
Nottinghamshire County Council,1111/1001,Children and Young People,CYP,Third Party Payments,EDA,20/01/2015,10-11573,2695,Redhill Academy,,,,,,,,,,
Nottinghamshire County Council,1111/1001,Children and Young People,CYP,Third Party Payments,EDA,20/01/2015,10-11574,3926,St Edmund Campion Voluntary Academy,,,,,,,,,,
Nottinghamshire County Council,1111/1001,Children and Young People,CYP,Third Party Payments,EDA,20/01/2015,10-11575,11188,The Becket Catholic Voluntary Acade,,,,,,,,,,
Nottinghamshire County Council,1111/1001,Children and Young People,CYP,Third Party Payments,EDA,20/01/2015,10-11576,2300,Quarrydale Academy,,,,,,,,,,
Nottinghamshire County Council,1111/1001,Children and Young People,CYP,Third Party Payments,EDA,22/01/2015,10-11568,5130,The Priory Catholic Voluntary Acade,,,,,,,,,,
Nottinghamshire County Council,1111/1001,Children and Young People,CYP,Third Party Payments,EDA,22/01/2015,10-11631,40907,Cotgrave Candleby Lane School,,,,,,,,,,
Nottinghamshire County Council,1111/1001,Children and Young People,CYP,Third Party Payments,EDA,22/01/2015,10-11632,20037,Sacred Heart Catholic Voluntary Aca,,,,,,,,,,
Nottinghamshire County Council,1111/1001,Children and Young People,CYP,Third Party Payments,EDA,22/01/2015,10-11633,32925,Serlby Park Academy,,,,,,,,,,
Nottinghamshire County Council,1111/1001,Children and Young People,CYP,Third Party Payments,EDA,22/01/2015,10-11634,27153,St Philip Neri with St Bede Vol Aca,,,,,,,,,,
Nottinghamshire County Council,1111/1001,Children and Young People,CYP,Third Party Payments,EDA,22/01/2015,10-11636,12623,Tuxford Primary Academy,,,,,,,,,,
Nottinghamshire County Council,1111/1001,Children and Young People,CYP,Third Party Payments,EDA,23/01/2015,10-11755,28080,Wainwright Primary Academy,,,,,,,,,,
Nottinghamshire County Council,1111/1001,Children and Young People,CYP,Third Party Payments,EDA,26/01/2015,10-11847,1065,Ashfield Academy,,,,,,,,,,
Nottinghamshire County Council,1111/1001,Children and Young People,CYP,Third Party Payments,EDA,27/01/2015,10-15616,7040,George Spencer Academy,,,,,,,,,,
Nottinghamshire County Council,1111/1001,Children and Young People,CYP,Third Party Payments,EDA,27/01/2015,10-15617,5740,Chetwynd Road Primary Academy,,,,,,,,,,
Nottinghamshire County Council,1111/1001,Children and Young People,CYP,Third Party Payments,EDA,27/01/2015,10-15618,582,Cotgrave Candleby Lane School,,,,,,,,,,
Nottinghamshire County Council,1111/1001,Children and Young People,CYP,Third Party Payments,EDA,27/01/2015,10-15619,6696,Quarrydale Academy,,,,,,,,,,
Nottinghamshire County Council,1111/1001,Children and Young People,CYP,Third Party Payments,EDA,27/01/2015,10-15620,1810,West Bridgford Academy,,,,,,,,,,
Nottinghamshire County Council,1111/1001,Children and Young People,CYP,Third Party Payments,EDA,27/01/2015,10-15621,1149,Carlton Le Willows Academy,,,,,,,,,,
Nottinghamshire County Council,1111/1001,Children and Young People,CYP,Third Party Payments,EDA,27/01/2015,10-15622,16416,St Philip Neri with St Bede Vol Aca,,,,,,,,,,
Nottinghamshire County Council,1111/1001,Children and Young People,CYP,Third Party Payments,EGA,02/01/2015,10-10066,2244.69,Ordsall Pre-School,,,,,,,,,,
Nottinghamshire County Council,1111/1001,Children and Young People,CYP,Third Party Payments,EGA,02/01/2015,10-10067,1182,Alphabet House Nursery,,,,,,,,,,
Nottinghamshire County Council,1111/1001,Children and Young People,CYP,Third Party Payments,EGA,02/01/2015,10-10068,21637.73,DUPLICATE-Discovery Day Nursery,,,,,,,,,,
Nottinghamshire County Council,1111/1001,Children and Young People,CYP,Third Party Payments,EGA,02/01/2015,10-10069,15533.28,Scottswood Pdn Ltd,,,,,,,,,,
Nottinghamshire County Council,1111/1001,Children and Young People,CYP,Third Party Payments,EGA,02/01/2015,10-10070,12991.86,Scotts Wood Private Day Nursery,,,,,,,,,,
Nottinghamshire County Council,1111/1001,Children and Young People,CYP,Third Party Payments,EGA,02/01/2015,10-15844,1130074.33,Nottinghamshire Healthcare Nhs Trus,,,,,,,,,,
Nottinghamshire County Council,1111/1001,Children and Young People,CYP,Third Party Payments,EGA,05/01/2015,10-10096,28343.11,Breedon House Nurseries Ltd,,,,,,,,,,
Nottinghamshire County Council,1111/1001,Children and Young People,CYP,Third Party Payments,EGA,05/01/2015,10-15846,7654,Wyntax,,,,,,,,,,
Nottinghamshire County Council,1111/1001,Children and Young People,CYP,Third Party Payments,EGA,07/01/2015,10-10288,4128.01,Foxy Creek Pre-School Playgroup,,,,,,,,,,
Nottinghamshire County Council,1111/1001,Children and Young People,CYP,Third Party Payments,EGA,07/01/2015,10-10289,7552.94,Southfields Pre-School,,,,,,,,,,
Nottinghamshire County Council,1111/1001,Children and Young People,CYP,Third Party Payments,EGA,07/01/2015,10-10290,641.34,[Redacted],,,,,,,,,,
Nottinghamshire County Council,1111/1001,Children and Young People,CYP,Third Party Payments,EGA,07/01/2015,10-10291,570.02,Tracey Streeter Childminding Servic,,,,,,,,,,
Nottinghamshire County Council,1111/1001,Children and Young People,CYP,Third Party Payments,EGA,07/01/2015,10-10292,8455.61,Balderton Village Day Nursery,,,,,,,,,,
Nottinghamshire County Council,1111/1001,Children and Young People,CYP,Third Party Payments,EGA,07/01/2015,10-10294,10944.61,Leahurst Road Pre-School,,,,,,,,,,
Nottinghamshire County Council,1111/1001,Children and Young People,CYP,Third Party Payments,EGA,07/01/2015,10-10295,10165.68,Busy Bees Pre-School (Sutton),,,,,,,,,,
Nottinghamshire County Council,1111/1001,Children and Young People,CYP,Third Party Payments,EGA,07/01/2015,10-10296,18652.45,Burton Joyce Wraparound Care Group,,,,,,,,,,
Nottinghamshire County Council,1111/1001,Children and Young People,CYP,Third Party Payments,EGA,08/01/2015,10-10293,4637.99,Burton Joyce Wraparound Care Group,,,,,,,,,,
Nottinghamshire County Council,1111/1001,Children and Young People,CYP,Third Party Payments,EGA,08/01/2015,10-10485,952.95,The Orchard Day Nursery,,,,,,,,,,
Nottinghamshire County Council,1111/1001,Children and Young People,CYP,Third Party Payments,EGA,08/01/2015,10-10486,1068.9,Brookhill House Day Nursery,,,,,,,,,,
Nottinghamshire County Council,1111/1001,Children and Young People,CYP,Third Party Payments,EGA,08/01/2015,10-10487,791.7,Alphabet House Nursery,,,,,,,,,,
Nottinghamshire County Council,1111/1001,Children and Young People,CYP,Third Party Payments,EGA,08/01/2015,10-10488,1282.68,[Redacted],,,,,,,,,,
Nottinghamshire County Council,1111/1001,Children and Young People,CYP,Third Party Payments,EGA,14/01/2015,10-10765,16033.5,Arnold House Day Nursery,,,,,,,,,,
Nottinghamshire County Council,1111/1001,Children and Young People,CYP,Third Party Payments,EGA,14/01/2015,10-10766,973.98,[Redacted],,,,,,,,,,
Nottinghamshire County Council,1111/1001,Children and Young People,CYP,Third Party Payments,EGA,14/01/2015,10-10767,6404.91,Upton Crickets Day Nursery,,,,,,,,,,
Nottinghamshire County Council,1111/1001,Children and Young People,CYP,Third Party Payments,EGA,14/01/2015,10-10768,24797.3,Treetops Nursery (Clipstone),,,,,,,,,,
Nottinghamshire County Council,1111/1001,Children and Young People,CYP,Third Party Payments,EGA,14/01/2015,10-10769,641.34,[Redacted],,,,,,,,,,
Nottinghamshire County Council,1111/1001,Children and Young People,CYP,Third Party Payments,EGA,14/01/2015,10-10770,855.04,[Redacted],,,,,,,,,,
Nottinghamshire County Council,1111/1001,Children and Young People,CYP,Third Party Payments,EGA,14/01/2015,10-10771,10260.43,Sutton Bonington Playgroup,,,,,,,,,,
Nottinghamshire County Council,1111/1001,Children and Young People,CYP,Third Party Payments,EGA,14/01/2015,10-10772,2399.04,Sunbeams Pre-School,,,,,,,,,,
Nottinghamshire County Council,1111/1001,Children and Young People,CYP,Third Party Payments,EGA,14/01/2015,10-10773,5082.84,Sparkle Daycare,,,,,,,,,,
Nottinghamshire County Council,1111/1001,Children and Young People,CYP,Third Party Payments,EGA,14/01/2015,10-10774,12849.48,Radcliffe On Trent Day Nursery,,,,,,,,,,
Nottinghamshire County Council,1111/1001,Children and Young People,CYP,Third Party Payments,EGA,14/01/2015,10-10775,1346.81,[Redacted],,,,,,,,,,
Nottinghamshire County Council,1111/1001,Children and Young People,CYP,Third Party Payments,EGA,14/01/2015,10-10776,1116.36,[Redacted],,,,,,,,,,
Nottinghamshire County Council,1111/1001,Children and Young People,CYP,Third Party Payments,EGA,14/01/2015,10-10777,950.04,Lyndsay's Childminding,,,,,,,,,,
Nottinghamshire County Council,1111/1001,Children and Young People,CYP,Third Party Payments,EGA,14/01/2015,10-10778,5462.73,Kneesall Pre School & Playgroup,,,,,,,,,,
Nottinghamshire County Council,1111/1001,Children and Young People,CYP,Third Party Payments,EGA,14/01/2015,10-10779,878.85,[Redacted],,,,,,,,,,
Nottinghamshire County Council,1111/1001,Children and Young People,CYP,Third Party Payments,EGA,14/01/2015,10-10780,641.34,[Redacted],,,,,,,,,,
Nottinghamshire County Council,1111/1001,Children and Young People,CYP,Third Party Payments,EGA,14/01/2015,10-10781,4798.08,Cheeky Monkeys Day Nursery,,,,,,,,,,
Nottinghamshire County Council,1111/1001,Children and Young People,CYP,Third Party Payments,EGA,14/01/2015,10-10782,570.02,[Redacted],,,,,,,,,,
Nottinghamshire County Council,1111/1001,Children and Young People,CYP,Third Party Payments,EGA,14/01/2015,10-10783,3040.38,[Redacted],,,,,,,,,,
Nottinghamshire County Council,1111/1001,Children and Young People,CYP,Third Party Payments,EGA,15/01/2015,10-10832,8901.9,Children's House Nursery School,,,,,,,,,,
Nottinghamshire County Council,1111/1001,Children and Young People,CYP,Third Party Payments,EGA,15/01/2015,10-10833,1068.9,Woodthorpe Day Nursery Ltd,,,,,,,,,,
Nottinghamshire County Council,1111/1001,Children and Young People,CYP,Third Party Payments,EGA,15/01/2015,10-10834,916.2,Shaping Futures Day Nursery,,,,,,,,,,
Nottinghamshire County Council,1111/1001,Children and Young People,CYP,Third Party Payments,EGA,15/01/2015,10-10835,1068.9,Leen Mills Pre School Playgroup,,,,,,,,,,
Nottinghamshire County Council,1111/1001,Children and Young People,CYP,Third Party Payments,EGA,15/01/2015,10-10836,2137.8,Netherfield Primary School,,,,,,,,,,
Nottinghamshire County Council,1111/1001,Children and Young People,CYP,Third Party Payments,EGA,15/01/2015,10-10837,1603.35,Radcliffe On Trent Day Nursery,,,,,,,,,,
Nottinghamshire County Council,1111/1001,Children and Young People,CYP,Third Party Payments,EGA,15/01/2015,10-10838,1068.9,Scottswood Pdn Ltd,,,,,,,,,,
Nottinghamshire County Council,1111/1001,Children and Young People,CYP,Third Party Payments,EGA,15/01/2015,10-10839,3206.7,Serendipity's Day Nursery,,,,,,,,,,
Nottinghamshire County Council,1111/1001,Children and Young People,CYP,Third Party Payments,EGA,15/01/2015,10-10840,1282.68,[Redacted],,,,,,,,,,
Nottinghamshire County Council,1111/1001,Children and Young People,CYP,Third Party Payments,EGA,15/01/2015,10-10845,13443.19,Pre-School 345,,,,,,,,,,
Nottinghamshire County Council,1111/1001,Children and Young People,CYP,Third Party Payments,EGA,15/01/2015,10-10891,182.02,Fozcabs Newark Taxis,,,,,,,,,,
Nottinghamshire County Council,1111/1001,Children and Young People,CYP,Third Party Payments,EGA,16/01/2015,10-11288,2541.42,Tiny Teddies @ Roko,,,,,,,,,,
Nottinghamshire County Council,1111/1001,Children and Young People,CYP,Third Party Payments,EGA,16/01/2015,10-11289,950.04,[Redacted],,,,,,,,,,
Nottinghamshire County Council,1111/1001,Children and Young People,CYP,Third Party Payments,EGA,16/01/2015,10-11290,950.04,[Redacted],,,,,,,,,,
Nottinghamshire County Council,1111/1001,Children and Young People,CYP,Third Party Payments,EGA,16/01/2015,10-11291,641.34,[Redacted],,,,,,,,,,
Nottinghamshire County Council,1111/1001,Children and Young People,CYP,Third Party Payments,EGA,16/01/2015,10-11292,3610.15,Little Rascals Pre-School,,,,,,,,,,
Nottinghamshire County Council,1111/1001,Children and Young People,CYP,Third Party Payments,EGA,16/01/2015,10-11293,641.34,[Redacted],,,,,,,,,,
Nottinghamshire County Council,1111/1001,Children and Young People,CYP,Third Party Payments,EGA,16/01/2015,10-11294,1282.68,[Redacted],,,,,,,,,,
Nottinghamshire County Council,1111/1001,Children and Young People,CYP,Third Party Payments,EGA,16/01/2015,10-11295,641.34,[Redacted],,,,,,,,,,
Nottinghamshire County Council,1111/1001,Children and Young People,CYP,Third Party Payments,EGA,21/01/2015,10-11595,641.34,[Redacted],,,,,,,,,,
Nottinghamshire County Council,1111/1001,Children and Young People,CYP,Third Party Payments,EGA,21/01/2015,10-11596,641.34,[Redacted],,,,,,,,,,
Nottinghamshire County Council,1111/1001,Children and Young People,CYP,Third Party Payments,EGA,22/01/2015,10-11704,1068.9,DUPLICATE-Discovery Day Nursery,,,,,,,,,,
Nottinghamshire County Council,1111/1001,Children and Young People,CYP,Third Party Payments,EGA,22/01/2015,10-11732,4489.38,The Learning Tree Nursery,,,,,,,,,,
Nottinghamshire County Council,1111/1001,Children and Young People,CYP,Third Party Payments,EGA,22/01/2015,10-11733,2565.36,The Learning Tree Day Nursery 2,,,,,,,,,,
Nottinghamshire County Council,1111/1001,Children and Young People,CYP,Third Party Payments,EGA,22/01/2015,10-11734,641.34,Sutton Centre Under 5'S Playgroup,,,,,,,,,,
Nottinghamshire County Council,1111/1001,Children and Young People,CYP,Third Party Payments,EGA,22/01/2015,10-11735,534.45,Puddleducks Pre-School,,,,,,,,,,
Nottinghamshire County Council,1111/1001,Children and Young People,CYP,Third Party Payments,EGA,22/01/2015,10-11736,1282.68,[Redacted],,,,,,,,,,
Nottinghamshire County Council,1111/1001,Children and Young People,CYP,Third Party Payments,EGA,22/01/2015,10-11737,534.45,Little Acorns Shireoaks,,,,,,,,,,
Nottinghamshire County Council,1111/1001,Children and Young People,CYP,Third Party Payments,EGA,22/01/2015,10-11738,5130.72,The Rocking Horse Child Care Centre,,,,,,,,,,
Nottinghamshire County Council,1111/1001,Children and Young People,CYP,Third Party Payments,EGA,22/01/2015,10-11739,1900.08,Millfield Nursery School,,,,,,,,,,
Nottinghamshire County Council,1111/1001,Children and Young People,CYP,Third Party Payments,EGA,22/01/2015,10-11740,712.53,[Redacted],,,,,,,,,,
Nottinghamshire County Council,1111/1001,Children and Young People,CYP,Third Party Payments,EGA,22/01/2015,10-11741,1641.27,Beeston Nursery,,,,,,,,,,
Nottinghamshire County Council,1111/1001,Children and Young People,CYP,Third Party Payments,EGA,22/01/2015,10-11742,2232.72,Jelly Totz Day Nursery,,,,,,,,,,
Nottinghamshire County Council,1111/1001,Children and Young People,CYP,Third Party Payments,EGA,23/01/2015,10-11796,1282.68,Safe Haven Day Nursery,,,,,,,,,,
Nottinghamshire County Council,1111/1001,Children and Young People,CYP,Third Party Payments,EGA,23/01/2015,10-11797,641.34,Rocking Horse Nursery Butlers Hill,,,,,,,,,,
Nottinghamshire County Council,1111/1001,Children and Young People,CYP,Third Party Payments,EGA,23/01/2015,10-11798,2280.09,Busy Bees Pre-School,,,,,,,,,,
Nottinghamshire County Council,1111/1001,Children and Young People,CYP,Third Party Payments,EGA,23/01/2015,10-11799,712.6,Alphabet House Day Nursery WB,,,,,,,,,,
Nottinghamshire County Council,1111/1001,Children and Young People,CYP,Third Party Payments,EGA,26/01/2015,10-10281,630,Alphabet House Nursery,,,,,,,,,,
Nottinghamshire County Council,1111/1001,Children and Young People,CYP,Third Party Payments,EGA,26/01/2015,10-11817,12103.56,Farnsfield Pre-School,,,,,,,,,,
Nottinghamshire County Council,1111/1001,Children and Young People,CYP,Third Party Payments,EGA,27/01/2015,10-15532,2565.36,Ashfield Plaza Day Nursery,,,,,,,,,,
Nottinghamshire County Council,1111/1001,Children and Young People,CYP,Third Party Payments,EGA,27/01/2015,10-15533,3848.04,Fun Farm Day Nursery,,,,,,,,,,
Nottinghamshire County Council,1111/1001,Children and Young People,CYP,Third Party Payments,EGA,27/01/2015,10-15623,622.05,Balderton Village Day Nursery,,,,,,,,,,
Nottinghamshire County Council,1111/1001,Children and Young People,CYP,Third Party Payments,EGA,27/01/2015,10-15624,687.15,Galaxies Day Nursery,,,,,,,,,,
Nottinghamshire County Council,1111/1001,Children and Young People,CYP,Third Party Payments,EGA,28/01/2015,10-15690,1880.55,Zoe's Childcare Ltd,,,,,,,,,,
Nottinghamshire County Council,1111/1001,Children and Young People,CYP,Third Party Payments,EGA,29/01/2015,10-15700,8716.68,North Muskham Playgroup,,,,,,,,,,
Nottinghamshire County Council,1111/1001,Children and Young People,CYP,Third Party Payments,EGA,29/01/2015,10-15701,1924.02,Young Rascals Day Nursery,,,,,,,,,,
Nottinghamshire County Council,1111/1001,Children and Young People,CYP,Third Party Payments,EGA,29/01/2015,10-15702,3933.55,Kirkby Cross Playgroup,,,,,,,,,,
Nottinghamshire County Council,1111/1001,Children and Young People,CYP,Third Party Payments,EGA,29/01/2015,10-15703,1282.68,All Saints C Of E Primary School,,,,,,,,,,
Nottinghamshire County Council,1111/1001,Children and Young People,CYP,Third Party Payments,EGA,29/01/2015,10-15704,2090.57,Breedon House Nurseries Ltd,,,,,,,,,,
Nottinghamshire County Council,1111/1001,Children and Young People,CYP,Third Party Payments,EGA,29/01/2015,10-15876,84702.89,The National Fostering Agency,,,,,,,,,,
Nottinghamshire County Council,1111/1001,Children and Young People,CYP,Third Party Payments,EGA,30/01/2015,10-15887,20477.67,Independent Childcare Group Of Schs,,,,,,,,,,
Nottinghamshire County Council,1111/1001,Children and Young People,CYP,Support Services,HAA,02/01/2015,10-10073,1777.5,Kettlewell Retford Ltd,,,,,,,,,,
Nottinghamshire County Council,1111/1001,Children and Young People,CYP,Support Services,HAA,02/01/2015,10-10074,1837.5,Kettlewell Retford Ltd,,,,,,,,,,
Nottinghamshire County Council,1111/1001,Children and Young People,CYP,Support Services,HAA,02/01/2015,10-10075,1642.5,Kettlewell Retford Ltd,,,,,,,,,,
Nottinghamshire County Council,1111/1001,Children and Young People,CYP,Support Services,HAA,02/01/2015,10-10076,2392.5,Kettlewell Retford Ltd,,,,,,,,,,
Nottinghamshire County Council,1111/1001,Children and Young People,CYP,Support Services,HAA,02/01/2015,10-10077,1927.5,Kettlewell Retford Ltd,,,,,,,,,,
Nottinghamshire County Council,1111/1001,Children and Young People,CYP,Support Services,HAA,02/01/2015,10-10078,2100,Kettlewell Retford Ltd,,,,,,,,,,
Nottinghamshire County Council,1111/1001,Children and Young People,CYP,Support Services,HAA,02/01/2015,10-10079,1927.5,Kettlewell Retford Ltd,,,,,,,,,,
Nottinghamshire County Council,1111/1001,Children and Young People,CYP,Support Services,HAA,02/01/2015,10-10081,2376,Bassetlaw Action Centre,,,,,,,,,,
Nottinghamshire County Council,1111/1001,Children and Young People,CYP,Support Services,HAA,06/01/2015,10-10245,1350,Nottingham Minibuses & Coaches,,,,,,,,,,
Nottinghamshire County Council,1111/1001,Children and Young People,CYP,Support Services,HAA,06/01/2015,10-10248,2250,Nottingham Minibuses & Coaches,,,,,,,,,,
Nottinghamshire County Council,1111/1001,Children and Young People,CYP,Support Services,HAA,06/01/2015,10-10257,2187.6,Freeway Coaches Ltd,,,,,,,,,,
Nottinghamshire County Council,1111/1001,Children and Young People,CYP,Support Services,HAA,06/01/2015,10-10258,5373.2,Freeway Coaches Ltd,,,,,,,,,,
Nottinghamshire County Council,1111/1001,Children and Young People,CYP,Support Services,HAA,06/01/2015,10-10259,2107.65,Freeway Coaches Ltd,,,,,,,,,,
Nottinghamshire County Council,1111/1001,Children and Young People,CYP,Support Services,HAA,06/01/2015,10-10260,1912.5,Freeway Coaches Ltd,,,,,,,,,,
Nottinghamshire County Council,1111/1001,Children and Young People,CYP,Support Services,HAA,06/01/2015,10-10261,1171.2,Freeway Coaches Ltd,,,,,,,,,,
Nottinghamshire County Council,1111/1001,Children and Young People,CYP,Support Services,HAA,06/01/2015,10-10262,1875,Freeway Coaches Ltd,,,,,,,,,,
Nottinghamshire County Council,1111/1001,Children and Young People,CYP,Support Services,HAA,07/01/2015,10-10301,1275,All Wayz Travel,,,,,,,,,,
Nottinghamshire County Council,1111/1001,Children and Young People,CYP,Support Services,HAA,07/01/2015,10-10302,1050,All Wayz Travel,,,,,,,,,,
Nottinghamshire County Council,1111/1001,Children and Young People,CYP,Support Services,HAA,07/01/2015,10-10304,1200,Midland Fleet Maintenance,,,,,,,,,,
Nottinghamshire County Council,1111/1001,Children and Young People,CYP,Support Services,HAA,07/01/2015,10-10305,1699.8,Arnold Acorn Travel,,,,,,,,,,
Nottinghamshire County Council,1111/1001,Children and Young People,CYP,Support Services,HAA,07/01/2015,10-10318,447.52,Bridges Transport Services,,,,,,,,,,
Nottinghamshire County Council,1111/1001,Children and Young People,CYP,Support Services,HAA,07/01/2015,10-10325,1050,Fozcabs Newark Taxis,,,,,,,,,,
Nottinghamshire County Council,1111/1001,Children and Young People,CYP,Support Services,HAA,07/01/2015,10-10353,2124,Sprays Transport Ltd,,,,,,,,,,
Nottinghamshire County Council,1111/1001,Children and Young People,CYP,Support Services,HAA,07/01/2015,10-10354,1935,F & J Marriott T/A Unity Coaches,,,,,,,,,,
Nottinghamshire County Council,1111/1001,Children and Young People,CYP,Support Services,HAA,07/01/2015,10-10355,1353,F & J Marriott T/A Unity Coaches,,,,,,,,,,
Nottinghamshire County Council,1111/1001,Children and Young People,CYP,Support Services,HAA,07/01/2015,10-10359,1147.5,F & J Marriott T/A Unity Coaches,,,,,,,,,,
Nottinghamshire County Council,1111/1001,Children and Young People,CYP,Support Services,HAA,07/01/2015,10-10370,2400,AOT Coaches,,,,,,,,,,
Nottinghamshire County Council,1111/1001,Children and Young People,CYP,Support Services,HAA,07/01/2015,10-10371,2400,AOT Coaches,,,,,,,,,,
Nottinghamshire County Council,1111/1001,Children and Young People,CYP,Support Services,HAA,07/01/2015,10-10372,1959,AOT Coaches,,,,,,,,,,
Nottinghamshire County Council,1111/1001,Children and Young People,CYP,Support Services,HAA,07/01/2015,10-10373,2090,AOT Coaches,,,,,,,,,,
Nottinghamshire County Council,1111/1001,Children and Young People,CYP,Support Services,HAA,07/01/2015,10-10374,2242.8,Gem Mini Travel Ltd,,,,,,,,,,
Nottinghamshire County Council,1111/1001,Children and Young People,CYP,Support Services,HAA,07/01/2015,10-10375,2127,Gem Mini Travel Ltd,,,,,,,,,,
Nottinghamshire County Council,1111/1001,Children and Young People,CYP,Support Services,HAA,07/01/2015,10-10376,1618.6,Gem Mini Travel Ltd,,,,,,,,,,
Nottinghamshire County Council,1111/1001,Children and Young People,CYP,Support Services,HAA,07/01/2015,10-10377,1937.7,Gem Mini Travel Ltd,,,,,,,,,,
Nottinghamshire County Council,1111/1001,Children and Young People,CYP,Support Services,HAA,07/01/2015,10-10378,900,K & R Cars,,,,,,,,,,
Nottinghamshire County Council,1111/1001,Children and Young People,CYP,Support Services,HAA,07/01/2015,10-10379,945,Meden Travel,,,,,,,,,,
Nottinghamshire County Council,1111/1001,Children and Young People,CYP,Support Services,HAA,07/01/2015,10-10380,1727.4,Silverdale Tours Nottm Ltd,,,,,,,,,,
Nottinghamshire County Council,1111/1001,Children and Young People,CYP,Support Services,HAA,07/01/2015,10-10381,2391,Silverdale Tours Nottm Ltd,,,,,,,,,,
Nottinghamshire County Council,1111/1001,Children and Young People,CYP,Support Services,HAA,07/01/2015,10-10382,2047.6,Silverdale Tours Nottm Ltd,,,,,,,,,,
Nottinghamshire County Council,1111/1001,Children and Young People,CYP,Support Services,HAA,07/01/2015,10-10383,2251.5,Silverdale Tours Nottm Ltd,,,,,,,,,,
Nottinghamshire County Council,1111/1001,Children and Young People,CYP,Support Services,HAA,07/01/2015,10-10384,2074.8,Silverdale Tours Nottm Ltd,,,,,,,,,,
Nottinghamshire County Council,1111/1001,Children and Young People,CYP,Support Services,HAA,07/01/2015,10-10385,1521.5,Silverdale Tours Nottm Ltd,,,,,,,,,,
Nottinghamshire County Council,1111/1001,Children and Young People,CYP,Support Services,HAA,07/01/2015,10-10386,2136.5,Silverdale Tours Nottm Ltd,,,,,,,,,,
Nottinghamshire County Council,1111/1001,Children and Young People,CYP,Support Services,HAA,07/01/2015,10-10387,2142.5,Silverdale Tours Nottm Ltd,,,,,,,,,,
Nottinghamshire County Council,1111/1001,Children and Young People,CYP,Support Services,HAA,07/01/2015,10-10388,1507,Silverdale Tours Nottm Ltd,,,,,,,,,,
Nottinghamshire County Council,1111/1001,Children and Young People,CYP,Support Services,HAA,07/01/2015,10-10389,9829.5,Travel Wright Ltd,,,,,,,,,,
Nottinghamshire County Council,1111/1001,Children and Young People,CYP,Support Services,HAA,07/01/2015,10-10391,2696.6,Travel Wright Ltd,,,,,,,,,,
Nottinghamshire County Council,1111/1001,Children and Young People,CYP,Support Services,HAA,07/01/2015,10-10392,2631.6,Travel Wright Ltd,,,,,,,,,,
Nottinghamshire County Council,1111/1001,Children and Young People,CYP,Support Services,HAA,07/01/2015,10-10393,4480.68,Travel Wright Ltd,,,,,,,,,,
Nottinghamshire County Council,1111/1001,Children and Young People,CYP,Support Services,HAA,07/01/2015,10-10395,120,Travel Wright Ltd,,,,,,,,,,
Nottinghamshire County Council,1111/1001,Children and Young People,CYP,Support Services,HAA,07/01/2015,10-10397,2416.12,Travel Wright Ltd,,,,,,,,,,
Nottinghamshire County Council,1111/1001,Children and Young People,CYP,Support Services,HAA,07/01/2015,10-10400,2399.25,Travel Wright Ltd,,,,,,,,,,
Nottinghamshire County Council,1111/1001,Children and Young People,CYP,Support Services,HAA,07/01/2015,10-10401,1820.87,Travel Wright Ltd,,,,,,,,,,
Nottinghamshire County Council,1111/1001,Children and Young People,CYP,Support Services,HAA,07/01/2015,10-10403,1443,Ashfield Travel,,,,,,,,,,
Nottinghamshire County Council,1111/1001,Children and Young People,CYP,Support Services,HAA,07/01/2015,10-10404,1470,Wilfreda Beehive,,,,,,,,,,
Nottinghamshire County Council,1111/1001,Children and Young People,CYP,Support Services,HAA,07/01/2015,10-10408,1185,Paul S Winson Coaches,,,,,,,,,,
Nottinghamshire County Council,1111/1001,Children and Young People,CYP,Support Services,HAA,07/01/2015,10-10409,4950,C W Moxon Ltd,,,,,,,,,,
Nottinghamshire County Council,1111/1001,Children and Young People,CYP,Support Services,HAA,07/01/2015,10-10411,2424.05,C W Moxon Ltd,,,,,,,,,,
Nottinghamshire County Council,1111/1001,Children and Young People,CYP,Support Services,HAA,07/01/2015,10-10412,2207,C W Moxon Ltd,,,,,,,,,,
Nottinghamshire County Council,1111/1001,Children and Young People,CYP,Support Services,HAA,07/01/2015,10-10413,1895,C W Moxon Ltd,,,,,,,,,,
Nottinghamshire County Council,1111/1001,Children and Young People,CYP,Support Services,HAA,07/01/2015,10-10414,2199.1,C W Moxon Ltd,,,,,,,,,,
Nottinghamshire County Council,1111/1001,Children and Young People,CYP,Support Services,HAA,07/01/2015,10-10415,1813.9,C W Moxon Ltd,,,,,,,,,,
Nottinghamshire County Council,1111/1001,Children and Young People,CYP,Support Services,HAA,07/01/2015,10-10417,1125,Rio Cabs,,,,,,,,,,
Nottinghamshire County Council,1111/1001,Children and Young People,CYP,Support Services,HAA,07/01/2015,10-10425,3442.5,Isle Coaches,,,,,,,,,,
Nottinghamshire County Council,1111/1001,Children and Young People,CYP,Support Services,HAA,07/01/2015,10-10430,770,Broadsword Cars,,,,,,,,,,
Nottinghamshire County Council,1111/1001,Children and Young People,CYP,Support Services,HAA,07/01/2015,10-10431,1575,Travel Liner,,,,,,,,,,
Nottinghamshire County Council,1111/1001,Children and Young People,CYP,Support Services,HAA,07/01/2015,10-10432,2026,Nottingham Coaches,,,,,,,,,,
Nottinghamshire County Council,1111/1001,Children and Young People,CYP,Support Services,HAA,07/01/2015,10-10433,2085,Nottingham Coaches,,,,,,,,,,
Nottinghamshire County Council,1111/1001,Children and Young People,CYP,Support Services,HAA,07/01/2015,10-10434,1829,Nottingham Coaches,,,,,,,,,,
Nottinghamshire County Council,1111/1001,Children and Young People,CYP,Support Services,HAA,07/01/2015,10-10435,1966.7,Nottingham Coaches,,,,,,,,,,
Nottinghamshire County Council,1111/1001,Children and Young People,CYP,Support Services,HAA,07/01/2015,10-10436,2216.1,Nottingham Coaches,,,,,,,,,,
Nottinghamshire County Council,1111/1001,Children and Young People,CYP,Support Services,HAA,15/01/2015,10-10854,546.06,Dial A Trip,,,,,,,,,,
Nottinghamshire County Council,1111/1001,Children and Young People,CYP,Support Services,HAA,15/01/2015,10-10855,2472.2,Glenn Ryder Coaches,,,,,,,,,,
Nottinghamshire County Council,1111/1001,Children and Young People,CYP,Support Services,HAA,15/01/2015,10-10856,1792.6,Glenn Ryder Coaches,,,,,,,,,,
Nottinghamshire County Council,1111/1001,Children and Young People,CYP,Support Services,HAA,15/01/2015,10-10858,17000,Johnson Bros Tours Ltd,,,,,,,,,,
Nottinghamshire County Council,1111/1001,Children and Young People,CYP,Support Services,HAA,15/01/2015,10-10859,15300,Johnson Bros Tours Ltd,,,,,,,,,,
Nottinghamshire County Council,1111/1001,Children and Young People,CYP,Support Services,HAA,15/01/2015,10-10860,17000,Johnson Bros Tours Ltd,,,,,,,,,,
Nottinghamshire County Council,1111/1001,Children and Young People,CYP,Support Services,HAA,15/01/2015,10-10861,12750,Johnson Bros Tours Ltd,,,,,,,,,,
Nottinghamshire County Council,1111/1001,Children and Young People,CYP,Support Services,HAA,15/01/2015,10-10969,900,Abacus Cars,,,,,,,,,,
Nottinghamshire County Council,1111/1001,Children and Young People,CYP,Support Services,HAA,15/01/2015,10-10979,1934.1,AOT Coaches,,,,,,,,,,
Nottinghamshire County Council,1111/1001,Children and Young People,CYP,Support Services,HAA,15/01/2015,10-10980,1852.95,AOT Coaches,,,,,,,,,,
Nottinghamshire County Council,1111/1001,Children and Young People,CYP,Support Services,HAA,15/01/2015,10-10981,1786.95,AOT Coaches,,,,,,,,,,
Nottinghamshire County Council,1111/1001,Children and Young People,CYP,Support Services,HAA,15/01/2015,10-10982,1770,AOT Coaches,,,,,,,,,,
Nottinghamshire County Council,1111/1001,Children and Young People,CYP,Support Services,HAA,15/01/2015,10-10983,1812,AOT Coaches,,,,,,,,,,
Nottinghamshire County Council,1111/1001,Children and Young People,CYP,Support Services,HAA,15/01/2015,10-10987,1847.8,Jb Tours Watnall Ltd,,,,,,,,,,
Nottinghamshire County Council,1111/1001,Children and Young People,CYP,Support Services,HAA,15/01/2015,10-10988,1857.1,Jb Tours Watnall Ltd,,,,,,,,,,
Nottinghamshire County Council,1111/1001,Children and Young People,CYP,Support Services,HAA,15/01/2015,10-10989,1652.9,Jb Tours Watnall Ltd,,,,,,,,,,
Nottinghamshire County Council,1111/1001,Children and Young People,CYP,Support Services,HAA,15/01/2015,10-10992,1325.87,Marshalls Of Sutton On Trent Ltd,,,,,,,,,,
Nottinghamshire County Council,1111/1001,Children and Young People,CYP,Support Services,HAA,15/01/2015,10-11001,2145,Marshalls Of Sutton On Trent Ltd,,,,,,,,,,
Nottinghamshire County Council,1111/1001,Children and Young People,CYP,Support Services,HAA,15/01/2015,10-11003,1386,Marshalls Of Sutton On Trent Ltd,,,,,,,,,,
Nottinghamshire County Council,1111/1001,Children and Young People,CYP,Support Services,HAA,15/01/2015,10-11004,2475,Marshalls Of Sutton On Trent Ltd,,,,,,,,,,
Nottinghamshire County Council,1111/1001,Children and Young People,CYP,Support Services,HAA,15/01/2015,10-11005,1836,Marshalls Of Sutton On Trent Ltd,,,,,,,,,,
Nottinghamshire County Council,1111/1001,Children and Young People,CYP,Support Services,HAA,15/01/2015,10-11010,1989.75,Tiger European Uk Ltd,,,,,,,,,,
Nottinghamshire County Council,1111/1001,Children and Young People,CYP,Support Services,HAA,15/01/2015,10-11011,2049,Tiger European Uk Ltd,,,,,,,,,,
Nottinghamshire County Council,1111/1001,Children and Young People,CYP,Support Services,HAA,15/01/2015,10-11012,1923,Tiger European Uk Ltd,,,,,,,,,,
Nottinghamshire County Council,1111/1001,Children and Young People,CYP,Support Services,HAA,15/01/2015,10-11013,2130,Tiger European Uk Ltd,,,,,,,,,,
Nottinghamshire County Council,1111/1001,Children and Young People,CYP,Support Services,HAA,15/01/2015,10-11014,2169.3,Tiger European Uk Ltd,,,,,,,,,,
Nottinghamshire County Council,1111/1001,Children and Young People,CYP,Support Services,HAA,15/01/2015,10-11015,2223,Tiger European Uk Ltd,,,,,,,,,,
Nottinghamshire County Council,1111/1001,Children and Young People,CYP,Support Services,HAA,15/01/2015,10-11016,2203.1,Tiger European Uk Ltd,,,,,,,,,,
Nottinghamshire County Council,1111/1001,Children and Young People,CYP,Support Services,HAA,15/01/2015,10-11017,2775,Tiger European Uk Ltd,,,,,,,,,,
Nottinghamshire County Council,1111/1001,Children and Young People,CYP,Support Services,HAA,15/01/2015,10-11018,2325,Tiger European Uk Ltd,,,,,,,,,,
Nottinghamshire County Council,1111/1001,Children and Young People,CYP,Support Services,HAA,15/01/2015,10-11019,727,Tiger European Uk Ltd,,,,,,,,,,
Nottinghamshire County Council,1111/1001,Children and Young People,CYP,Support Services,HAA,15/01/2015,10-11020,2337,Tiger European Uk Ltd,,,,,,,,,,
Nottinghamshire County Council,1111/1001,Children and Young People,CYP,Support Services,HAA,15/01/2015,10-11021,2446.3,Tiger European Uk Ltd,,,,,,,,,,
Nottinghamshire County Council,1111/1001,Children and Young People,CYP,Support Services,HAA,15/01/2015,10-11022,324.53,P & P Taxis,,,,,,,,,,
Nottinghamshire County Council,1111/1001,Children and Young People,CYP,Support Services,HAA,15/01/2015,10-11028,1170,P & P Taxis,,,,,,,,,,
Nottinghamshire County Council,1111/1001,Children and Young People,CYP,Support Services,HAA,15/01/2015,10-11033,984.89,Cotswold CVS Trading Ltd,,,,,,,,,,
Nottinghamshire County Council,1111/1001,Children and Young People,CYP,Support Services,HAA,16/01/2015,10-11049,1866.8,Sharpes Of Nottingham,,,,,,,,,,
Nottinghamshire County Council,1111/1001,Children and Young People,CYP,Support Services,HAA,16/01/2015,10-11050,1454.1,Sharpes Of Nottingham,,,,,,,,,,
Nottinghamshire County Council,1111/1001,Children and Young People,CYP,Support Services,HAA,16/01/2015,10-11051,1532,Sharpes Of Nottingham,,,,,,,,,,
Nottinghamshire County Council,1111/1001,Children and Young People,CYP,Support Services,HAA,16/01/2015,10-11052,1329.95,Sharpes Of Nottingham,,,,,,,,,,
Nottinghamshire County Council,1111/1001,Children and Young People,CYP,Support Services,HAA,16/01/2015,10-11053,1512.9,Sharpes Of Nottingham,,,,,,,,,,
Nottinghamshire County Council,1111/1001,Children and Young People,CYP,Support Services,HAA,16/01/2015,10-11057,2298,Sharpes Of Nottingham,,,,,,,,,,
Nottinghamshire County Council,1111/1001,Children and Young People,CYP,Support Services,HAA,16/01/2015,10-11058,1277.8,Sharpes Of Nottingham,,,,,,,,,,
Nottinghamshire County Council,1111/1001,Children and Young People,CYP,Support Services,HAA,16/01/2015,10-11059,1461.6,Sharpes Of Nottingham,,,,,,,,,,
Nottinghamshire County Council,1111/1001,Children and Young People,CYP,Support Services,HAA,16/01/2015,10-11060,2171.7,Sharpes Of Nottingham,,,,,,,,,,
Nottinghamshire County Council,1111/1001,Children and Young People,CYP,Support Services,HAA,16/01/2015,10-11061,1623.45,Sharpes Of Nottingham,,,,,,,,,,
Nottinghamshire County Council,1111/1001,Children and Young People,CYP,Support Services,HAA,16/01/2015,10-11062,2287.5,Sharpes Of Nottingham,,,,,,,,,,
Nottinghamshire County Council,1111/1001,Children and Young People,CYP,Support Services,HAA,16/01/2015,10-11075,2106.4,Johnson Bros Tours Ltd,,,,,,,,,,
Nottinghamshire County Council,1111/1001,Children and Young People,CYP,Support Services,HAA,16/01/2015,10-11076,2100,Johnson Bros Tours Ltd,,,,,,,,,,
Nottinghamshire County Council,1111/1001,Children and Young People,CYP,Support Services,HAA,16/01/2015,10-11077,4123.45,Johnson Bros Tours Ltd,,,,,,,,,,
Nottinghamshire County Council,1111/1001,Children and Young People,CYP,Support Services,HAA,16/01/2015,10-11078,2585,Johnson Bros Tours Ltd,,,,,,,,,,
Nottinghamshire County Council,1111/1001,Children and Young People,CYP,Support Services,HAA,16/01/2015,10-11079,14648.25,Johnson Bros Tours Ltd,,,,,,,,,,
Nottinghamshire County Council,1111/1001,Children and Young People,CYP,Support Services,HAA,16/01/2015,10-11080,9200.95,Johnson Bros Tours Ltd,,,,,,,,,,
Nottinghamshire County Council,1111/1001,Children and Young People,CYP,Support Services,HAA,16/01/2015,10-11081,2385.9,Johnson Bros Tours Ltd,,,,,,,,,,
Nottinghamshire County Council,1111/1001,Children and Young People,CYP,Support Services,HAA,16/01/2015,10-11091,2537.8,Butler Brothers Ltd,,,,,,,,,,
Nottinghamshire County Council,1111/1001,Children and Young People,CYP,Support Services,HAA,16/01/2015,10-11092,1904.55,Butler Brothers Ltd,,,,,,,,,,
Nottinghamshire County Council,1111/1001,Children and Young People,CYP,Support Services,HAA,16/01/2015,10-11154,2605,AOT Coaches,,,,,,,,,,
Nottinghamshire County Council,1111/1001,Children and Young People,CYP,Support Services,HAA,16/01/2015,10-11158,2341.2,Stagecoach Services Ltd,,,,,,,,,,
Nottinghamshire County Council,1111/1001,Children and Young People,CYP,Support Services,HAA,16/01/2015,10-11169,3866.82,Stagecoach Services Ltd,,,,,,,,,,
Nottinghamshire County Council,1111/1001,Children and Young People,CYP,Support Services,HAA,16/01/2015,10-11173,920.7,Stagecoach Services Ltd,,,,,,,,,,
Nottinghamshire County Council,1111/1001,Children and Young People,CYP,Support Services,HAA,16/01/2015,10-11192,3814.05,Stagecoach Services Ltd,,,,,,,,,,
Nottinghamshire County Council,1111/1001,Children and Young People,CYP,Support Services,HAA,16/01/2015,10-11193,3797.15,Stagecoach Services Ltd,,,,,,,,,,
Nottinghamshire County Council,1111/1001,Children and Young People,CYP,Support Services,HAA,16/01/2015,10-11194,3907.62,Stagecoach Services Ltd,,,,,,,,,,
Nottinghamshire County Council,1111/1001,Children and Young People,CYP,Support Services,HAA,16/01/2015,10-11201,950.55,Bassetlaw Action Centre,,,,,,,,,,
Nottinghamshire County Council,1111/1001,Children and Young People,CYP,Support Services,HAA,16/01/2015,10-11202,1782,Bassetlaw Action Centre,,,,,,,,,,
Nottinghamshire County Council,1111/1001,Children and Young People,CYP,Support Services,HAA,16/01/2015,10-11208,1280.55,Wallis Coachways,,,,,,,,,,
Nottinghamshire County Council,1111/1001,Children and Young People,CYP,Income,JDA,02/01/2015,10-10034,2299.69,Bilsthorpe Youth Centre,,,,,,,,,,
Nottinghamshire County Council,1111/1001,Adult Social Care and Health,ASCH,Premises Related,BAA,06/01/2015,10-10270,657,Ball & Sons Ltd,,,,,,,,,,
Nottinghamshire County Council,1111/1001,Adult Social Care and Health,ASCH,Premises Related,BAA,12/01/2015,10-10548,834.5,Key Construction,,,,,,,,,,
Nottinghamshire County Council,1111/1001,Adult Social Care and Health,ASCH,Premises Related,BAA,15/01/2015,10-10830,614.5,Crestra Ltd,,,,,,,,,,
Nottinghamshire County Council,1111/1001,Adult Social Care and Health,ASCH,Premises Related,BAA,15/01/2015,10-10831,672.5,BL Property Services,,,,,,,,,,
Nottinghamshire County Council,1111/1001,Adult Social Care and Health,ASCH,Premises Related,BAA,21/01/2015,10-11604,718,[Redacted],,,,,,,,,,
Nottinghamshire County Council,1111/1001,Adult Social Care and Health,ASCH,Premises Related,BAA,26/01/2015,10-11629,766,Intex Building & Maintenance,,,,,,,,,,
Nottinghamshire County Council,1111/1001,Adult Social Care and Health,ASCH,Premises Related,BAA,26/01/2015,10-11846,672.5,BL Property Services,,,,,,,,,,
Nottinghamshire County Council,1111/1001,Adult Social Care and Health,ASCH,Premises Related,BCA,29/01/2015,10-15768,131.18,Siemens Infra & Cities Mobility & L,,,,,,,,,,
Nottinghamshire County Council,1111/1001,Adult Social Care and Health,ASCH,Premises Related,BFA,14/01/2015,10-10804,1393.78,Anglian Water,,,,,,,,,,
Nottinghamshire County Council,1111/1001,Adult Social Care and Health,ASCH,Transport Related,CBA,07/01/2015,10-10361,3454.5,Vallances Coaches,,,,,,,,,,
Nottinghamshire County Council,1111/1001,Adult Social Care and Health,ASCH,Transport Related,CBA,07/01/2015,10-10405,1823.13,Aj Travel,,,,,,,,,,
Nottinghamshire County Council,1111/1001,Adult Social Care and Health,ASCH,Transport Related,CBA,15/01/2015,10-10900,2348.01,Ja Travel Ltd,,,,,,,,,,
Nottinghamshire County Council,1111/1001,Adult Social Care and Health,ASCH,Transport Related,CBA,15/01/2015,10-10925,3411.26,F & J Marriott T/A Unity Coaches,,,,,,,,,,
Nottinghamshire County Council,1111/1001,Adult Social Care and Health,ASCH,Transport Related,CBA,15/01/2015,10-10927,3276.84,F & J Marriott T/A Unity Coaches,,,,,,,,,,
Nottinghamshire County Council,1111/1001,Adult Social Care and Health,ASCH,Transport Related,CBA,15/01/2015,10-10947,2908.63,BN Gibson Ltd,,,,,,,,,,
Nottinghamshire County Council,1111/1001,Adult Social Care and Health,ASCH,Transport Related,CBA,15/01/2015,10-11035,4540.2,Cotswold CVS Trading Ltd,,,,,,,,,,
Nottinghamshire County Council,1111/1001,Adult Social Care and Health,ASCH,Transport Related,CBA,20/01/2015,10-11547,3246.2,Mct Uk Ltd,,,,,,,,,,
Nottinghamshire County Council,1111/1001,Adult Social Care and Health,ASCH,Transport Related,CBA,20/01/2015,10-11548,3408.51,Mct Uk Ltd,,,,,,,,,,
Nottinghamshire County Council,1111/1001,Adult Social Care and Health,ASCH,Transport Related,CBA,27/01/2015,10-15666,3054.06,BN Gibson Ltd,,,,,,,,,,
Nottinghamshire County Council,1111/1001,Adult Social Care and Health,ASCH,Transport Related,CBA,30/01/2015,10-15816,2674.22,BN Gibson Ltd,,,,,,,,,,
Nottinghamshire County Council,1111/1001,Adult Social Care and Health,ASCH,Transport Related,CCA,06/01/2015,10-10243,640,Bridges Transport Services,,,,,,,,,,
Nottinghamshire County Council,1111/1001,Adult Social Care and Health,ASCH,Transport Related,CCA,07/01/2015,10-10299,290.02,All Wayz Travel,,,,,,,,,,
Nottinghamshire County Council,1111/1001,Adult Social Care and Health,ASCH,Transport Related,CCA,07/01/2015,10-10349,174.21,Sprays Transport Ltd,,,,,,,,,,
Nottinghamshire County Council,1111/1001,Adult Social Care and Health,ASCH,Transport Related,CCA,07/01/2015,10-10419,663,Town Cars (UK) Ltd,,,,,,,,,,
Nottinghamshire County Council,1111/1001,Adult Social Care and Health,ASCH,Transport Related,CCA,15/01/2015,10-10902,567.72,Midfield Travel,,,,,,,,,,
Nottinghamshire County Council,1111/1001,Adult Social Care and Health,ASCH,Transport Related,CCA,15/01/2015,10-10944,2588.6,BN Gibson Ltd,,,,,,,,,,
Nottinghamshire County Council,1111/1001,Adult Social Care and Health,ASCH,Transport Related,CCA,15/01/2015,10-10947,407.39,BN Gibson Ltd,,,,,,,,,,
Nottinghamshire County Council,1111/1001,Adult Social Care and Health,ASCH,Transport Related,CCA,15/01/2015,10-11029,972,P & P Taxis,,,,,,,,,,
Nottinghamshire County Council,1111/1001,Adult Social Care and Health,ASCH,Transport Related,CCA,16/01/2015,10-11104,683.25,Erewash Community Transport,,,,,,,,,,
Nottinghamshire County Council,1111/1001,Adult Social Care and Health,ASCH,Transport Related,CCA,16/01/2015,10-11120,1175.04,Shelleys Taxis Ltd,,,,,,,,,,
Nottinghamshire County Council,1111/1001,Adult Social Care and Health,ASCH,Transport Related,CCA,20/01/2015,10-11551,690,AAA Cabs,,,,,,,,,,
Nottinghamshire County Council,1111/1001,Adult Social Care and Health,ASCH,Transport Related,CCA,27/01/2015,10-15662,2718.03,BN Gibson Ltd,,,,,,,,,,
Nottinghamshire County Council,1111/1001,Adult Social Care and Health,ASCH,Transport Related,CCA,27/01/2015,10-15666,427.76,BN Gibson Ltd,,,,,,,,,,
Nottinghamshire County Council,1111/1001,Adult Social Care and Health,ASCH,Transport Related,CCA,30/01/2015,10-15816,374.56,BN Gibson Ltd,,,,,,,,,,
Nottinghamshire County Council,1111/1001,Adult Social Care and Health,ASCH,Transport Related,CDA,06/01/2015,10-10160,798.7,Southside Cars,,,,,,,,,,
Nottinghamshire County Council,1111/1001,Adult Social Care and Health,ASCH,Transport Related,CDA,06/01/2015,10-10162,660,Alpha Cars,,,,,,,,,,
Nottinghamshire County Council,1111/1001,Adult Social Care and Health,ASCH,Transport Related,CDA,06/01/2015,10-10193,810,Arrow Specialised Transport Ltd,,,,,,,,,,
Nottinghamshire County Council,1111/1001,Adult Social Care and Health,ASCH,Transport Related,CDA,06/01/2015,10-10196,899.25,Arrow Specialised Transport Ltd,,,,,,,,,,
Nottinghamshire County Council,1111/1001,Adult Social Care and Health,ASCH,Transport Related,CDA,06/01/2015,10-10201,86.05,Arrow Specialised Transport Ltd,,,,,,,,,,
Nottinghamshire County Council,1111/1001,Adult Social Care and Health,ASCH,Transport Related,CDA,06/01/2015,10-10203,565.48,Arrow Specialised Transport Ltd,,,,,,,,,,
Nottinghamshire County Council,1111/1001,Adult Social Care and Health,ASCH,Transport Related,CDA,06/01/2015,10-10234,800,Bridges Transport Services,,,,,,,,,,
Nottinghamshire County Council,1111/1001,Adult Social Care and Health,ASCH,Transport Related,CDA,06/01/2015,10-10235,800,Bridges Transport Services,,,,,,,,,,
Nottinghamshire County Council,1111/1001,Adult Social Care and Health,ASCH,Transport Related,CDA,06/01/2015,10-10236,3313.59,Bridges Transport Services,,,,,,,,,,
Nottinghamshire County Council,1111/1001,Adult Social Care and Health,ASCH,Transport Related,CDA,06/01/2015,10-10237,2047.29,Bridges Transport Services,,,,,,,,,,
Nottinghamshire County Council,1111/1001,Adult Social Care and Health,ASCH,Transport Related,CDA,06/01/2015,10-10238,800,Bridges Transport Services,,,,,,,,,,
Nottinghamshire County Council,1111/1001,Adult Social Care and Health,ASCH,Transport Related,CDA,06/01/2015,10-10239,1160,Bridges Transport Services,,,,,,,,,,
Nottinghamshire County Council,1111/1001,Adult Social Care and Health,ASCH,Transport Related,CDA,06/01/2015,10-10240,1020,Bridges Transport Services,,,,,,,,,,
Nottinghamshire County Council,1111/1001,Adult Social Care and Health,ASCH,Transport Related,CDA,06/01/2015,10-10241,700,Bridges Transport Services,,,,,,,,,,
Nottinghamshire County Council,1111/1001,Adult Social Care and Health,ASCH,Transport Related,CDA,06/01/2015,10-10244,2174.04,Hawkins Taxis & Transport,,,,,,,,,,
Nottinghamshire County Council,1111/1001,Adult Social Care and Health,ASCH,Transport Related,CDA,07/01/2015,10-10348,2741.76,Sprays Transport Ltd,,,,,,,,,,
Nottinghamshire County Council,1111/1001,Adult Social Care and Health,ASCH,Transport Related,CDA,07/01/2015,10-10351,2875.32,Sprays Transport Ltd,,,,,,,,,,
Nottinghamshire County Council,1111/1001,Adult Social Care and Health,ASCH,Transport Related,CDA,07/01/2015,10-10364,589.8,Aaeron Cars,,,,,,,,,,
Nottinghamshire County Council,1111/1001,Adult Social Care and Health,ASCH,Transport Related,CDA,07/01/2015,10-10365,577.08,Aaeron Cars,,,,,,,,,,
Nottinghamshire County Council,1111/1001,Adult Social Care and Health,ASCH,Transport Related,CDA,07/01/2015,10-10405,276.03,Aj Travel,,,,,,,,,,
Nottinghamshire County Council,1111/1001,Adult Social Care and Health,ASCH,Transport Related,CDA,07/01/2015,10-10423,1112.55,Town Cars (UK) Ltd,,,,,,,,,,
Nottinghamshire County Council,1111/1001,Adult Social Care and Health,ASCH,Transport Related,CDA,12/01/2015,10-10558,1155.44,Srcl Ltd,,,,,,,,,,
Nottinghamshire County Council,1111/1001,Adult Social Care and Health,ASCH,Transport Related,CDA,12/01/2015,10-10559,1333.2,Srcl Ltd,,,,,,,,,,
Nottinghamshire County Council,1111/1001,Adult Social Care and Health,ASCH,Transport Related,CDA,15/01/2015,10-10871,602.1,CBC Taxis Ltd,,,,,,,,,,
Nottinghamshire County Council,1111/1001,Adult Social Care and Health,ASCH,Transport Related,CDA,15/01/2015,10-10872,749.1,CBC Taxis Ltd,,,,,,,,,,
Nottinghamshire County Council,1111/1001,Adult Social Care and Health,ASCH,Transport Related,CDA,15/01/2015,10-10873,936.64,CBC Taxis Ltd,,,,,,,,,,
Nottinghamshire County Council,1111/1001,Adult Social Care and Health,ASCH,Transport Related,CDA,15/01/2015,10-10874,598.5,CBC Taxis Ltd,,,,,,,,,,
Nottinghamshire County Council,1111/1001,Adult Social Care and Health,ASCH,Transport Related,CDA,15/01/2015,10-10876,525.6,Ace Of Mansfield Ltd,,,,,,,,,,
Nottinghamshire County Council,1111/1001,Adult Social Care and Health,ASCH,Transport Related,CDA,15/01/2015,10-10878,1207.8,Acorn Contracts,,,,,,,,,,
Nottinghamshire County Council,1111/1001,Adult Social Care and Health,ASCH,Transport Related,CDA,15/01/2015,10-10901,2379.3,Midfield Travel,,,,,,,,,,
Nottinghamshire County Council,1111/1001,Adult Social Care and Health,ASCH,Transport Related,CDA,15/01/2015,10-10925,366.01,F & J Marriott T/A Unity Coaches,,,,,,,,,,
Nottinghamshire County Council,1111/1001,Adult Social Care and Health,ASCH,Transport Related,CDA,15/01/2015,10-10935,3600,BN Gibson Ltd,,,,,,,,,,
Nottinghamshire County Council,1111/1001,Adult Social Care and Health,ASCH,Transport Related,CDA,15/01/2015,10-10947,374.18,BN Gibson Ltd,,,,,,,,,,
Nottinghamshire County Council,1111/1001,Adult Social Care and Health,ASCH,Transport Related,CDA,15/01/2015,10-10953,800,D G Private Hire Ltd,,,,,,,,,,
Nottinghamshire County Council,1111/1001,Adult Social Care and Health,ASCH,Transport Related,CDA,15/01/2015,10-10956,920,Abacus Cars,,,,,,,,,,
Nottinghamshire County Council,1111/1001,Adult Social Care and Health,ASCH,Transport Related,CDA,15/01/2015,10-10957,856.8,Abacus Cars,,,,,,,,,,
Nottinghamshire County Council,1111/1001,Adult Social Care and Health,ASCH,Transport Related,CDA,15/01/2015,10-10958,1579,Abacus Cars,,,,,,,,,,
Nottinghamshire County Council,1111/1001,Adult Social Care and Health,ASCH,Transport Related,CDA,15/01/2015,10-10959,640,Abacus Cars,,,,,,,,,,
Nottinghamshire County Council,1111/1001,Adult Social Care and Health,ASCH,Transport Related,CDA,15/01/2015,10-10960,522.24,Abacus Cars,,,,,,,,,,
Nottinghamshire County Council,1111/1001,Adult Social Care and Health,ASCH,Transport Related,CDA,15/01/2015,10-10961,542.64,Abacus Cars,,,,,,,,,,
Nottinghamshire County Council,1111/1001,Adult Social Care and Health,ASCH,Transport Related,CDA,15/01/2015,10-10962,1377,Abacus Cars,,,,,,,,,,
Nottinghamshire County Council,1111/1001,Adult Social Care and Health,ASCH,Transport Related,CDA,15/01/2015,10-10964,571.2,Abacus Cars,,,,,,,,,,
Nottinghamshire County Council,1111/1001,Adult Social Care and Health,ASCH,Transport Related,CDA,15/01/2015,10-10967,756,Abacus Cars,,,,,,,,,,
Nottinghamshire County Council,1111/1001,Adult Social Care and Health,ASCH,Transport Related,CDA,15/01/2015,10-10973,823,Abacus Cars,,,,,,,,,,
Nottinghamshire County Council,1111/1001,Adult Social Care and Health,ASCH,Transport Related,CDA,15/01/2015,10-11027,1152,P & P Taxis,,,,,,,,,,
Nottinghamshire County Council,1111/1001,Adult Social Care and Health,ASCH,Transport Related,CDA,15/01/2015,10-11032,1409.41,In Taxis,,,,,,,,,,
Nottinghamshire County Council,1111/1001,Adult Social Care and Health,ASCH,Transport Related,CDA,16/01/2015,10-11123,631.04,Shelleys Taxis Ltd,,,,,,,,,,
Nottinghamshire County Council,1111/1001,Adult Social Care and Health,ASCH,Transport Related,CDA,16/01/2015,10-11137,517.5,D G Private Hire Ltd,,,,,,,,,,
Nottinghamshire County Council,1111/1001,Adult Social Care and Health,ASCH,Transport Related,CDA,16/01/2015,10-11138,558.8,D G Private Hire Ltd,,,,,,,,,,
Nottinghamshire County Council,1111/1001,Adult Social Care and Health,ASCH,Transport Related,CDA,16/01/2015,10-11139,560,D G Private Hire Ltd,,,,,,,,,,
Nottinghamshire County Council,1111/1001,Adult Social Care and Health,ASCH,Transport Related,CDA,16/01/2015,10-11140,682,D G Private Hire Ltd,,,,,,,,,,
Nottinghamshire County Council,1111/1001,Adult Social Care and Health,ASCH,Transport Related,CDA,16/01/2015,10-11214,2100,[Redacted],,,,,,,,,,
Nottinghamshire County Council,1111/1001,Adult Social Care and Health,ASCH,Transport Related,CDA,27/01/2015,10-15634,556.4,Alert Cars Ltd,,,,,,,,,,
Nottinghamshire County Council,1111/1001,Adult Social Care and Health,ASCH,Transport Related,CDA,27/01/2015,10-15645,214.96,D G Private Hire Ltd,,,,,,,,,,
Nottinghamshire County Council,1111/1001,Adult Social Care and Health,ASCH,Transport Related,CDA,27/01/2015,10-15654,3780,BN Gibson Ltd,,,,,,,,,,
Nottinghamshire County Council,1111/1001,Adult Social Care and Health,ASCH,Transport Related,CDA,27/01/2015,10-15666,392.89,BN Gibson Ltd,,,,,,,,,,
Nottinghamshire County Council,1111/1001,Adult Social Care and Health,ASCH,Transport Related,CDA,30/01/2015,10-15809,584.22,Alert Cars Ltd,,,,,,,,,,
Nottinghamshire County Council,1111/1001,Adult Social Care and Health,ASCH,Transport Related,CDA,30/01/2015,10-15816,344.02,BN Gibson Ltd,,,,,,,,,,
Nottinghamshire County Council,1111/1001,Adult Social Care and Health,ASCH,Transport Related,CDA,30/01/2015,10-15821,856.8,Beechwood Taxis,,,,,,,,,,
Nottinghamshire County Council,1111/1001,Adult Social Care and Health,ASCH,Supplies & Services,DAA,02/01/2015,10-10036,489061.82,British Red Cross Society,,,,,,,,,,
Nottinghamshire County Council,1111/1001,Adult Social Care and Health,ASCH,Supplies & Services,DAA,02/01/2015,10-10048,82203.12,British Red Cross Society,,,,,,,,,,
Nottinghamshire County Council,1111/1001,Adult Social Care and Health,ASCH,Supplies & Services,DBA,06/01/2015,10-10272,1329.43,Hallam Country Fresh Foods Ltd,,,,,,,,,,
Nottinghamshire County Council,1111/1001,Adult Social Care and Health,ASCH,Supplies & Services,DBA,08/01/2015,10-10508,1501.13,Brake Bros Ltd,,,,,,,,,,
Nottinghamshire County Council,1111/1001,Adult Social Care and Health,ASCH,Supplies & Services,DBA,08/01/2015,10-10511,1202.86,Brake Bros Ltd,,,,,,,,,,
Nottinghamshire County Council,1111/1001,Adult Social Care and Health,ASCH,Supplies & Services,DBA,13/01/2015,10-10735,2340.78,Hallam Country Fresh Foods Ltd,,,,,,,,,,
Nottinghamshire County Council,1111/1001,Adult Social Care and Health,ASCH,Supplies & Services,DBA,16/01/2015,10-11238,6938.23,M Maloney Country Butchers & B Ltd,,,,,,,,,,
Nottinghamshire County Council,1111/1001,Adult Social Care and Health,ASCH,Supplies & Services,DBA,16/01/2015,10-11243,1472.2,M Maloney Country Butchers & B Ltd,,,,,,,,,,
Nottinghamshire County Council,1111/1001,Adult Social Care and Health,ASCH,Supplies & Services,DBA,16/01/2015,10-11247,3682.38,M Maloney Country Butchers & B Ltd,,,,,,,,,,
Nottinghamshire County Council,1111/1001,Adult Social Care and Health,ASCH,Supplies & Services,DBA,16/01/2015,10-11251,4891.87,M Maloney Country Butchers & B Ltd,,,,,,,,,,
Nottinghamshire County Council,1111/1001,Adult Social Care and Health,ASCH,Supplies & Services,DBA,20/01/2015,10-11555,2296.56,Hallam Country Fresh Foods Ltd,,,,,,,,,,
Nottinghamshire County Council,1111/1001,Adult Social Care and Health,ASCH,Supplies & Services,DBA,20/01/2015,10-11560,1192.48,Brake Bros Ltd,,,,,,,,,,
Nottinghamshire County Council,1111/1001,Adult Social Care and Health,ASCH,Supplies & Services,DBA,20/01/2015,10-11562,1119.7,Brake Bros Ltd,,,,,,,,,,
Nottinghamshire County Council,1111/1001,Adult Social Care and Health,ASCH,Supplies & Services,DBA,20/01/2015,10-11566,1875.14,Brake Bros Ltd,,,,,,,,,,
Nottinghamshire County Council,1111/1001,Adult Social Care and Health,ASCH,Supplies & Services,DBA,21/01/2015,10-11606,1023.95,Brake Bros Ltd,,,,,,,,,,
Nottinghamshire County Council,1111/1001,Adult Social Care and Health,ASCH,Supplies & Services,DBA,21/01/2015,10-11607,92.78,Brake Bros Ltd,,,,,,,,,,
Nottinghamshire County Council,1111/1001,Adult Social Care and Health,ASCH,Supplies & Services,DBA,21/01/2015,10-11610,2671.13,Brake Bros Ltd,,,,,,,,,,
Nottinghamshire County Council,1111/1001,Adult Social Care and Health,ASCH,Supplies & Services,DBA,21/01/2015,10-11613,1236.3,Brake Bros Ltd,,,,,,,,,,
Nottinghamshire County Council,1111/1001,Adult Social Care and Health,ASCH,Supplies & Services,DBA,21/01/2015,10-11616,270.05,Brake Bros Ltd,,,,,,,,,,
Nottinghamshire County Council,1111/1001,Adult Social Care and Health,ASCH,Supplies & Services,DBA,27/01/2015,10-15535,2279.58,Hallam Country Fresh Foods Ltd,,,,,,,,,,
Nottinghamshire County Council,1111/1001,Adult Social Care and Health,ASCH,Supplies & Services,DBA,27/01/2015,10-15541,1580.39,Brake Bros Ltd,,,,,,,,,,
Nottinghamshire County Council,1111/1001,Adult Social Care and Health,ASCH,Supplies & Services,DBA,27/01/2015,10-15546,65.93,Brake Bros Ltd,,,,,,,,,,
Nottinghamshire County Council,1111/1001,Adult Social Care and Health,ASCH,Supplies & Services,DBA,27/01/2015,10-15550,1455.25,Brake Bros Ltd,,,,,,,,,,
Nottinghamshire County Council,1111/1001,Adult Social Care and Health,ASCH,Supplies & Services,DBA,28/01/2015,10-15693,2471.89,Brake Bros Ltd,,,,,,,,,,
Nottinghamshire County Council,1111/1001,Adult Social Care and Health,ASCH,Supplies & Services,DBA,28/01/2015,10-15697,1040.2,Brake Bros Ltd,,,,,,,,,,
Nottinghamshire County Council,1111/1001,Adult Social Care and Health,ASCH,Supplies & Services,DBA,29/01/2015,10-15734,4235.09,M Maloney Country Butchers & B Ltd,,,,,,,,,,
Nottinghamshire County Council,1111/1001,Adult Social Care and Health,ASCH,Supplies & Services,DBA,29/01/2015,10-15739,597.52,Brake Bros Ltd,,,,,,,,,,
Nottinghamshire County Council,1111/1001,Adult Social Care and Health,ASCH,Supplies & Services,DBA,29/01/2015,10-15740,37.78,Brake Bros Ltd,,,,,,,,,,
Nottinghamshire County Council,1111/1001,Adult Social Care and Health,ASCH,Supplies & Services,DBA,29/01/2015,10-15743,1908.41,Brake Bros Ltd,,,,,,,,,,
Nottinghamshire County Council,1111/1001,Adult Social Care and Health,ASCH,Supplies & Services,DBA,29/01/2015,10-15744,1535.88,Brake Bros Ltd,,,,,,,,,,
Nottinghamshire County Council,1111/1001,Adult Social Care and Health,ASCH,Supplies & Services,DBA,29/01/2015,10-15747,246.33,Brake Bros Ltd,,,,,,,,,,
Nottinghamshire County Council,1111/1001,Adult Social Care and Health,ASCH,Supplies & Services,DBA,30/01/2015,10-15829,587.05,Brake Bros Ltd,,,,,,,,,,
Nottinghamshire County Council,1111/1001,Adult Social Care and Health,ASCH,Supplies & Services,DBA,30/01/2015,10-15830,852.82,Brake Bros Ltd,,,,,,,,,,
Nottinghamshire County Council,1111/1001,Adult Social Care and Health,ASCH,Supplies & Services,DBA,30/01/2015,10-15831,57.84,Brake Bros Ltd,,,,,,,,,,
Nottinghamshire County Council,1111/1001,Adult Social Care and Health,ASCH,Supplies & Services,DBA,30/01/2015,10-15835,1242.18,Brake Bros Ltd,,,,,,,,,,
Nottinghamshire County Council,1111/1001,Adult Social Care and Health,ASCH,Supplies & Services,DBA,30/01/2015,10-15841,2860.44,Brake Bros Ltd,,,,,,,,,,
Nottinghamshire County Council,1111/1001,Adult Social Care and Health,ASCH,Supplies & Services,DEA,30/01/2015,10-10516,106.62,Security Plus Ltd,,,,,,,,,,
Nottinghamshire County Council,1111/1001,Adult Social Care and Health,ASCH,Supplies & Services,DFA,26/01/2015,10-11845,654.28,Lantec Services Ltd,,,,,,,,,,
Nottinghamshire County Council,1111/1001,Adult Social Care and Health,ASCH,Supplies & Services,DHA,07/01/2015,10-10282,4500,Notts Deaf Society Ltd,,,,,,,,,,
Nottinghamshire County Council,1111/1001,Adult Social Care and Health,ASCH,Supplies & Services,DHA,08/01/2015,10-10472,4500,Notts Deaf Society Ltd,,,,,,,,,,
Nottinghamshire County Council,1111/1001,Adult Social Care and Health,ASCH,Supplies & Services,DKA,02/01/2015,10-10036,52152.71,British Red Cross Society,,,,,,,,,,
Nottinghamshire County Council,1111/1001,Adult Social Care and Health,ASCH,Supplies & Services,DKA,02/01/2015,10-10048,1553,British Red Cross Society,,,,,,,,,,
Nottinghamshire County Council,1111/1001,Adult Social Care and Health,ASCH,Third Party Payments,EBA,30/01/2015,10-15786,11767.74,Home Group Limited,,,,,,,,,,
Nottinghamshire County Council,1111/1001,Adult Social Care and Health,ASCH,Third Party Payments,EBA,30/01/2015,10-15788,9320,Aspirations (Midlands) Ltd,,,,,,,,,,
Nottinghamshire County Council,1111/1001,Adult Social Care and Health,ASCH,Third Party Payments,EBA,30/01/2015,10-15789,1080,Reach Housing Gloria Miller,,,,,,,,,,
Nottinghamshire County Council,1111/1001,Adult Social Care and Health,ASCH,Third Party Payments,EBA,30/01/2015,10-15790,5096,Metropolitan Housing Trust,,,,,,,,,,
Nottinghamshire County Council,1111/1001,Adult Social Care and Health,ASCH,Third Party Payments,EBA,30/01/2015,10-15792,44595.56,Royal Society Mencap,,,,,,,,,,
Nottinghamshire County Council,1111/1001,Adult Social Care and Health,ASCH,Third Party Payments,EBA,30/01/2015,10-15794,83169.08,Eden Supported Living Ltd,,,,,,,,,,
Nottinghamshire County Council,1111/1001,Adult Social Care and Health,ASCH,Third Party Payments,EBA,30/01/2015,10-15795,2920,Care UK Learning Disabilities Servi,,,,,,,,,,
Nottinghamshire County Council,1111/1001,Adult Social Care and Health,ASCH,Third Party Payments,EBA,30/01/2015,10-15796,2160,Oakdale Ozier Ltd,,,,,,,,,,
Nottinghamshire County Council,1111/1001,Adult Social Care and Health,ASCH,Third Party Payments,EBA,30/01/2015,10-15797,368810.02,Framework Housing Association,,,,,,,,,,
Nottinghamshire County Council,1111/1001,Adult Social Care and Health,ASCH,Third Party Payments,EBA,30/01/2015,10-15799,4638.18,Nottingham Community Housing,,,,,,,,,,
Nottinghamshire County Council,1111/1001,Adult Social Care and Health,ASCH,Third Party Payments,EBA,30/01/2015,10-15801,4440,Fitzroy,,,,,,,,,,
Nottinghamshire County Council,1111/1001,Adult Social Care and Health,ASCH,Third Party Payments,EBA,30/01/2015,10-15802,16087.92,Lifeways Community Care Ltd,,,,,,,,,,
Nottinghamshire County Council,1111/1001,Adult Social Care and Health,ASCH,Third Party Payments,EBA,30/01/2015,10-15803,5720,Voyage Ltd,,,,,,,,,,
Nottinghamshire County Council,1111/1001,Adult Social Care and Health,ASCH,Third Party Payments,EBA,30/01/2015,10-15804,28151.8,Thera East Midlands,,,,,,,,,,
Nottinghamshire County Council,1111/1001,Adult Social Care and Health,ASCH,Third Party Payments,EBA,30/01/2015,10-15805,11600,Choice Support,,,,,,,,,,
Nottinghamshire County Council,1111/1001,Adult Social Care and Health,ASCH,Third Party Payments,EBA,30/01/2015,10-15806,12040,United Response,,,,,,,,,,
Nottinghamshire County Council,1111/1001,Adult Social Care and Health,ASCH,Third Party Payments,EBA,30/01/2015,10-15807,1840,Heritage Care,,,,,,,,,,
Nottinghamshire County Council,1111/1001,Adult Social Care and Health,ASCH,Third Party Payments,EBA,30/01/2015,10-15808,2360,Real Life Options,,,,,,,,,,
Nottinghamshire County Council,1111/1001,Adult Social Care and Health,ASCH,Third Party Payments,ECA,05/01/2015,10-10097,871.28,Belle Vue,,,,,,,,,,
Nottinghamshire County Council,1111/1001,Adult Social Care and Health,ASCH,Third Party Payments,ECA,05/01/2015,10-10100,443.56,Carisbrooke Nursing Home,,,,,,,,,,
Nottinghamshire County Council,1111/1001,Adult Social Care and Health,ASCH,Third Party Payments,ECA,05/01/2015,10-10102,471.28,Newton House Nursing Home,,,,,,,,,,
Nottinghamshire County Council,1111/1001,Adult Social Care and Health,ASCH,Third Party Payments,ECA,05/01/2015,10-10107,712.86,Carlton House Nursing Home,,,,,,,,,,
Nottinghamshire County Council,1111/1001,Adult Social Care and Health,ASCH,Third Party Payments,ECA,12/01/2015,10-10573,601.97,Belle Vue,,,,,,,,,,
Nottinghamshire County Council,1111/1001,Adult Social Care and Health,ASCH,Third Party Payments,ECA,12/01/2015,10-10576,443.56,Beauvale Nursing Home,,,,,,,,,,
Nottinghamshire County Council,1111/1001,Adult Social Care and Health,ASCH,Third Party Payments,ECA,12/01/2015,10-10581,1283.16,Silverwood Care Home,,,,,,,,,,
Nottinghamshire County Council,1111/1001,Adult Social Care and Health,ASCH,Third Party Payments,ECA,12/01/2015,10-10586,237.62,Oaks Care Centre,,,,,,,,,,
Nottinghamshire County Council,1111/1001,Adult Social Care and Health,ASCH,Third Party Payments,ECA,12/01/2015,10-10588,21716.6,Eastlands Care Home,,,,,,,,,,
Nottinghamshire County Council,1111/1001,Adult Social Care and Health,ASCH,Third Party Payments,ECA,12/01/2015,10-10592,1061.38,Beeches Nursing Home,,,,,,,,,,
Nottinghamshire County Council,1111/1001,Adult Social Care and Health,ASCH,Third Party Payments,ECA,12/01/2015,10-10594,871.28,Beeches Nursing Home,,,,,,,,,,
Nottinghamshire County Council,1111/1001,Adult Social Care and Health,ASCH,Third Party Payments,ECA,12/01/2015,10-10600,316.83,Ashley House Nursing Home,,,,,,,,,,
Nottinghamshire County Council,1111/1001,Adult Social Care and Health,ASCH,Third Party Payments,ECA,12/01/2015,10-10604,760.39,Forest Hill Nursing Home,,,,,,,,,,
Nottinghamshire County Council,1111/1001,Adult Social Care and Health,ASCH,Third Party Payments,ECA,12/01/2015,10-10606,332.67,Forest Hill Nursing Home,,,,,,,,,,
Nottinghamshire County Council,1111/1001,Adult Social Care and Health,ASCH,Third Party Payments,ECA,12/01/2015,10-10608,855.44,Forest Hill Nursing Home,,,,,,,,,,
Nottinghamshire County Council,1111/1001,Adult Social Care and Health,ASCH,Third Party Payments,ECA,12/01/2015,10-10611,1156.42,The Moorlands Nursing Home,,,,,,,,,,
Nottinghamshire County Council,1111/1001,Adult Social Care and Health,ASCH,Third Party Payments,ECA,12/01/2015,10-10617,1124.74,Wren Hall Nursing Home,,,,,,,,,,
Nottinghamshire County Council,1111/1001,Adult Social Care and Health,ASCH,Third Party Payments,ECA,12/01/2015,10-10621,427.72,Mansfield Manor Care Home,,,,,,,,,,
Nottinghamshire County Council,1111/1001,Adult Social Care and Health,ASCH,Third Party Payments,ECA,12/01/2015,10-10623,316.83,Mansfield Manor Care Home,,,,,,,,,,
Nottinghamshire County Council,1111/1001,Adult Social Care and Health,ASCH,Third Party Payments,ECA,12/01/2015,10-10626,443.56,Lowmoor Nursing Home,,,,,,,,,,
Nottinghamshire County Council,1111/1001,Adult Social Care and Health,ASCH,Third Party Payments,ECA,12/01/2015,10-10640,332.67,Lound Hall Nursing Home,,,,,,,,,,
Nottinghamshire County Council,1111/1001,Adult Social Care and Health,ASCH,Third Party Payments,ECA,12/01/2015,10-10649,665.34,Stoke House Nursing Home,,,,,,,,,,
Nottinghamshire County Council,1111/1001,Adult Social Care and Health,ASCH,Third Party Payments,ECA,12/01/2015,10-10674,728.71,Greenwood Lodge,,,,,,,,,,
Nottinghamshire County Council,1111/1001,Adult Social Care and Health,ASCH,Third Party Payments,ECA,12/01/2015,10-10700,110.89,Jubilee Court Nursing Home,,,,,,,,,,
Nottinghamshire County Council,1111/1001,Adult Social Care and Health,ASCH,Third Party Payments,ECA,12/01/2015,10-10703,221.78,Jubilee Court Nursing Home,,,,,,,,,,
Nottinghamshire County Council,1111/1001,Adult Social Care and Health,ASCH,Third Party Payments,ECA,12/01/2015,10-10711,221.78,Lancaster Grange Newark,,,,,,,,,,
Nottinghamshire County Council,1111/1001,Adult Social Care and Health,ASCH,Third Party Payments,ECA,12/01/2015,10-10715,2249.48,Highfields Care Home,,,,,,,,,,
Nottinghamshire County Council,1111/1001,Adult Social Care and Health,ASCH,Third Party Payments,ECA,12/01/2015,10-10719,2407.9,Ashcroft Care Home (Derbyshire),,,,,,,,,,
Nottinghamshire County Council,1111/1001,Adult Social Care and Health,ASCH,Third Party Payments,ECA,19/01/2015,10-11392,443.56,Charnwood House,,,,,,,,,,
Nottinghamshire County Council,1111/1001,Adult Social Care and Health,ASCH,Third Party Payments,ECA,19/01/2015,10-11398,174.26,Churchfield Nursing Home,,,,,,,,,,
Nottinghamshire County Council,1111/1001,Adult Social Care and Health,ASCH,Third Party Payments,ECA,19/01/2015,10-11400,190.1,Stoneyford Christian Nursing Home,,,,,,,,,,
Nottinghamshire County Council,1111/1001,Adult Social Care and Health,ASCH,Third Party Payments,ECA,19/01/2015,10-11404,2091.07,Landermeads Nursing Home,,,,,,,,,,
Nottinghamshire County Council,1111/1001,Adult Social Care and Health,ASCH,Third Party Payments,ECA,19/01/2015,10-11410,221.78,Ashley House Nursing Home,,,,,,,,,,
Nottinghamshire County Council,1111/1001,Adult Social Care and Health,ASCH,Third Party Payments,ECA,19/01/2015,10-11412,205.94,Ashley House Nursing Home,,,,,,,,,,
Nottinghamshire County Council,1111/1001,Adult Social Care and Health,ASCH,Third Party Payments,ECA,19/01/2015,10-11415,110.89,Forest Hill Nursing Home,,,,,,,,,,
Nottinghamshire County Council,1111/1001,Adult Social Care and Health,ASCH,Third Party Payments,ECA,19/01/2015,10-11428,1330.68,Hallcroft Nursing Home,,,,,,,,,,
Nottinghamshire County Council,1111/1001,Adult Social Care and Health,ASCH,Third Party Payments,ECA,19/01/2015,10-11437,266.63,Willow Brook Nursing Home,,,,,,,,,,
Nottinghamshire County Council,1111/1001,Adult Social Care and Health,ASCH,Third Party Payments,ECA,19/01/2015,10-11457,633.66,Ashdale Care Home,,,,,,,,,,
Nottinghamshire County Council,1111/1001,Adult Social Care and Health,ASCH,Third Party Payments,ECA,19/01/2015,10-11459,760.39,Ashdale Care Home,,,,,,,,,,
Nottinghamshire County Council,1111/1001,Adult Social Care and Health,ASCH,Third Party Payments,ECA,26/01/2015,10-11875,443.56,Bramcote Hills Care Home,,,,,,,,,,
Nottinghamshire County Council,1111/1001,Adult Social Care and Health,ASCH,Third Party Payments,ECA,26/01/2015,10-11881,443.56,Bramcote Hills Care Home,,,,,,,,,,
Nottinghamshire County Council,1111/1001,Adult Social Care and Health,ASCH,Third Party Payments,ECA,26/01/2015,10-11898,443.56,The Grange Nursing Home,,,,,,,,,,
Nottinghamshire County Council,1111/1001,Adult Social Care and Health,ASCH,Third Party Payments,ECA,26/01/2015,10-11901,443.56,The Grange Nursing Home,,,,,,,,,,
Nottinghamshire County Council,1111/1001,Adult Social Care and Health,ASCH,Third Party Payments,ECA,26/01/2015,10-11905,443.56,The Grange Nursing Home,,,,,,,,,,
Nottinghamshire County Council,1111/1001,Adult Social Care and Health,ASCH,Third Party Payments,ECA,26/01/2015,10-11925,443.56,Ashcroft,,,,,,,,,,
Nottinghamshire County Council,1111/1001,Adult Social Care and Health,ASCH,Third Party Payments,ECA,26/01/2015,10-11928,443.56,Ashcroft,,,,,,,,,,
Nottinghamshire County Council,1111/1001,Adult Social Care and Health,ASCH,Third Party Payments,ECA,26/01/2015,10-11932,443.56,Ashcroft,,,,,,,,,,
Nottinghamshire County Council,1111/1001,Adult Social Care and Health,ASCH,Third Party Payments,ECA,26/01/2015,10-11935,443.56,Ashcroft,,,,,,,,,,
Nottinghamshire County Council,1111/1001,Adult Social Care and Health,ASCH,Third Party Payments,ECA,26/01/2015,10-11937,665.34,Ashcroft,,,,,,,,,,
Nottinghamshire County Council,1111/1001,Adult Social Care and Health,ASCH,Third Party Payments,ECA,26/01/2015,10-11939,443.56,Ashcroft,,,,,,,,,,
Nottinghamshire County Council,1111/1001,Adult Social Care and Health,ASCH,Third Party Payments,ECA,26/01/2015,10-11941,443.56,Ashcroft,,,,,,,,,,
Nottinghamshire County Council,1111/1001,Adult Social Care and Health,ASCH,Third Party Payments,ECA,26/01/2015,10-11946,443.56,Ashcroft,,,,,,,,,,
Nottinghamshire County Council,1111/1001,Adult Social Care and Health,ASCH,Third Party Payments,ECA,26/01/2015,10-11951,443.56,Ashcroft,,,,,,,,,,
Nottinghamshire County Council,1111/1001,Adult Social Care and Health,ASCH,Third Party Payments,ECA,26/01/2015,10-11953,2106.91,Ashcroft,,,,,,,,,,
Nottinghamshire County Council,1111/1001,Adult Social Care and Health,ASCH,Third Party Payments,ECA,26/01/2015,10-11955,443.56,Ashcroft,,,,,,,,,,
Nottinghamshire County Council,1111/1001,Adult Social Care and Health,ASCH,Third Party Payments,ECA,26/01/2015,10-11957,443.56,Ashcroft,,,,,,,,,,
Nottinghamshire County Council,1111/1001,Adult Social Care and Health,ASCH,Third Party Payments,ECA,26/01/2015,10-11959,443.56,Ashcroft,,,,,,,,,,
Nottinghamshire County Council,1111/1001,Adult Social Care and Health,ASCH,Third Party Payments,ECA,26/01/2015,10-11961,443.56,Ashcroft,,,,,,,,,,
Nottinghamshire County Council,1111/1001,Adult Social Care and Health,ASCH,Third Party Payments,ECA,26/01/2015,10-11969,443.56,Kingsthorpe View Nursing Home,,,,,,,,,,
Nottinghamshire County Council,1111/1001,Adult Social Care and Health,ASCH,Third Party Payments,ECA,26/01/2015,10-11980,998.01,Beauvale Nursing Home,,,,,,,,,,
Nottinghamshire County Council,1111/1001,Adult Social Care and Health,ASCH,Third Party Payments,ECA,26/01/2015,10-11981,443.56,Beauvale Nursing Home,,,,,,,,,,
Nottinghamshire County Council,1111/1001,Adult Social Care and Health,ASCH,Third Party Payments,ECA,26/01/2015,10-11983,443.56,Beauvale Nursing Home,,,,,,,,,,
Nottinghamshire County Council,1111/1001,Adult Social Care and Health,ASCH,Third Party Payments,ECA,26/01/2015,10-11986,443.56,Beauvale Nursing Home,,,,,,,,,,
Nottinghamshire County Council,1111/1001,Adult Social Care and Health,ASCH,Third Party Payments,ECA,26/01/2015,10-11990,443.56,Beauvale Nursing Home,,,,,,,,,,
Nottinghamshire County Council,1111/1001,Adult Social Care and Health,ASCH,Third Party Payments,ECA,26/01/2015,10-11993,443.56,Beauvale Nursing Home,,,,,,,,,,
Nottinghamshire County Council,1111/1001,Adult Social Care and Health,ASCH,Third Party Payments,ECA,26/01/2015,10-11995,443.56,Beauvale Nursing Home,,,,,,,,,,
Nottinghamshire County Council,1111/1001,Adult Social Care and Health,ASCH,Third Party Payments,ECA,26/01/2015,10-11999,443.56,Beauvale Nursing Home,,,,,,,,,,
Nottinghamshire County Council,1111/1001,Adult Social Care and Health,ASCH,Third Party Payments,ECA,26/01/2015,10-12001,443.56,Beauvale Nursing Home,,,,,,,,,,
Nottinghamshire County Council,1111/1001,Adult Social Care and Health,ASCH,Third Party Payments,ECA,26/01/2015,10-12012,443.56,Avalon Nursing Home,,,,,,,,,,
Nottinghamshire County Council,1111/1001,Adult Social Care and Health,ASCH,Third Party Payments,ECA,26/01/2015,10-12015,443.56,Avalon Nursing Home,,,,,,,,,,
Nottinghamshire County Council,1111/1001,Adult Social Care and Health,ASCH,Third Party Payments,ECA,26/01/2015,10-12019,443.56,Avalon Nursing Home,,,,,,,,,,
Nottinghamshire County Council,1111/1001,Adult Social Care and Health,ASCH,Third Party Payments,ECA,26/01/2015,10-12021,443.56,Avalon Nursing Home,,,,,,,,,,
Nottinghamshire County Council,1111/1001,Adult Social Care and Health,ASCH,Third Party Payments,ECA,26/01/2015,10-12023,443.56,Avalon Nursing Home,,,,,,,,,,
Nottinghamshire County Council,1111/1001,Adult Social Care and Health,ASCH,Third Party Payments,ECA,26/01/2015,10-12028,443.56,Avalon Nursing Home,,,,,,,,,,
Nottinghamshire County Council,1111/1001,Adult Social Care and Health,ASCH,Third Party Payments,ECA,26/01/2015,10-12030,443.56,Avalon Nursing Home,,,,,,,,,,
Nottinghamshire County Council,1111/1001,Adult Social Care and Health,ASCH,Third Party Payments,ECA,26/01/2015,10-12032,443.56,Avalon Nursing Home,,,,,,,,,,
Nottinghamshire County Council,1111/1001,Adult Social Care and Health,ASCH,Third Party Payments,ECA,26/01/2015,10-12034,443.56,Avalon Nursing Home,,,,,,,,,,
Nottinghamshire County Council,1111/1001,Adult Social Care and Health,ASCH,Third Party Payments,ECA,26/01/2015,10-12036,443.56,Avalon Nursing Home,,,,,,,,,,
Nottinghamshire County Council,1111/1001,Adult Social Care and Health,ASCH,Third Party Payments,ECA,26/01/2015,10-12039,443.56,Silverwood Care Home,,,,,,,,,,
Nottinghamshire County Council,1111/1001,Adult Social Care and Health,ASCH,Third Party Payments,ECA,26/01/2015,10-12041,443.56,Silverwood Care Home,,,,,,,,,,
Nottinghamshire County Council,1111/1001,Adult Social Care and Health,ASCH,Third Party Payments,ECA,26/01/2015,10-12044,443.56,Silverwood Care Home,,,,,,,,,,
Nottinghamshire County Council,1111/1001,Adult Social Care and Health,ASCH,Third Party Payments,ECA,26/01/2015,10-12046,443.56,Silverwood Care Home,,,,,,,,,,
Nottinghamshire County Council,1111/1001,Adult Social Care and Health,ASCH,Third Party Payments,ECA,26/01/2015,10-12050,443.56,Silverwood Care Home,,,,,,,,,,
Nottinghamshire County Council,1111/1001,Adult Social Care and Health,ASCH,Third Party Payments,ECA,26/01/2015,10-12054,443.56,Silverwood Care Home,,,,,,,,,,
Nottinghamshire County Council,1111/1001,Adult Social Care and Health,ASCH,Third Party Payments,ECA,26/01/2015,10-12057,443.56,Silverwood Care Home,,,,,,,,,,
Nottinghamshire County Council,1111/1001,Adult Social Care and Health,ASCH,Third Party Payments,ECA,26/01/2015,10-12060,443.56,Silverwood Care Home,,,,,,,,,,
Nottinghamshire County Council,1111/1001,Adult Social Care and Health,ASCH,Third Party Payments,ECA,26/01/2015,10-12064,443.56,Silverwood Care Home,,,,,,,,,,
Nottinghamshire County Council,1111/1001,Adult Social Care and Health,ASCH,Third Party Payments,ECA,26/01/2015,10-12066,443.56,Silverwood Care Home,,,,,,,,,,
Nottinghamshire County Council,1111/1001,Adult Social Care and Health,ASCH,Third Party Payments,ECA,26/01/2015,10-12072,443.56,Silverwood Care Home,,,,,,,,,,
Nottinghamshire County Council,1111/1001,Adult Social Care and Health,ASCH,Third Party Payments,ECA,26/01/2015,10-12074,443.56,Silverwood Care Home,,,,,,,,,,
Nottinghamshire County Council,1111/1001,Adult Social Care and Health,ASCH,Third Party Payments,ECA,26/01/2015,10-12076,443.56,Silverwood Care Home,,,,,,,,,,
Nottinghamshire County Council,1111/1001,Adult Social Care and Health,ASCH,Third Party Payments,ECA,26/01/2015,10-12084,443.56,Spring Water Lodge,,,,,,,,,,
Nottinghamshire County Council,1111/1001,Adult Social Care and Health,ASCH,Third Party Payments,ECA,26/01/2015,10-12087,443.56,Spring Water Lodge,,,,,,,,,,
Nottinghamshire County Council,1111/1001,Adult Social Care and Health,ASCH,Third Party Payments,ECA,26/01/2015,10-12089,443.56,Spring Water Lodge,,,,,,,,,,
Nottinghamshire County Council,1111/1001,Adult Social Care and Health,ASCH,Third Party Payments,ECA,26/01/2015,10-12093,443.56,Spring Water Lodge,,,,,,,,,,
Nottinghamshire County Council,1111/1001,Adult Social Care and Health,ASCH,Third Party Payments,ECA,26/01/2015,10-12099,443.56,Spring Water Lodge,,,,,,,,,,
Nottinghamshire County Council,1111/1001,Adult Social Care and Health,ASCH,Third Party Payments,ECA,26/01/2015,10-12137,443.56,Oaks Care Centre,,,,,,,,,,
Nottinghamshire County Council,1111/1001,Adult Social Care and Health,ASCH,Third Party Payments,ECA,26/01/2015,10-12143,443.56,Oaks Care Centre,,,,,,,,,,
Nottinghamshire County Council,1111/1001,Adult Social Care and Health,ASCH,Third Party Payments,ECA,26/01/2015,10-12146,443.56,Oaks Care Centre,,,,,,,,,,
Nottinghamshire County Council,1111/1001,Adult Social Care and Health,ASCH,Third Party Payments,ECA,26/01/2015,10-12148,443.56,Oaks Care Centre,,,,,,,,,,
Nottinghamshire County Council,1111/1001,Adult Social Care and Health,ASCH,Third Party Payments,ECA,26/01/2015,10-12150,443.56,Oaks Care Centre,,,,,,,,,,
Nottinghamshire County Council,1111/1001,Adult Social Care and Health,ASCH,Third Party Payments,ECA,26/01/2015,10-12152,443.56,Oaks Care Centre,,,,,,,,,,
Nottinghamshire County Council,1111/1001,Adult Social Care and Health,ASCH,Third Party Payments,ECA,26/01/2015,10-12160,443.56,Oaks Care Centre,,,,,,,,,,
Nottinghamshire County Council,1111/1001,Adult Social Care and Health,ASCH,Third Party Payments,ECA,26/01/2015,10-12167,443.56,Oaks Care Centre,,,,,,,,,,
Nottinghamshire County Council,1111/1001,Adult Social Care and Health,ASCH,Third Party Payments,ECA,26/01/2015,10-12169,443.56,Oaks Care Centre,,,,,,,,,,
Nottinghamshire County Council,1111/1001,Adult Social Care and Health,ASCH,Third Party Payments,ECA,26/01/2015,10-12177,443.56,Oaks Care Centre,,,,,,,,,,
Nottinghamshire County Council,1111/1001,Adult Social Care and Health,ASCH,Third Party Payments,ECA,26/01/2015,10-12194,443.56,Charnwood House,,,,,,,,,,
Nottinghamshire County Council,1111/1001,Adult Social Care and Health,ASCH,Third Party Payments,ECA,26/01/2015,10-12201,443.56,Charnwood House,,,,,,,,,,
Nottinghamshire County Council,1111/1001,Adult Social Care and Health,ASCH,Third Party Payments,ECA,26/01/2015,10-12204,443.56,Charnwood House,,,,,,,,,,
Nottinghamshire County Council,1111/1001,Adult Social Care and Health,ASCH,Third Party Payments,ECA,26/01/2015,10-12208,443.56,Charnwood House,,,,,,,,,,
Nottinghamshire County Council,1111/1001,Adult Social Care and Health,ASCH,Third Party Payments,ECA,26/01/2015,10-12211,443.56,Charnwood House,,,,,,,,,,
Nottinghamshire County Council,1111/1001,Adult Social Care and Health,ASCH,Third Party Payments,ECA,26/01/2015,10-12215,443.56,Charnwood House,,,,,,,,,,
Nottinghamshire County Council,1111/1001,Adult Social Care and Health,ASCH,Third Party Payments,ECA,26/01/2015,10-12217,443.56,Charnwood House,,,,,,,,,,
Nottinghamshire County Council,1111/1001,Adult Social Care and Health,ASCH,Third Party Payments,ECA,26/01/2015,10-12220,443.56,Charnwood House,,,,,,,,,,
Nottinghamshire County Council,1111/1001,Adult Social Care and Health,ASCH,Third Party Payments,ECA,26/01/2015,10-12225,443.56,Four Seasons (Evedale) Ltd Re Charn,,,,,,,,,,
Nottinghamshire County Council,1111/1001,Adult Social Care and Health,ASCH,Third Party Payments,ECA,26/01/2015,10-12227,1378.2,Four Seasons (Evedale) Ltd Re Charn,,,,,,,,,,
Nottinghamshire County Council,1111/1001,Adult Social Care and Health,ASCH,Third Party Payments,ECA,26/01/2015,10-12228,443.56,Four Seasons (Evedale) Ltd Re Charn,,,,,,,,,,
Nottinghamshire County Council,1111/1001,Adult Social Care and Health,ASCH,Third Party Payments,ECA,26/01/2015,10-12230,855.44,Four Seasons (Evedale) Ltd Re Charn,,,,,,,,,,
Nottinghamshire County Council,1111/1001,Adult Social Care and Health,ASCH,Third Party Payments,ECA,26/01/2015,10-12233,443.56,Four Seasons (Evedale) Ltd Re Sycam,,,,,,,,,,
Nottinghamshire County Council,1111/1001,Adult Social Care and Health,ASCH,Third Party Payments,ECA,26/01/2015,10-12237,443.56,Four Seasons (Evedale) Ltd Re Sycam,,,,,,,,,,
Nottinghamshire County Council,1111/1001,Adult Social Care and Health,ASCH,Third Party Payments,ECA,26/01/2015,10-12241,443.56,Four Seasons (Evedale) Ltd Re Sycam,,,,,,,,,,
Nottinghamshire County Council,1111/1001,Adult Social Care and Health,ASCH,Third Party Payments,ECA,26/01/2015,10-12248,1314.84,Four Seasons (Evedale) Ltd Re Sycam,,,,,,,,,,
Nottinghamshire County Council,1111/1001,Adult Social Care and Health,ASCH,Third Party Payments,ECA,26/01/2015,10-12254,443.56,Four Seasons (Evedale) Ltd Re Sycam,,,,,,,,,,
Nottinghamshire County Council,1111/1001,Adult Social Care and Health,ASCH,Third Party Payments,ECA,26/01/2015,10-12258,443.56,Four Seasons (Evedale) Ltd Re Sycam,,,,,,,,,,
Nottinghamshire County Council,1111/1001,Adult Social Care and Health,ASCH,Third Party Payments,ECA,26/01/2015,10-12274,443.56,Howson Care Centre,,,,,,,,,,
Nottinghamshire County Council,1111/1001,Adult Social Care and Health,ASCH,Third Party Payments,ECA,26/01/2015,10-12276,443.56,Howson Care Centre,,,,,,,,,,
Nottinghamshire County Council,1111/1001,Adult Social Care and Health,ASCH,Third Party Payments,ECA,26/01/2015,10-12278,443.56,Churchfield Drive Care Home,,,,,,,,,,
Nottinghamshire County Council,1111/1001,Adult Social Care and Health,ASCH,Third Party Payments,ECA,26/01/2015,10-12280,443.56,Churchfield Drive Care Home,,,,,,,,,,
Nottinghamshire County Council,1111/1001,Adult Social Care and Health,ASCH,Third Party Payments,ECA,26/01/2015,10-12283,443.56,Churchfield Drive Care Home,,,,,,,,,,
Nottinghamshire County Council,1111/1001,Adult Social Care and Health,ASCH,Third Party Payments,ECA,26/01/2015,10-12285,443.56,Churchfield Drive Care Home,,,,,,,,,,
Nottinghamshire County Council,1111/1001,Adult Social Care and Health,ASCH,Third Party Payments,ECA,26/01/2015,10-12294,443.56,Churchfield Drive Care Home,,,,,,,,,,
Nottinghamshire County Council,1111/1001,Adult Social Care and Health,ASCH,Third Party Payments,ECA,26/01/2015,10-12300,443.56,Churchfield Drive Care Home,,,,,,,,,,
Nottinghamshire County Council,1111/1001,Adult Social Care and Health,ASCH,Third Party Payments,ECA,26/01/2015,10-12302,443.56,Churchfield Drive Care Home,,,,,,,,,,
Nottinghamshire County Council,1111/1001,Adult Social Care and Health,ASCH,Third Party Payments,ECA,26/01/2015,10-12328,443.56,Churchfield Nursing Home,,,,,,,,,,
Nottinghamshire County Council,1111/1001,Adult Social Care and Health,ASCH,Third Party Payments,ECA,26/01/2015,10-12373,443.56,Stoneyford Christian Nursing Home,,,,,,,,,,
Nottinghamshire County Council,1111/1001,Adult Social Care and Health,ASCH,Third Party Payments,ECA,26/01/2015,10-12375,443.56,Stoneyford Christian Nursing Home,,,,,,,,,,
Nottinghamshire County Council,1111/1001,Adult Social Care and Health,ASCH,Third Party Payments,ECA,26/01/2015,10-12379,443.56,Stoneyford Christian Nursing Home,,,,,,,,,,
Nottinghamshire County Council,1111/1001,Adult Social Care and Health,ASCH,Third Party Payments,ECA,26/01/2015,10-12381,443.56,Stoneyford Christian Nursing Home,,,,,,,,,,
Nottinghamshire County Council,1111/1001,Adult Social Care and Health,ASCH,Third Party Payments,ECA,26/01/2015,10-12383,443.56,Stoneyford Christian Nursing Home,,,,,,,,,,
Nottinghamshire County Council,1111/1001,Adult Social Care and Health,ASCH,Third Party Payments,ECA,26/01/2015,10-12385,443.56,Stoneyford Christian Nursing Home,,,,,,,,,,
Nottinghamshire County Council,1111/1001,Adult Social Care and Health,ASCH,Third Party Payments,ECA,26/01/2015,10-12388,443.56,Stoneyford Christian Nursing Home,,,,,,,,,,
Nottinghamshire County Council,1111/1001,Adult Social Care and Health,ASCH,Third Party Payments,ECA,26/01/2015,10-12390,443.56,Stoneyford Christian Nursing Home,,,,,,,,,,
Nottinghamshire County Council,1111/1001,Adult Social Care and Health,ASCH,Third Party Payments,ECA,26/01/2015,10-12392,443.56,Stoneyford Christian Nursing Home,,,,,,,,,,
Nottinghamshire County Council,1111/1001,Adult Social Care and Health,ASCH,Third Party Payments,ECA,26/01/2015,10-12394,443.56,Stoneyford Christian Nursing Home,,,,,,,,,,
Nottinghamshire County Council,1111/1001,Adult Social Care and Health,ASCH,Third Party Payments,ECA,26/01/2015,10-12398,443.56,Stoneyford Christian Nursing Home,,,,,,,,,,
Nottinghamshire County Council,1111/1001,Adult Social Care and Health,ASCH,Third Party Payments,ECA,26/01/2015,10-12402,443.56,Stoneyford Christian Nursing Home,,,,,,,,,,
Nottinghamshire County Council,1111/1001,Adult Social Care and Health,ASCH,Third Party Payments,ECA,26/01/2015,10-12404,443.56,Stoneyford Christian Nursing Home,,,,,,,,,,
Nottinghamshire County Council,1111/1001,Adult Social Care and Health,ASCH,Third Party Payments,ECA,26/01/2015,10-12407,617.82,Stoneyford Christian Nursing Home,,,,,,,,,,
Nottinghamshire County Council,1111/1001,Adult Social Care and Health,ASCH,Third Party Payments,ECA,26/01/2015,10-12419,443.56,Beeches Nursing Home,,,,,,,,,,
Nottinghamshire County Council,1111/1001,Adult Social Care and Health,ASCH,Third Party Payments,ECA,26/01/2015,10-12421,443.56,Beeches Nursing Home,,,,,,,,,,
Nottinghamshire County Council,1111/1001,Adult Social Care and Health,ASCH,Third Party Payments,ECA,26/01/2015,10-12424,443.56,Beeches Nursing Home,,,,,,,,,,
Nottinghamshire County Council,1111/1001,Adult Social Care and Health,ASCH,Third Party Payments,ECA,26/01/2015,10-12428,443.56,Beeches Nursing Home,,,,,,,,,,
Nottinghamshire County Council,1111/1001,Adult Social Care and Health,ASCH,Third Party Payments,ECA,26/01/2015,10-12430,443.56,Beeches Nursing Home,,,,,,,,,,
Nottinghamshire County Council,1111/1001,Adult Social Care and Health,ASCH,Third Party Payments,ECA,26/01/2015,10-12432,443.56,Beeches Nursing Home,,,,,,,,,,
Nottinghamshire County Council,1111/1001,Adult Social Care and Health,ASCH,Third Party Payments,ECA,26/01/2015,10-12434,443.56,Beeches Nursing Home,,,,,,,,,,
Nottinghamshire County Council,1111/1001,Adult Social Care and Health,ASCH,Third Party Payments,ECA,26/01/2015,10-12436,443.56,Beeches Nursing Home,,,,,,,,,,
Nottinghamshire County Council,1111/1001,Adult Social Care and Health,ASCH,Third Party Payments,ECA,26/01/2015,10-12438,443.56,Beeches Nursing Home,,,,,,,,,,
Nottinghamshire County Council,1111/1001,Adult Social Care and Health,ASCH,Third Party Payments,ECA,26/01/2015,10-12441,443.56,Berry Hill Park,,,,,,,,,,
Nottinghamshire County Council,1111/1001,Adult Social Care and Health,ASCH,Third Party Payments,ECA,26/01/2015,10-12444,443.56,Berry Hill Park,,,,,,,,,,
Nottinghamshire County Council,1111/1001,Adult Social Care and Health,ASCH,Third Party Payments,ECA,26/01/2015,10-12447,443.56,Berry Hill Park,,,,,,,,,,
Nottinghamshire County Council,1111/1001,Adult Social Care and Health,ASCH,Third Party Payments,ECA,26/01/2015,10-12449,443.56,Berry Hill Park,,,,,,,,,,
Nottinghamshire County Council,1111/1001,Adult Social Care and Health,ASCH,Third Party Payments,ECA,26/01/2015,10-12453,443.56,Berry Hill Park,,,,,,,,,,
Nottinghamshire County Council,1111/1001,Adult Social Care and Health,ASCH,Third Party Payments,ECA,26/01/2015,10-12455,443.56,Berry Hill Park,,,,,,,,,,
Nottinghamshire County Council,1111/1001,Adult Social Care and Health,ASCH,Third Party Payments,ECA,26/01/2015,10-12458,443.56,Berry Hill Park,,,,,,,,,,
Nottinghamshire County Council,1111/1001,Adult Social Care and Health,ASCH,Third Party Payments,ECA,26/01/2015,10-12460,443.56,Berry Hill Park,,,,,,,,,,
Nottinghamshire County Council,1111/1001,Adult Social Care and Health,ASCH,Third Party Payments,ECA,26/01/2015,10-12462,443.56,Berry Hill Park,,,,,,,,,,
Nottinghamshire County Council,1111/1001,Adult Social Care and Health,ASCH,Third Party Payments,ECA,26/01/2015,10-12464,443.56,Berry Hill Park,,,,,,,,,,
Nottinghamshire County Council,1111/1001,Adult Social Care and Health,ASCH,Third Party Payments,ECA,26/01/2015,10-12466,443.56,Berry Hill Park,,,,,,,,,,
Nottinghamshire County Council,1111/1001,Adult Social Care and Health,ASCH,Third Party Payments,ECA,26/01/2015,10-12469,443.56,Berry Hill Park,,,,,,,,,,
Nottinghamshire County Council,1111/1001,Adult Social Care and Health,ASCH,Third Party Payments,ECA,26/01/2015,10-12471,443.56,Berry Hill Park,,,,,,,,,,
Nottinghamshire County Council,1111/1001,Adult Social Care and Health,ASCH,Third Party Payments,ECA,26/01/2015,10-12487,443.56,Countrywide Care Homes Ltd T/A Clum,,,,,,,,,,
Nottinghamshire County Council,1111/1001,Adult Social Care and Health,ASCH,Third Party Payments,ECA,26/01/2015,10-12489,443.56,Countrywide Care Homes Ltd T/A Clum,,,,,,,,,,
Nottinghamshire County Council,1111/1001,Adult Social Care and Health,ASCH,Third Party Payments,ECA,26/01/2015,10-12492,443.56,Countrywide Care Homes Ltd T/A Clum,,,,,,,,,,
Nottinghamshire County Council,1111/1001,Adult Social Care and Health,ASCH,Third Party Payments,ECA,26/01/2015,10-12494,443.56,Countrywide Care Homes Ltd T/A Clum,,,,,,,,,,
Nottinghamshire County Council,1111/1001,Adult Social Care and Health,ASCH,Third Party Payments,ECA,26/01/2015,10-12496,443.56,Countrywide Care Homes Ltd T/A Clum,,,,,,,,,,
Nottinghamshire County Council,1111/1001,Adult Social Care and Health,ASCH,Third Party Payments,ECA,26/01/2015,10-12498,443.56,Countrywide Care Homes Ltd T/A Clum,,,,,,,,,,
Nottinghamshire County Council,1111/1001,Adult Social Care and Health,ASCH,Third Party Payments,ECA,26/01/2015,10-12500,443.56,Countrywide Care Homes Ltd T/A Clum,,,,,,,,,,
Nottinghamshire County Council,1111/1001,Adult Social Care and Health,ASCH,Third Party Payments,ECA,26/01/2015,10-12504,443.56,Countrywide Care Homes Ltd T/A Clum,,,,,,,,,,
Nottinghamshire County Council,1111/1001,Adult Social Care and Health,ASCH,Third Party Payments,ECA,26/01/2015,10-12507,364.35,Countrywide Care Homes Ltd T/A Clum,,,,,,,,,,
Nottinghamshire County Council,1111/1001,Adult Social Care and Health,ASCH,Third Party Payments,ECA,26/01/2015,10-12509,610.44,Countrywide Care Homes Ltd T/A Clum,,,,,,,,,,
Nottinghamshire County Council,1111/1001,Adult Social Care and Health,ASCH,Third Party Payments,ECA,26/01/2015,10-12510,443.56,Countrywide Care Homes Ltd T/A Clum,,,,,,,,,,
Nottinghamshire County Council,1111/1001,Adult Social Care and Health,ASCH,Third Party Payments,ECA,26/01/2015,10-12512,610.44,Countrywide Care Homes Ltd T/A Clum,,,,,,,,,,
Nottinghamshire County Council,1111/1001,Adult Social Care and Health,ASCH,Third Party Payments,ECA,26/01/2015,10-12514,443.56,Countrywide Care Homes Ltd T/A Clum,,,,,,,,,,
Nottinghamshire County Council,1111/1001,Adult Social Care and Health,ASCH,Third Party Payments,ECA,26/01/2015,10-12516,443.56,Countrywide Care Homes Ltd T/A Clum,,,,,,,,,,
Nottinghamshire County Council,1111/1001,Adult Social Care and Health,ASCH,Third Party Payments,ECA,26/01/2015,10-12518,443.56,Countrywide Care Homes Ltd T/A Clum,,,,,,,,,,
Nottinghamshire County Council,1111/1001,Adult Social Care and Health,ASCH,Third Party Payments,ECA,26/01/2015,10-12521,443.56,Countrywide Care Homes Ltd T/A Clum,,,,,,,,,,
Nottinghamshire County Council,1111/1001,Adult Social Care and Health,ASCH,Third Party Payments,ECA,26/01/2015,10-12523,443.56,Countrywide Care Homes Ltd T/A Clum,,,,,,,,,,
Nottinghamshire County Council,1111/1001,Adult Social Care and Health,ASCH,Third Party Payments,ECA,26/01/2015,10-12530,443.56,Landermeads Nursing Home,,,,,,,,,,
Nottinghamshire County Council,1111/1001,Adult Social Care and Health,ASCH,Third Party Payments,ECA,26/01/2015,10-12532,443.56,Landermeads Nursing Home,,,,,,,,,,
Nottinghamshire County Council,1111/1001,Adult Social Care and Health,ASCH,Third Party Payments,ECA,26/01/2015,10-12534,887.12,Landermeads Nursing Home,,,,,,,,,,
Nottinghamshire County Council,1111/1001,Adult Social Care and Health,ASCH,Third Party Payments,ECA,26/01/2015,10-12535,443.56,Landermeads Nursing Home,,,,,,,,,,
Nottinghamshire County Council,1111/1001,Adult Social Care and Health,ASCH,Third Party Payments,ECA,26/01/2015,10-12538,443.56,Landermeads Nursing Home,,,,,,,,,,
Nottinghamshire County Council,1111/1001,Adult Social Care and Health,ASCH,Third Party Payments,ECA,26/01/2015,10-12540,443.56,Landermeads Nursing Home,,,,,,,,,,
Nottinghamshire County Council,1111/1001,Adult Social Care and Health,ASCH,Third Party Payments,ECA,26/01/2015,10-12542,443.56,Landermeads Nursing Home,,,,,,,,,,
Nottinghamshire County Council,1111/1001,Adult Social Care and Health,ASCH,Third Party Payments,ECA,26/01/2015,10-12544,443.56,Landermeads Nursing Home,,,,,,,,,,
Nottinghamshire County Council,1111/1001,Adult Social Care and Health,ASCH,Third Party Payments,ECA,26/01/2015,10-12546,443.56,Landermeads Nursing Home,,,,,,,,,,
Nottinghamshire County Council,1111/1001,Adult Social Care and Health,ASCH,Third Party Payments,ECA,26/01/2015,10-12548,443.56,Landermeads Nursing Home,,,,,,,,,,
Nottinghamshire County Council,1111/1001,Adult Social Care and Health,ASCH,Third Party Payments,ECA,26/01/2015,10-12550,610.44,Landermeads Nursing Home,,,,,,,,,,
Nottinghamshire County Council,1111/1001,Adult Social Care and Health,ASCH,Third Party Payments,ECA,26/01/2015,10-12552,610.44,Landermeads Nursing Home,,,,,,,,,,
Nottinghamshire County Council,1111/1001,Adult Social Care and Health,ASCH,Third Party Payments,ECA,26/01/2015,10-12556,443.56,Landermeads Nursing Home,,,,,,,,,,
Nottinghamshire County Council,1111/1001,Adult Social Care and Health,ASCH,Third Party Payments,ECA,26/01/2015,10-12558,443.56,Landermeads Nursing Home,,,,,,,,,,
Nottinghamshire County Council,1111/1001,Adult Social Care and Health,ASCH,Third Party Payments,ECA,26/01/2015,10-12560,443.56,Landermeads Nursing Home,,,,,,,,,,
Nottinghamshire County Council,1111/1001,Adult Social Care and Health,ASCH,Third Party Payments,ECA,26/01/2015,10-12562,443.56,Landermeads Nursing Home,,,,,,,,,,
Nottinghamshire County Council,1111/1001,Adult Social Care and Health,ASCH,Third Party Payments,ECA,26/01/2015,10-12564,443.56,Landermeads Nursing Home,,,,,,,,,,
Nottinghamshire County Council,1111/1001,Adult Social Care and Health,ASCH,Third Party Payments,ECA,26/01/2015,10-12568,443.56,Landermeads Nursing Home,,,,,,,,,,
Nottinghamshire County Council,1111/1001,Adult Social Care and Health,ASCH,Third Party Payments,ECA,26/01/2015,10-12571,443.56,Landermeads Nursing Home,,,,,,,,,,
Nottinghamshire County Council,1111/1001,Adult Social Care and Health,ASCH,Third Party Payments,ECA,26/01/2015,10-12573,443.56,Landermeads Nursing Home,,,,,,,,,,
Nottinghamshire County Council,1111/1001,Adult Social Care and Health,ASCH,Third Party Payments,ECA,26/01/2015,10-12575,443.56,Landermeads Nursing Home,,,,,,,,,,
Nottinghamshire County Council,1111/1001,Adult Social Care and Health,ASCH,Third Party Payments,ECA,26/01/2015,10-12577,443.56,Landermeads Nursing Home,,,,,,,,,,
Nottinghamshire County Council,1111/1001,Adult Social Care and Health,ASCH,Third Party Payments,ECA,26/01/2015,10-12579,443.56,Landermeads Nursing Home,,,,,,,,,,
Nottinghamshire County Council,1111/1001,Adult Social Care and Health,ASCH,Third Party Payments,ECA,26/01/2015,10-12640,1425.73,Albemarle Hall Nursing Home,,,,,,,,,,
Nottinghamshire County Council,1111/1001,Adult Social Care and Health,ASCH,Third Party Payments,ECA,26/01/2015,10-12641,443.56,Albemarle Hall Nursing Home,,,,,,,,,,
Nottinghamshire County Council,1111/1001,Adult Social Care and Health,ASCH,Third Party Payments,ECA,26/01/2015,10-12644,443.56,Albemarle Hall Nursing Home,,,,,,,,,,
Nottinghamshire County Council,1111/1001,Adult Social Care and Health,ASCH,Third Party Payments,ECA,26/01/2015,10-12646,443.56,Albemarle Hall Nursing Home,,,,,,,,,,
Nottinghamshire County Council,1111/1001,Adult Social Care and Health,ASCH,Third Party Payments,ECA,26/01/2015,10-12648,443.56,Albemarle Hall Nursing Home,,,,,,,,,,
Nottinghamshire County Council,1111/1001,Adult Social Care and Health,ASCH,Third Party Payments,ECA,26/01/2015,10-12650,443.56,Albemarle Hall Nursing Home,,,,,,,,,,
Nottinghamshire County Council,1111/1001,Adult Social Care and Health,ASCH,Third Party Payments,ECA,26/01/2015,10-12652,443.56,Albemarle Hall Nursing Home,,,,,,,,,,
Nottinghamshire County Council,1111/1001,Adult Social Care and Health,ASCH,Third Party Payments,ECA,26/01/2015,10-12658,443.56,Lawn Park Nursing Home,,,,,,,,,,
Nottinghamshire County Council,1111/1001,Adult Social Care and Health,ASCH,Third Party Payments,ECA,26/01/2015,10-12660,443.56,Lawn Park Nursing Home,,,,,,,,,,
Nottinghamshire County Council,1111/1001,Adult Social Care and Health,ASCH,Third Party Payments,ECA,26/01/2015,10-12663,443.56,Lawn Park Nursing Home,,,,,,,,,,
Nottinghamshire County Council,1111/1001,Adult Social Care and Health,ASCH,Third Party Payments,ECA,26/01/2015,10-12665,443.56,Lawn Park Nursing Home,,,,,,,,,,
Nottinghamshire County Council,1111/1001,Adult Social Care and Health,ASCH,Third Party Payments,ECA,26/01/2015,10-12667,443.56,Lawn Park Nursing Home,,,,,,,,,,
Nottinghamshire County Council,1111/1001,Adult Social Care and Health,ASCH,Third Party Payments,ECA,26/01/2015,10-12672,443.56,Lawn Park Nursing Home,,,,,,,,,,
Nottinghamshire County Council,1111/1001,Adult Social Care and Health,ASCH,Third Party Payments,ECA,26/01/2015,10-12674,443.56,Lawn Park Nursing Home,,,,,,,,,,
Nottinghamshire County Council,1111/1001,Adult Social Care and Health,ASCH,Third Party Payments,ECA,26/01/2015,10-12677,443.55,Lawn Park Nursing Home,,,,,,,,,,
Nottinghamshire County Council,1111/1001,Adult Social Care and Health,ASCH,Third Party Payments,ECA,26/01/2015,10-12679,443.56,Lawn Park Nursing Home,,,,,,,,,,
Nottinghamshire County Council,1111/1001,Adult Social Care and Health,ASCH,Third Party Payments,ECA,26/01/2015,10-12681,443.56,Lawn Park Nursing Home,,,,,,,,,,
Nottinghamshire County Council,1111/1001,Adult Social Care and Health,ASCH,Third Party Payments,ECA,26/01/2015,10-12683,443.56,Lawn Park Nursing Home,,,,,,,,,,
Nottinghamshire County Council,1111/1001,Adult Social Care and Health,ASCH,Third Party Payments,ECA,26/01/2015,10-12689,443.56,Lawn Park Nursing Home,,,,,,,,,,
Nottinghamshire County Council,1111/1001,Adult Social Care and Health,ASCH,Third Party Payments,ECA,26/01/2015,10-12696,443.56,Bluebell Lodge,,,,,,,,,,
Nottinghamshire County Council,1111/1001,Adult Social Care and Health,ASCH,Third Party Payments,ECA,26/01/2015,10-12731,443.56,Ashley House Nursing Home,,,,,,,,,,
Nottinghamshire County Council,1111/1001,Adult Social Care and Health,ASCH,Third Party Payments,ECA,26/01/2015,10-12733,443.56,Ashley House Nursing Home,,,,,,,,,,
Nottinghamshire County Council,1111/1001,Adult Social Care and Health,ASCH,Third Party Payments,ECA,26/01/2015,10-12735,610.44,Ashley House Nursing Home,,,,,,,,,,
Nottinghamshire County Council,1111/1001,Adult Social Care and Health,ASCH,Third Party Payments,ECA,26/01/2015,10-12738,443.56,Ashley House Nursing Home,,,,,,,,,,
Nottinghamshire County Council,1111/1001,Adult Social Care and Health,ASCH,Third Party Payments,ECA,26/01/2015,10-12740,443.56,Ashley House Nursing Home,,,,,,,,,,
Nottinghamshire County Council,1111/1001,Adult Social Care and Health,ASCH,Third Party Payments,ECA,26/01/2015,10-12742,443.56,Ashley House Nursing Home,,,,,,,,,,
Nottinghamshire County Council,1111/1001,Adult Social Care and Health,ASCH,Third Party Payments,ECA,26/01/2015,10-12744,443.56,Ashley House Nursing Home,,,,,,,,,,
Nottinghamshire County Council,1111/1001,Adult Social Care and Health,ASCH,Third Party Payments,ECA,26/01/2015,10-12747,443.56,Ashley House Nursing Home,,,,,,,,,,
Nottinghamshire County Council,1111/1001,Adult Social Care and Health,ASCH,Third Party Payments,ECA,26/01/2015,10-12749,443.56,Ashley House Nursing Home,,,,,,,,,,
Nottinghamshire County Council,1111/1001,Adult Social Care and Health,ASCH,Third Party Payments,ECA,26/01/2015,10-12751,443.56,Ashley House Nursing Home,,,,,,,,,,
Nottinghamshire County Council,1111/1001,Adult Social Care and Health,ASCH,Third Party Payments,ECA,26/01/2015,10-12753,610.44,Ashley House Nursing Home,,,,,,,,,,
Nottinghamshire County Council,1111/1001,Adult Social Care and Health,ASCH,Third Party Payments,ECA,26/01/2015,10-12754,610.44,Ashley House Nursing Home,,,,,,,,,,
Nottinghamshire County Council,1111/1001,Adult Social Care and Health,ASCH,Third Party Payments,ECA,26/01/2015,10-12755,443.56,Ashley House Nursing Home,,,,,,,,,,
Nottinghamshire County Council,1111/1001,Adult Social Care and Health,ASCH,Third Party Payments,ECA,26/01/2015,10-12757,221.78,Ashley House Nursing Home,,,,,,,,,,
Nottinghamshire County Council,1111/1001,Adult Social Care and Health,ASCH,Third Party Payments,ECA,26/01/2015,10-12761,443.56,Ashley House Nursing Home,,,,,,,,,,
Nottinghamshire County Council,1111/1001,Adult Social Care and Health,ASCH,Third Party Payments,ECA,26/01/2015,10-12764,443.56,Ashley House Nursing Home,,,,,,,,,,
Nottinghamshire County Council,1111/1001,Adult Social Care and Health,ASCH,Third Party Payments,ECA,26/01/2015,10-12766,610.44,Ashley House Nursing Home,,,,,,,,,,
Nottinghamshire County Council,1111/1001,Adult Social Care and Health,ASCH,Third Party Payments,ECA,26/01/2015,10-12767,443.56,Ashley House Nursing Home,,,,,,,,,,
Nottinghamshire County Council,1111/1001,Adult Social Care and Health,ASCH,Third Party Payments,ECA,26/01/2015,10-12769,443.56,Ashley House Nursing Home,,,,,,,,,,
Nottinghamshire County Council,1111/1001,Adult Social Care and Health,ASCH,Third Party Payments,ECA,26/01/2015,10-12772,443.56,Aslockton Hall Nursing Home,,,,,,,,,,
Nottinghamshire County Council,1111/1001,Adult Social Care and Health,ASCH,Third Party Payments,ECA,26/01/2015,10-12774,443.56,Aslockton Hall Nursing Home,,,,,,,,,,
Nottinghamshire County Council,1111/1001,Adult Social Care and Health,ASCH,Third Party Payments,ECA,26/01/2015,10-12777,443.56,Aslockton Hall Nursing Home,,,,,,,,,,
Nottinghamshire County Council,1111/1001,Adult Social Care and Health,ASCH,Third Party Payments,ECA,26/01/2015,10-12779,617.82,Aslockton Hall Nursing Home,,,,,,,,,,
Nottinghamshire County Council,1111/1001,Adult Social Care and Health,ASCH,Third Party Payments,ECA,26/01/2015,10-12780,443.56,Aslockton Hall Nursing Home,,,,,,,,,,
Nottinghamshire County Council,1111/1001,Adult Social Care and Health,ASCH,Third Party Payments,ECA,26/01/2015,10-12782,443.56,Aslockton Hall Nursing Home,,,,,,,,,,
Nottinghamshire County Council,1111/1001,Adult Social Care and Health,ASCH,Third Party Payments,ECA,26/01/2015,10-12784,443.56,Aslockton Hall Nursing Home,,,,,,,,,,
Nottinghamshire County Council,1111/1001,Adult Social Care and Health,ASCH,Third Party Payments,ECA,26/01/2015,10-12786,443.56,Aslockton Hall Nursing Home,,,,,,,,,,
Nottinghamshire County Council,1111/1001,Adult Social Care and Health,ASCH,Third Party Payments,ECA,26/01/2015,10-12788,443.56,Aslockton Hall Nursing Home,,,,,,,,,,
Nottinghamshire County Council,1111/1001,Adult Social Care and Health,ASCH,Third Party Payments,ECA,26/01/2015,10-12818,443.56,Rodenvine Nottm Ltd T/A Parker Hous,,,,,,,,,,
Nottinghamshire County Council,1111/1001,Adult Social Care and Health,ASCH,Third Party Payments,ECA,26/01/2015,10-12820,443.56,Rodenvine Nottm Ltd T/A Parker Hous,,,,,,,,,,
Nottinghamshire County Council,1111/1001,Adult Social Care and Health,ASCH,Third Party Payments,ECA,26/01/2015,10-12823,443.56,Rodenvine Nottm Ltd T/A Parker Hous,,,,,,,,,,
Nottinghamshire County Council,1111/1001,Adult Social Care and Health,ASCH,Third Party Payments,ECA,26/01/2015,10-12826,443.56,Rodenvine Nottm Ltd T/A Parker Hous,,,,,,,,,,
Nottinghamshire County Council,1111/1001,Adult Social Care and Health,ASCH,Third Party Payments,ECA,26/01/2015,10-12829,443.56,Rodenvine Nottm Ltd T/A Parker Hous,,,,,,,,,,
Nottinghamshire County Council,1111/1001,Adult Social Care and Health,ASCH,Third Party Payments,ECA,26/01/2015,10-12831,443.56,Rodenvine Nottm Ltd T/A Parker Hous,,,,,,,,,,
Nottinghamshire County Council,1111/1001,Adult Social Care and Health,ASCH,Third Party Payments,ECA,26/01/2015,10-12833,443.56,Rodenvine Nottm Ltd T/A Parker Hous,,,,,,,,,,
Nottinghamshire County Council,1111/1001,Adult Social Care and Health,ASCH,Third Party Payments,ECA,26/01/2015,10-12835,443.56,Gables Nursing Home,,,,,,,,,,
Nottinghamshire County Council,1111/1001,Adult Social Care and Health,ASCH,Third Party Payments,ECA,26/01/2015,10-12837,443.56,Gables Nursing Home,,,,,,,,,,
Nottinghamshire County Council,1111/1001,Adult Social Care and Health,ASCH,Third Party Payments,ECA,26/01/2015,10-12839,443.56,Gables Nursing Home,,,,,,,,,,
Nottinghamshire County Council,1111/1001,Adult Social Care and Health,ASCH,Third Party Payments,ECA,26/01/2015,10-12841,443.56,Gables Nursing Home,,,,,,,,,,
Nottinghamshire County Council,1111/1001,Adult Social Care and Health,ASCH,Third Party Payments,ECA,26/01/2015,10-12843,443.56,Gables Nursing Home,,,,,,,,,,
Nottinghamshire County Council,1111/1001,Adult Social Care and Health,ASCH,Third Party Payments,ECA,26/01/2015,10-12845,443.56,Gables Nursing Home,,,,,,,,,,
Nottinghamshire County Council,1111/1001,Adult Social Care and Health,ASCH,Third Party Payments,ECA,26/01/2015,10-12847,443.56,Gables Nursing Home,,,,,,,,,,
Nottinghamshire County Council,1111/1001,Adult Social Care and Health,ASCH,Third Party Payments,ECA,26/01/2015,10-12865,443.56,Forest Hill Nursing Home,,,,,,,,,,
Nottinghamshire County Council,1111/1001,Adult Social Care and Health,ASCH,Third Party Payments,ECA,26/01/2015,10-12867,443.56,Forest Hill Nursing Home,,,,,,,,,,
Nottinghamshire County Council,1111/1001,Adult Social Care and Health,ASCH,Third Party Payments,ECA,26/01/2015,10-12869,443.56,Forest Hill Nursing Home,,,,,,,,,,
Nottinghamshire County Council,1111/1001,Adult Social Care and Health,ASCH,Third Party Payments,ECA,26/01/2015,10-12873,443.56,Forest Hill Nursing Home,,,,,,,,,,
Nottinghamshire County Council,1111/1001,Adult Social Care and Health,ASCH,Third Party Payments,ECA,26/01/2015,10-12875,443.56,Forest Hill Nursing Home,,,,,,,,,,
Nottinghamshire County Council,1111/1001,Adult Social Care and Health,ASCH,Third Party Payments,ECA,26/01/2015,10-12877,443.56,Forest Hill Nursing Home,,,,,,,,,,
Nottinghamshire County Council,1111/1001,Adult Social Care and Health,ASCH,Third Party Payments,ECA,26/01/2015,10-12879,443.56,Forest Hill Nursing Home,,,,,,,,,,
Nottinghamshire County Council,1111/1001,Adult Social Care and Health,ASCH,Third Party Payments,ECA,26/01/2015,10-12881,443.56,Forest Hill Nursing Home,,,,,,,,,,
Nottinghamshire County Council,1111/1001,Adult Social Care and Health,ASCH,Third Party Payments,ECA,26/01/2015,10-12883,443.56,Forest Hill Nursing Home,,,,,,,,,,
Nottinghamshire County Council,1111/1001,Adult Social Care and Health,ASCH,Third Party Payments,ECA,26/01/2015,10-12885,443.56,Forest Hill Nursing Home,,,,,,,,,,
Nottinghamshire County Council,1111/1001,Adult Social Care and Health,ASCH,Third Party Payments,ECA,26/01/2015,10-12887,443.56,Forest Hill Nursing Home,,,,,,,,,,
Nottinghamshire County Council,1111/1001,Adult Social Care and Health,ASCH,Third Party Payments,ECA,26/01/2015,10-12890,443.56,Forest Hill Nursing Home,,,,,,,,,,
Nottinghamshire County Council,1111/1001,Adult Social Care and Health,ASCH,Third Party Payments,ECA,26/01/2015,10-12892,443.56,Forest Hill Nursing Home,,,,,,,,,,
Nottinghamshire County Council,1111/1001,Adult Social Care and Health,ASCH,Third Party Payments,ECA,26/01/2015,10-12894,443.56,Forest Hill Nursing Home,,,,,,,,,,
Nottinghamshire County Council,1111/1001,Adult Social Care and Health,ASCH,Third Party Payments,ECA,26/01/2015,10-12896,443.56,Forest Hill Nursing Home,,,,,,,,,,
